Directorate,Department,Expenditure Type,Ref.Doc.1,Vendor Name,Expenditure Amount (exc VAT),Payment Date
Assurance,Assurance,Other Services,0060124748,ROYAL MAIL GROUP LIMITED,"1,644.77",01/03/2019
Assurance,Assurance,Other Services,0060124788,ROYAL MAIL GROUP LIMITED,"1,282.54",04/03/2019
Assurance,Assurance,Stationery,0080023336,OFFICE DEPOT UK LTD,0.48,11/03/2019
Assurance,Assurance,Advertising,0060124912,GOOD IMPRESSIONS (LONDON) LIMITED,120.00,28/03/2019
Assurance,Assurance,Employee Expenses,0060126032,GREATER LONDON AUTHORITY,"3,348.87",28/03/2019
Assurance,Assurance,Training,0060124554,SOUTH EAST EMPLOYERS,695.00,13/03/2019
Assurance,Assurance,Training,0060123648,LLG LEGAL TRAINING,215.00,07/03/2019
Assurance,Assurance,Training,0080024049,SOUTH WEST COUNCILS,"2,280.00",07/03/2019
Assurance,Assurance,Professional Services,0060126155,BARNARD &  WESTWOOD LTD,295.27,28/03/2019
Assurance,Assurance,Professional Services,0060126355,BARNARD &  WESTWOOD LTD,286.50,28/03/2019
Assurance,Assurance,Professional Services,0060126448,BARNARD &  WESTWOOD LTD,86.60,29/03/2019
Assurance,Assurance,Other Indirect Employee Expens,0080023861,MAYORESS' COMMITTEE,100.00,01/03/2019
Assurance,Assurance,Other Indirect Employee Expens,0080023864,LONDON BOROUGH OF CAMDEN,85.00,01/03/2019
Assurance,Assurance,Professional Services,0080024285,THE BARNET BAND,200.00,12/03/2019
Assurance,Assurance,Other Indirect Employee Expens,0080024291,MAYOR LBE CHARITY APPEAL FUND,10.00,12/03/2019
Assurance,Assurance,Other Indirect Employee Expens,0080024293,MAYOR'S CHARITY,130.00,19/03/2019
Assurance,Assurance,Other Indirect Employee Expens,0080024379,MAYOR SUTTON'S CHARITY FUND,12.00,27/03/2019
Assurance,Assurance,Other Indirect Employee Expens,0080023863,ROYAL BOROUGH OF GREENWICH,35.00,04/03/2019
Assurance,Assurance,COMMUNICATION REAL,0060125245,THOMAS FATTORINI LTD,165.19,27/03/2019
Assurance,Assurance,Professional Services,0060123187,PRICEWATERHOUSE COOPERS,"25,000.00",05/03/2019
Assurance,Assurance,Translation Exp / Interpret,0060125609,PRIME PRODUCTION LTD,47.00,13/03/2019
Assurance,Assurance,Software Licences & Support,0060126461,INTEC FOR BUSINESS LIMITED,"11,544.99",28/03/2019
Assurance,Assurance,Ttl IT & Comms,0060124858,MERITEC LTD,"1,795.00",01/03/2019
Assurance,Assurance,Translation Exp / Interpret,0060125422,REDACTED - PERSONAL DATA,735.00,28/03/2019
Assurance,Assurance,Subscriptions,0060124837,CABINET OFFICE,"4,150.00",01/03/2019
Assurance,Assurance,Subscriptions,0060126651,CABINET OFFICE,350.00,26/03/2019
Assurance,Assurance,Software Licences & Support,0080023857,SAFETY MEDIA LTD,300.00,01/03/2019
Central Expenses,Central Expenses,Other Establishments - Third P,0060123606,CITY OF LONDON,"98,507.00",07/03/2019
Central Expenses,Central Expenses,Grant Payments,0060124762,CITY OF LONDON,"73,238.00",04/03/2019
Central Expenses,Central Expenses,Other Establishments - Third P,EBX0273657,LEE VALLEY REGIONAL PARK AUTH.,"28,597.64",14/03/2019
Central Expenses,Central Expenses,Other Establishments - Third P,EBX0273055,GREATER LONDON AUTHORITY,"3,396,341.00",11/03/2019
Central Expenses,Central Expenses,Pensions To Retired Employees,0060126021,LONDON PENSIONS FUND AUTHORITY,"1,992.65",19/03/2019
Central Expenses,Central Expenses,Pensions To Retired Employees,0060126039,LONDON PENSIONS FUND AUTHORITY,"1,992.65",19/03/2019
Central Expenses,Central Expenses,Insurance Claims,0060126308,GRISTWOOD & TOM LTD,220.00,28/03/2019
Central Expenses,Central Expenses,Insurance Claims,0060125054,JOHNSON AUSTIN LIMITED,500.00,06/03/2019
Central Expenses,Central Expenses,Insurance Claims,0060125056,JOHNSON AUSTIN LIMITED,225.00,06/03/2019
Central Expenses,Central Expenses,Insurance Claims,0060126279,JOHNSON AUSTIN LIMITED,500.00,22/03/2019
Central Expenses,Central Expenses,Insurance Claims,0060126861,JOHNSON AUSTIN LIMITED,500.00,29/03/2019
Central Expenses,Central Expenses,Insurance Claims,0060126881,JOHNSON AUSTIN LIMITED,450.00,29/03/2019
Central Expenses,Central Expenses,Insurance Claims,0080024716,THOMPSONS SOLICITORS,"1,935.00",28/03/2019
Central Expenses,Central Expenses,Insurance Claims,0080023990,IRWIN MITCHELL LLP,"26,687.20",06/03/2019
Central Expenses,Central Expenses,Insurance Claims,0080024678,IRWIN MITCHELL LLP,350.00,25/03/2019
Central Expenses,Central Expenses,Insurance Claims,0060104715,WEIGHTMANS LLP,"1,199.00",06/03/2019
Central Expenses,Central Expenses,Insurance Claims,0060125274,WEIGHTMANS LLP,"1,100.00",14/03/2019
Central Expenses,Central Expenses,Insurance Claims,0060125328,WEIGHTMANS LLP,"1,241.50",14/03/2019
Central Expenses,Central Expenses,Insurance Claims,0080024487,OGR STOCK DENTON LLP,"70,000.00",21/03/2019
Central Expenses,Central Expenses,Insurance Claims,0080024048,BROWNE JACOBSON SOLS.,"24,000.00",07/03/2019
Central Expenses,Central Expenses,Insurance Claims,0080023273,KINDERTONS LTD,"7,795.98",22/03/2019
Central Expenses,Central Expenses,Insurance Claims,0080024298,KINDERTONS LTD,373.51,20/03/2019
Central Expenses,Central Expenses,Insurance Claims,0080023867,DAS LAW,"21,884.00",11/03/2019
Central Expenses,Central Expenses,Insurance Claims,0060124716,GLENDALE COUNTRYSIDE LTD,61.46,21/03/2019
Central Expenses,Central Expenses,Insurance Claims,0060124737,GLENDALE COUNTRYSIDE LTD,125.16,21/03/2019
Central Expenses,Central Expenses,Insurance Claims,0080023195,DWP COMPENSATION RECOVERY UNIT,842.00,04/03/2019
Central Expenses,Central Expenses,Insurance Claims,0080023991,DWP COMPENSATION RECOVERY UNIT,678.00,06/03/2019
Central Expenses,Central Expenses,Insurance Claims,0080024197,DWP COMPENSATION RECOVERY UNIT,"1,692.00",13/03/2019
Central Expenses,Central Expenses,Insurance Claims,0080023134,ESSO PETROLEUM COMPANY LIMITED,822.39,01/03/2019
Central Expenses,Central Expenses,Insurance Claims,0080023138,YOUR LAW,250.00,01/03/2019
Central Expenses,Central Expenses,Insurance Claims,0080023323,BOTT & COMPANY,"10,053.00",05/03/2019
Central Expenses,Central Expenses,Insurance Claims,0080023969,AMV LAW,"3,539.26",05/03/2019
Central Expenses,Central Expenses,Insurance Claims,0080024239,RESOLUTION LAW,"3,055.00",15/03/2019
Central Expenses,Central Expenses,Insurance Claims,0080023043,REDACTED - PERSONAL DATA,"1,000.00",04/03/2019
Central Expenses,Central Expenses,Insurance Claims,0080024179,ACCIDENT EXCHANGE LTD.,"1,615.00",14/03/2019
Central Expenses,Central Expenses,Insurance Claims,0080024679,ALPS LEGAL PRACTICE CLIENT ACC,117.50,25/03/2019
Central Expenses,Central Expenses,Insurance Claims,0080023130,REDACTED - PERSONAL DATA,255.00,05/03/2019
Central Expenses,Central Expenses,Insurance Claims,0080023155,REDACTED - PERSONAL DATA,180.00,04/03/2019
Central Expenses,Central Expenses,Insurance Claims,0080024100,REDACTED - PERSONAL DATA,216.34,08/03/2019
Central Expenses,Central Expenses,Insurance Claims,0080024185,REDACTED - PERSONAL DATA,"6,000.00",14/03/2019
Central Expenses,Central Expenses,Insurance Claims,0080024237,REDACTED - PERSONAL DATA,136.48,14/03/2019
Central Expenses,Central Expenses,Insurance Claims,0080024238,REDACTED - PERSONAL DATA,301.25,14/03/2019
Central Expenses,Central Expenses,Insurance Claims,0080024240,REDACTED - PERSONAL DATA,400.00,14/03/2019
Central Expenses,Central Expenses,Insurance Claims,0080024242,REDACTED - PERSONAL DATA,170.08,14/03/2019
Central Expenses,Central Expenses,Insurance Claims,0080024243,REDACTED - PERSONAL DATA,145.00,14/03/2019
Central Expenses,Central Expenses,Insurance Claims,0080024509,REDACTED - PERSONAL DATA,210.05,21/03/2019
Central Expenses,Central Expenses,Insurance Claims,0080024518,REDACTED - PERSONAL DATA,55.00,21/03/2019
Central Expenses,Central Expenses,Insurance Claims,0080024720,REDACTED - PERSONAL DATA,102.00,27/03/2019
Central Expenses,Central Expenses,Early Retirement Service Contr,0060126552,CAPITA EMPLOYEE BENEFITS,"241,403.91",26/03/2019
Central Expenses,Central Expenses,Early Retirement Service Contr,0060126587,CAPITA EMPLOYEE BENEFITS,"239,162.45",27/03/2019
Central Expenses,Central Expenses,Early Retirement Service Contr,0060126603,CAPITA EMPLOYEE BENEFITS,"241,693.32",26/03/2019
Central Expenses,Central Expenses,Early Retirement Service Contr,0060126607,CAPITA EMPLOYEE BENEFITS,"241,851.08",26/03/2019
Central Expenses,Central Expenses,Early Retirement Service Contr,0060126611,CAPITA EMPLOYEE BENEFITS,"242,144.41",26/03/2019
Central Expenses,Central Expenses,Early Retirement Service Contr,0060126642,CAPITA EMPLOYEE BENEFITS,"241,766.65",26/03/2019
Central Expenses,Central Expenses,Early Retirement Service Contr,0060126644,CAPITA EMPLOYEE BENEFITS,"234,274.36",26/03/2019
Central Expenses,Central Expenses,Early Retirement Service Contr,0060126646,CAPITA EMPLOYEE BENEFITS,"239,343.05",26/03/2019
Central Expenses,Central Expenses,Early Retirement Service Contr,0060126648,CAPITA EMPLOYEE BENEFITS,"238,578.29",26/03/2019
Commercial,Customer Support Group,Building Repairs & Maintenance,0060126714,LEE SECURITY LONDON LIMITED,330.17,28/03/2019
Commercial,Customer Support Group,Building Repairs & Maintenance,0060124081,PURDY CONTRACTS LTD,260.10,13/03/2019
Commercial,Customer Support Group,Building Repairs & Maintenance,0060123910,T. & D. BARRS,170.00,14/03/2019
Commercial,Customer Support Group,Building Repairs & Maintenance,0060123959,T. & D. BARRS,752.25,14/03/2019
Commercial,Customer Support Group,Building Repairs & Maintenance,0010015014,AJS LTD,192.00,20/03/2019
Commercial,Customer Support Group,Building Repairs & Maintenance,0010015078,AJS LTD,-83.20,28/03/2019
Commercial,Customer Support Group,Building Repairs & Maintenance,0010015079,AJS LTD,-144.00,21/03/2019
Commercial,Customer Support Group,Building Repairs & Maintenance,0010015080,AJS LTD,-97.60,21/03/2019
Commercial,Customer Support Group,Building Repairs & Maintenance,0010015086,AJS LTD,-27.20,28/03/2019
Commercial,Customer Support Group,Building Repairs & Maintenance,0060119169,HSL COMPLIANCE LTD,114.67,01/03/2019
Commercial,Customer Support Group,Building Repairs & Maintenance,0060124991,HSL COMPLIANCE LTD,432.25,21/03/2019
Commercial,Customer Support Group,Building Repairs & Maintenance,0060125044,HSL COMPLIANCE LTD,119.70,21/03/2019
Commercial,Customer Support Group,Building Repairs & Maintenance,0060125398,HSL COMPLIANCE LTD,432.25,21/03/2019
Commercial,Customer Support Group,Building Repairs & Maintenance,0060125462,HSL COMPLIANCE LTD,432.25,21/03/2019
Commercial,Customer Support Group,Building Repairs & Maintenance,0060125522,INTEGRATED WATER SERVICES LTD,150.00,14/03/2019
Commercial,Customer Support Group,Cleaning and domestic material,0060121696,CHURCHILL CONTRACT SERVICES,619.42,14/03/2019
Commercial,Customer Support Group,Building Repairs & Maintenance,0060124504,OAKRAY LIMITED,820.80,14/03/2019
Commercial,Customer Support Group,Electricity,0060097178,KENT COUNTY COUNCIL (KCS),"-5,404.14",04/03/2019
Commercial,Customer Support Group,Gas,0060124352,KENT COUNTY COUNCIL (KCS),"7,518.28",04/03/2019
Commercial,Customer Support Group,Building Repairs & Maintenance,0060124656,GEESINK NORBA LTD,261.00,19/03/2019
Commercial,Customer Support Group,Rubbish Collection,0060126106,PEARCE RECYCLING GROUP,69.00,20/03/2019
Commercial,Customer Support Group,Rubbish Collection,0060126184,PEARCE RECYCLING GROUP,88.50,28/03/2019
Commercial,Customer Support Group,Other Services,0060125417,BLUE 9 SECURITY LIMITED,"13,648.50",13/03/2019
Commercial,Customer Support Group,Other Services,0060125427,BLUE 9 SECURITY LIMITED,"3,861.36",27/03/2019
Commercial,Customer Support Group,Water Services,0060126131,AFFINITY WATER LIMITED,429.19,21/03/2019
Commercial,Customer Support Group,Water Services,0060125582,ANGEL SPRINGS LTD,97.58,28/03/2019
Commercial,Customer Support Group,Water Services,0060125616,ANGEL SPRINGS LTD,33.28,28/03/2019
Commercial,Customer Support Group,Other Services,0060125839,EPC ASSURE LTD,775.00,15/03/2019
Commercial,Customer Support Group,Rubbish Collection,0060125382,PREMIER SHREDDING,50.00,08/03/2019
Commercial,Customer Support Group,Building Repairs & Maintenance,0060113140,S W BRUCE & CO LTD,106.46,11/03/2019
Commercial,Customer Support Group,Building Repairs & Maintenance,0060116544,S W BRUCE & CO LTD,395.60,11/03/2019
Commercial,Customer Support Group,Building Repairs & Maintenance,0060124618,S W BRUCE & CO LTD,"1,579.02",21/03/2019
Commercial,Customer Support Group,Water Services,0060124872,CASTLE WATER LTD,497.19,25/03/2019
Commercial,Customer Support Group,Rents,0060126393,MONTAGU EVANS LLP,"223,500.00",26/03/2019
Commercial,Customer Support Group,Rents,0060126293,MIDDLESEX UNIVERSITY,"31,125.00",22/03/2019
Commercial,Customer Support Group,Gas,0060126630,MIDDLESEX UNIVERSITY,"3,308.93",28/03/2019
Commercial,Customer Support Group,Electricity,0060126641,MIDDLESEX UNIVERSITY,"6,340.26",28/03/2019
Commercial,Customer Support Group,Other Services,0060125379,BLUE 9 SECURITY LIMITED,"5,437.13",13/03/2019
Commercial,Customer Support Group,Cleaning and domestic material,0060123183,CHURCHILL CONTRACT SERVICES,59.40,14/03/2019
Commercial,Customer Support Group,Water Services,0060125622,ANGEL SPRINGS LTD,321.60,28/03/2019
Commercial,Customer Support Group,Books-CDs-Audio-Video,0060123236,SM ELECTRICAL SERVICES,430.00,05/03/2019
Commercial,Customer Support Group,Books-CDs-Audio-Video,0060124407,SM ELECTRICAL SERVICES,200.00,19/03/2019
Commercial,Customer Support Group,Equipment and Materials Purcha,0060125599,CITY YMCA LONDON,"2,000.00",13/03/2019
Commercial,Customer Support Group,Equipment and Materials Purcha,0060125612,CITY YMCA LONDON,"7,500.00",13/03/2019
Commercial,Customer Support Group,Other Services,0060125455,REDACTED - PERSONAL DATA,280.00,28/03/2019
Commercial,Customer Support Group,Gas,0060124186,KENT COUNTY COUNCIL (KCS),714.36,04/03/2019
Commercial,Customer Support Group,Building Repairs & Maintenance,0060124449,OAKRAY LIMITED,648.33,14/03/2019
Commercial,Customer Support Group,Furniture-Purchase-Repair,0010015053,SCREWFIX DIRECT LTD,37.56,08/03/2019
Commercial,Customer Support Group,Furniture-Purchase-Repair,0060125792,SCREWFIX DIRECT LTD,23.32,20/03/2019
Commercial,Customer Support Group,Gas,0060054521,MIDDLESEX UNIVERSITY,"-14,407.39",22/03/2019
Commercial,Customer Support Group,Rubbish Collection,0060126178,PEARCE RECYCLING GROUP,46.00,28/03/2019
Commercial,Customer Support Group,Other Services,0060125252,BLUE 9 SECURITY LIMITED,"2,205.61",07/03/2019
Commercial,Customer Support Group,Other Services,0060125453,BLUE 9 SECURITY LIMITED,"8,034.12",13/03/2019
Commercial,Customer Support Group,Cleaning and domestic material,0060123237,CHURCHILL CONTRACT SERVICES,99.75,21/03/2019
Commercial,Customer Support Group,Rubbish Collection,0060125431,PREMIER SHREDDING,50.00,08/03/2019
Commercial,Customer Support Group,CSG Services Contract Payment,0060058654,CAPITA BUSINESS SERVICES LTD,"-44,302.50",12/03/2019
Commercial,Customer Support Group,CSG Services Contract Payment,0060081175,CAPITA BUSINESS SERVICES LTD,"-12,575.00",12/03/2019
Commercial,Customer Support Group,CSG Services Contract Payment,0060081511,CAPITA BUSINESS SERVICES LTD,"-9,072.28",12/03/2019
Commercial,Customer Support Group,CSG Services Contract Payment,0060094963,CAPITA BUSINESS SERVICES LTD,"-9,061.15",12/03/2019
Commercial,Customer Support Group,CSG Services Contract Payment,0060118525,CAPITA BUSINESS SERVICES LTD,"-5,582.00",12/03/2019
Commercial,Customer Support Group,CSG Services Contract Payment,0060123723,CAPITA BUSINESS SERVICES LTD,"-45,738.00",12/03/2019
Commercial,Customer Support Group,CSG Services Contract Payment,0060124686,CAPITA BUSINESS SERVICES LTD,"53,997.00",12/03/2019
Commercial,Customer Support Group,CSG Services Contract Payment,0060124844,CAPITA BUSINESS SERVICES LTD,"404,462.00",12/03/2019
Commercial,Customer Support Group,CSG Services Contract Payment,0060125844,CAPITA BUSINESS SERVICES LTD,"6,487,791.00",25/03/2019
Commercial,Customer Support Group,CSG Services Contract Payment,0060126058,CAPITA BUSINESS SERVICES LTD,"76,816.00",26/03/2019
Commercial,Customer Support Group,CSG Services Contract Payment,0060124664,CAPITA BUSINESS SERVICES LTD,871.00,12/03/2019
Commercial,Customer Support Group,CSG Services Contract Payment,0060125554,CAPITA BUSINESS SERVICES LTD,"1,906.00",19/03/2019
Commercial,Customer Support Group,CSG Services Contract Payment,0060125578,CAPITA BUSINESS SERVICES LTD,"1,125.00",27/03/2019
Commercial,Customer Support Group,CSG Services Contract Payment,0060125617,CAPITA BUSINESS SERVICES LTD,"16,800.00",27/03/2019
Commercial,Customer Support Group,CSG Services Contract Payment,0060126199,CAPITA BUSINESS SERVICES LTD,"11,739.00",28/03/2019
Commercial,Customer Support Group,CSG Services Contract Payment,0060126275,CAPITA BUSINESS SERVICES LTD,"209,879.00",28/03/2019
Commercial,Customer Support Group,CSG Services Contract Payment,0060126327,CAPITA BUSINESS SERVICES LTD,"1,008,206.00",28/03/2019
Commercial,Customer Support Group,CSG Services Contract Payment,0060126383,CAPITA BUSINESS SERVICES LTD,"11,830.98",26/03/2019
Commercial,Customer Support Group,Professional Services,0060123774,REDACTED - PERSONAL DATA,"1,200.00",07/03/2019
Commercial,Customer Support Group,Professional Services,0060123767,REDACTED - PERSONAL DATA,950.00,12/03/2019
Commercial,Customer Support Group,Electricity,0060124147,KENT COUNTY COUNCIL (KCS),346.50,06/03/2019
Commercial,Customer Support Group,Electricity,0060124378,KENT COUNTY COUNCIL (KCS),383.10,05/03/2019
Commercial,Customer Support Group,Gas,0060124390,KENT COUNTY COUNCIL (KCS),42.12,06/03/2019
Commercial,Customer Support Group,Gas,0060124444,KENT COUNTY COUNCIL (KCS),449.30,04/03/2019
Commercial,Customer Support Group,Electricity,0060124475,KENT COUNTY COUNCIL (KCS),"1,031.02",05/03/2019
Commercial,Customer Support Group,Gas,0060124536,KENT COUNTY COUNCIL (KCS),985.21,04/03/2019
Commercial,Customer Support Group,Gas,0060124541,KENT COUNTY COUNCIL (KCS),305.82,04/03/2019
Commercial,Customer Support Group,Gas,0060124564,KENT COUNTY COUNCIL (KCS),721.44,04/03/2019
Commercial,Customer Support Group,Gas,0060124567,KENT COUNTY COUNCIL (KCS),205.87,04/03/2019
Commercial,Customer Support Group,Electricity,0060124654,KENT COUNTY COUNCIL (KCS),956.97,07/03/2019
Commercial,Customer Support Group,Electricity,0060124977,KENT COUNTY COUNCIL (KCS),29.20,06/03/2019
Commercial,Customer Support Group,Electricity,0060124985,KENT COUNTY COUNCIL (KCS),28.94,06/03/2019
Commercial,Customer Support Group,Electricity,0060125006,KENT COUNTY COUNCIL (KCS),28.48,06/03/2019
Commercial,Customer Support Group,Electricity,0060125107,KENT COUNTY COUNCIL (KCS),28.94,06/03/2019
Commercial,Customer Support Group,Electricity,0060125108,KENT COUNTY COUNCIL (KCS),322.98,06/03/2019
Commercial,Customer Support Group,Electricity,0060125120,KENT COUNTY COUNCIL (KCS),102.82,14/03/2019
Commercial,Customer Support Group,Electricity,0060125135,KENT COUNTY COUNCIL (KCS),102.82,14/03/2019
Commercial,Customer Support Group,Electricity,0060125140,KENT COUNTY COUNCIL (KCS),102.82,14/03/2019
Commercial,Customer Support Group,Electricity,0060125146,KENT COUNTY COUNCIL (KCS),99.51,14/03/2019
Commercial,Customer Support Group,Electricity,0060125159,KENT COUNTY COUNCIL (KCS),103.19,14/03/2019
Commercial,Customer Support Group,Electricity,0060125180,KENT COUNTY COUNCIL (KCS),302.65,06/03/2019
Commercial,Customer Support Group,Building Repairs & Maintenance,0060121727,T. & D. BARRS,89.25,11/03/2019
Commercial,Customer Support Group,Building Repairs & Maintenance,0060123342,T. & D. BARRS,34.00,14/03/2019
Commercial,Customer Support Group,Building Repairs & Maintenance,0060123623,T. & D. BARRS,214.20,13/03/2019
Commercial,Customer Support Group,Building Repairs & Maintenance,0060123674,T. & D. BARRS,51.00,13/03/2019
Commercial,Customer Support Group,Building Repairs & Maintenance,0060123707,T. & D. BARRS,91.80,13/03/2019
Commercial,Customer Support Group,Building Repairs & Maintenance,0060123737,T. & D. BARRS,229.50,13/03/2019
Commercial,Customer Support Group,Building Repairs & Maintenance,0060123741,T. & D. BARRS,59.50,13/03/2019
Commercial,Customer Support Group,Building Repairs & Maintenance,0060123795,T. & D. BARRS,348.50,13/03/2019
Commercial,Customer Support Group,Building Repairs & Maintenance,0060123826,T. & D. BARRS,136.00,13/03/2019
Commercial,Customer Support Group,Building Repairs & Maintenance,0060123831,T. & D. BARRS,31.96,13/03/2019
Commercial,Customer Support Group,Building Repairs & Maintenance,0060123855,T. & D. BARRS,314.50,13/03/2019
Commercial,Customer Support Group,Building Repairs & Maintenance,0060124435,T. & D. BARRS,72.25,20/03/2019
Commercial,Customer Support Group,Building Repairs & Maintenance,0060124439,T. & D. BARRS,671.50,20/03/2019
Commercial,Customer Support Group,Building Repairs & Maintenance,0060124460,T. & D. BARRS,85.00,20/03/2019
Commercial,Customer Support Group,Building Repairs & Maintenance,0060124515,T. & D. BARRS,110.50,20/03/2019
Commercial,Customer Support Group,Electricity,0010015041,E-ON ENERGY,25.80,06/03/2019
Commercial,Customer Support Group,Electricity,0010015042,E-ON ENERGY,25.60,06/03/2019
Commercial,Customer Support Group,Electricity,0010015043,E-ON ENERGY,25.58,06/03/2019
Commercial,Customer Support Group,Electricity,0010015044,E-ON ENERGY,25.60,06/03/2019
Commercial,Customer Support Group,Electricity,0010015045,E-ON ENERGY,25.60,06/03/2019
Commercial,Customer Support Group,Electricity,0010015054,E-ON ENERGY,24.29,11/03/2019
Commercial,Customer Support Group,Electricity,0010015063,E-ON ENERGY,22.27,15/03/2019
Commercial,Customer Support Group,Consultants Fees,0060125998,VALUATION OFFICE AGENCY,647.90,19/03/2019
Commercial,Customer Support Group,Consultants Fees,0060126087,VALUATION OFFICE AGENCY,"2,500.00",19/03/2019
Commercial,Customer Support Group,Other Services,0060125361,BLUE 9 SECURITY LIMITED,188.02,13/03/2019
Commercial,Customer Support Group,Other Services,0060125471,BLUE 9 SECURITY LIMITED,53.72,13/03/2019
Commercial,Customer Support Group,Other Services,0060125490,BLUE 9 SECURITY LIMITED,31.14,13/03/2019
Commercial,Customer Support Group,Cleaning and domestic material,0060121769,CHURCHILL CONTRACT SERVICES,398.69,14/03/2019
Commercial,Customer Support Group,Consultants Fees,0060126006,ZIPPORAH LTD,"4,427.18",19/03/2019
Commercial,Customer Support Group,Water Services,0060125506,AFFINITY WATER LIMITED,122.99,11/03/2019
Commercial,Customer Support Group,Water Services,0060125825,AFFINITY WATER LIMITED,154.07,15/03/2019
Commercial,Customer Support Group,Advertising,0060124632,TMP (UK) LTD,99.00,21/03/2019
Commercial,Customer Support Group,Rents,0060125217,UK POWER NETWORKS,148.28,14/03/2019
Commercial,Customer Support Group,Rents,0060125238,UK POWER NETWORKS,178.81,14/03/2019
Commercial,Customer Support Group,Rents,0060125247,UK POWER NETWORKS,178.81,14/03/2019
Commercial,Customer Support Group,Rents,0060125256,UK POWER NETWORKS,148.28,14/03/2019
Commercial,Customer Support Group,Rents,0060125281,UK POWER NETWORKS,178.81,14/03/2019
Commercial,Customer Support Group,Rents,0060125307,UK POWER NETWORKS,148.28,14/03/2019
Commercial,Customer Support Group,Rents,0060125312,UK POWER NETWORKS,178.81,14/03/2019
Commercial,Customer Support Group,Rents,0060125317,UK POWER NETWORKS,148.28,14/03/2019
Commercial,Customer Support Group,Rents,0060124384,CANAL & RIVER TRUST,"2,000.00",14/03/2019
Commercial,Customer Support Group,Building Repairs & Maintenance,0060102418,S W BRUCE & CO LTD,290.00,11/03/2019
Commercial,Customer Support Group,Building Repairs & Maintenance,0060113144,S W BRUCE & CO LTD,100.33,11/03/2019
Commercial,Customer Support Group,Building Repairs & Maintenance,0060113156,S W BRUCE & CO LTD,29.22,11/03/2019
Commercial,Customer Support Group,Building Repairs & Maintenance,0060113174,S W BRUCE & CO LTD,107.11,11/03/2019
Commercial,Customer Support Group,Building Repairs & Maintenance,0060124845,COLT INTERNATIONAL LTD,"1,125.50",01/03/2019
Commercial,Customer Support Group,Water Services,0060121829,CASTLE WATER LTD,235.69,08/03/2019
Commercial,Customer Support Group,Water Services,0060126796,CASTLE WATER LTD,25.55,29/03/2019
Commercial,Customer Support Group,Water Services,0060126807,CASTLE WATER LTD,9.23,29/03/2019
Commercial,Customer Support Group,Water Services,0060126824,CASTLE WATER LTD,16.32,29/03/2019
Commercial,Customer Support Group,Other Services,0060124689,LONDON CARETAKERS,280.00,07/03/2019
Commercial,Customer Support Group,Other Services,0060124708,LONDON CARETAKERS,280.00,07/03/2019
Commercial,Customer Support Group,Other Services,0060124718,LONDON CARETAKERS,350.00,07/03/2019
Commercial,Customer Support Group,Other Services,0060125752,LONDON CARETAKERS,280.00,28/03/2019
Commercial,Customer Support Group,Building Repairs & Maintenance,0060124990,HSL COMPLIANCE LTD,"1,396.50",21/03/2019
Commercial,Customer Support Group,Building Repairs & Maintenance,0060125019,HSL COMPLIANCE LTD,501.65,21/03/2019
Commercial,Customer Support Group,Building Repairs & Maintenance,0060125022,HSL COMPLIANCE LTD,"1,396.50",21/03/2019
Commercial,Customer Support Group,Building Repairs & Maintenance,0060125030,HSL COMPLIANCE LTD,"1,429.75",21/03/2019
Commercial,Customer Support Group,Building Repairs & Maintenance,0060125511,INTEGRATED WATER SERVICES LTD,"1,843.75",28/03/2019
Commercial,Customer Support Group,Building Repairs & Maintenance,0060125521,INTEGRATED WATER SERVICES LTD,43.75,14/03/2019
Commercial,Customer Support Group,Building Repairs & Maintenance,0060125526,INTEGRATED WATER SERVICES LTD,"1,618.75",14/03/2019
Commercial,Customer Support Group,Building Repairs & Maintenance,0060125547,INTEGRATED WATER SERVICES LTD,"1,631.25",14/03/2019
Commercial,Customer Support Group,Building Repairs & Maintenance,0060125548,INTEGRATED WATER SERVICES LTD,"1,781.25",28/03/2019
Commercial,Customer Support Group,Building Repairs & Maintenance,0060120841,PICKERINGS LIFTS LTD,-446.67,28/03/2019
Commercial,Customer Support Group,Building Repairs & Maintenance,0060123943,PICKERINGS LIFTS LTD,"1,652.00",04/03/2019
Commercial,Customer Support Group,Building Repairs & Maintenance,0060124936,PICKERINGS LIFTS LTD,"1,836.28",04/03/2019
Commercial,Customer Support Group,Building Repairs & Maintenance,0060118758,PURDY CONTRACTS LTD,536.81,26/03/2019
Commercial,Customer Support Group,Equipment and Materials Purcha,0060124150,PURDY CONTRACTS LTD,"3,535.87",13/03/2019
Commercial,Customer Support Group,Ttl IT & Comms,0060124860,VODAFONE LTD (BILLS ONLY),364.44,04/03/2019
Commercial,Customer Support Group,Ttl IT & Comms,0060126921,VODAFONE LTD (BILLS ONLY),385.53,29/03/2019
Commercial,Customer Support Group,Ttl IT & Comms,0060123748,TELEFONICA UK LTD,197.86,06/03/2019
Commercial,Customer Support Group,Ttl IT & Comms,0060124867,TELEFONICA UK LTD,40.00,07/03/2019
Commercial,Customer Support Group,Ttl IT & Comms,0060124886,TELEFONICA UK LTD,50.00,07/03/2019
Commercial,Customer Support Group,Professional Services,0060117385,ROSSENDALES (COLLECT) LTD,-142.03,13/03/2019
Commercial,Customer Support Group,Professional Services,0060124659,ROSSENDALES (COLLECT) LTD,494.13,13/03/2019
Commercial,Customer Support Group,Other Services,0060125219,LOOMIS UK LIMITED,942.22,14/03/2019
Commercial,Customer Support Group,Other Services,0060125449,LOOMIS UK LIMITED,54.00,14/03/2019
Commercial,Customer Support Group,Other Services,0060126388,LOOMIS UK LIMITED,"1,017.58",28/03/2019
Commercial,Customer Support Group,Postage,0010015072,WEMBLEY LAMINATIONS LTD:,299.25,19/03/2019
Commercial,Customer Support Group,Postage,0060124645,OFF THE WALL MARKETING LTD,"1,102.00",05/03/2019
Commercial,Customer Support Group,Postage,0060124827,KAS PAPER SYSTEMS LTD,250.00,26/03/2019
Commercial,Customer Support Group,Postage,0060124768,ENVOPRINT,627.00,21/03/2019
Commercial,Customer Support Group,Postage,0060124989,ENVOPRINT,255.30,28/03/2019
Commercial,Customer Support Group,Postage,0060125725,STANFORD MARSH LTD,235.00,13/03/2019
Commercial,Customer Support Group,Gas,0010015052,KENT COUNTY COUNCIL (KCS),"-1,030.51",14/03/2019
Commercial,Customer Support Group,Gas,0060108913,KENT COUNTY COUNCIL (KCS),-902.90,14/03/2019
Commercial,Customer Support Group,Gas,0060124208,KENT COUNTY COUNCIL (KCS),877.38,05/03/2019
Commercial,Customer Support Group,Electricity,0060124223,KENT COUNTY COUNCIL (KCS),"3,287.72",05/03/2019
Commercial,Customer Support Group,Cleaning and domestic material,0060126981,HERTFORDSHIRE SUPPLIES   COUNTY CO,349.47,29/03/2019
Commercial,Customer Support Group,Furniture-Purchase-Repair,0060125763,SCREWFIX DIRECT LTD,237.86,20/03/2019
Commercial,Customer Support Group,Furniture-Purchase-Repair,0060125797,SCREWFIX DIRECT LTD,45.83,20/03/2019
Commercial,Customer Support Group,Rubbish Collection,0060121157,G.B.HOLDINGS LTD,58.80,22/03/2019
Commercial,Customer Support Group,Building Repairs & Maintenance,0060126497,DORMA UK LTD,789.50,25/03/2019
Commercial,Customer Support Group,Rubbish Collection,0060126189,PEARCE RECYCLING GROUP,64.50,28/03/2019
Commercial,Customer Support Group,Other Services,0060125351,BLUE 9 SECURITY LIMITED,"20,569.92",13/03/2019
Commercial,Customer Support Group,Other Services,0060125423,BLUE 9 SECURITY LIMITED,"6,383.70",13/03/2019
Commercial,Customer Support Group,Water Services,0060124592,ANGEL SPRINGS LTD,26.02,06/03/2019
Commercial,Customer Support Group,Water Services,0060124613,ANGEL SPRINGS LTD,18.90,06/03/2019
Commercial,Customer Support Group,Water Services,0060124619,ANGEL SPRINGS LTD,28.36,06/03/2019
Commercial,Customer Support Group,Water Services,0060124667,ANGEL SPRINGS LTD,-7.57,19/03/2019
Commercial,Customer Support Group,Water Services,0060125574,ANGEL SPRINGS LTD,75.00,28/03/2019
Commercial,Customer Support Group,Grounds maintenance,0060126523,RIBBEX UK LTD,764.75,25/03/2019
Commercial,Customer Support Group,Building Repairs & Maintenance,0060124013,CHOICE FIRE & SECURITY SOLUTIONS LTD,"1,716.00",14/03/2019
Commercial,Customer Support Group,Building Repairs & Maintenance,0060122066,S W BRUCE & CO LTD,"2,361.18",11/03/2019
Commercial,Customer Support Group,Building Repairs & Maintenance,0060122859,S W BRUCE & CO LTD,851.97,11/03/2019
Commercial,Customer Support Group,Building Repairs & Maintenance,0060123578,S W BRUCE & CO LTD,"1,226.28",11/03/2019
Commercial,Customer Support Group,Building Repairs & Maintenance,0060124068,PURDY CONTRACTS LTD,204.16,18/03/2019
Commercial,Customer Support Group,Building Repairs & Maintenance,0060123951,WOODS BUILDING SERVICES,"1,540.00",22/03/2019
Commercial,Customer Support Group,Building Repairs & Maintenance,0060124766,WOODS BUILDING SERVICES,770.00,26/03/2019
Commercial,Customer Support Group,Building Repairs & Maintenance,0060124847,WOODS BUILDING SERVICES,965.00,22/03/2019
Commercial,Customer Support Group,Building Repairs & Maintenance,0060124222,OAKRAY LIMITED,348.15,14/03/2019
Commercial,Customer Support Group,Building Repairs & Maintenance,0060124291,OAKRAY LIMITED,950.32,14/03/2019
Commercial,Customer Support Group,Building Repairs & Maintenance,0060124434,OAKRAY LIMITED,112.00,14/03/2019
Commercial,Customer Support Group,Building Repairs & Maintenance,0060124446,OAKRAY LIMITED,80.00,14/03/2019
Commercial,Customer Support Group,Building Repairs & Maintenance,0060124448,OAKRAY LIMITED,96.00,14/03/2019
Commercial,Customer Support Group,Building Repairs & Maintenance,0060124451,OAKRAY LIMITED,96.00,14/03/2019
Commercial,Customer Support Group,Building Repairs & Maintenance,0060124468,OAKRAY LIMITED,199.33,05/03/2019
Commercial,Customer Support Group,Building Repairs & Maintenance,0060124477,OAKRAY LIMITED,128.00,14/03/2019
Commercial,Customer Support Group,Building Repairs & Maintenance,0060124478,OAKRAY LIMITED,64.00,14/03/2019
Commercial,Customer Support Group,Building Repairs & Maintenance,0060124479,OAKRAY LIMITED,80.00,14/03/2019
Commercial,Customer Support Group,Building Repairs & Maintenance,0060124481,OAKRAY LIMITED,"1,489.25",14/03/2019
Commercial,Customer Support Group,Building Repairs & Maintenance,0060124484,OAKRAY LIMITED,196.05,14/03/2019
Commercial,Customer Support Group,Building Repairs & Maintenance,0060124486,OAKRAY LIMITED,128.00,14/03/2019
Commercial,Customer Support Group,Building Repairs & Maintenance,0060124500,OAKRAY LIMITED,196.65,14/03/2019
Commercial,Customer Support Group,Building Repairs & Maintenance,0060124505,OAKRAY LIMITED,112.00,14/03/2019
Commercial,Customer Support Group,Building Repairs & Maintenance,0060124508,OAKRAY LIMITED,648.33,14/03/2019
Commercial,Customer Support Group,Building Repairs & Maintenance,0060124509,OAKRAY LIMITED,96.00,14/03/2019
Commercial,Customer Support Group,Building Repairs & Maintenance,0060124514,OAKRAY LIMITED,630.92,14/03/2019
Commercial,Customer Support Group,Building Repairs & Maintenance,0060125970,ADAMS ENVIRONMENTAL LTD,200.00,26/03/2019
Commercial,Customer Support Group,Building Repairs & Maintenance,0060124760,FRONTIER-PITTS LTD,575.50,06/03/2019
Commercial,Customer Support Group,Building Repairs & Maintenance,0060125246,LEE SECURITY LONDON LIMITED,215.94,28/03/2019
Commercial,Customer Support Group,Building Repairs & Maintenance,0060126420,GEESINK NORBA LTD,200.79,22/03/2019
Commercial,Customer Support Group,Building Repairs & Maintenance,0060123304,T. & D. BARRS,100.54,06/03/2019
Commercial,Customer Support Group,Building Repairs & Maintenance,0060123314,T. & D. BARRS,159.80,06/03/2019
Commercial,Customer Support Group,Building Repairs & Maintenance,0060123321,T. & D. BARRS,63.92,06/03/2019
Commercial,Customer Support Group,Building Repairs & Maintenance,0060123351,T. & D. BARRS,217.09,06/03/2019
Commercial,Customer Support Group,Building Repairs & Maintenance,0060123840,T. & D. BARRS,63.92,13/03/2019
Commercial,Customer Support Group,Building Repairs & Maintenance,0060123881,T. & D. BARRS,202.48,13/03/2019
Commercial,Customer Support Group,Building Repairs & Maintenance,0060124603,T. & D. BARRS,191.76,21/03/2019
Commercial,Customer Support Group,Building Repairs & Maintenance,0060124647,T. & D. BARRS,63.92,21/03/2019
Commercial,Customer Support Group,Building Repairs & Maintenance,0060124651,T. & D. BARRS,63.92,21/03/2019
Commercial,Customer Support Group,Building Repairs & Maintenance,0060124663,T. & D. BARRS,439.49,21/03/2019
Commercial,Customer Support Group,Building Repairs & Maintenance,0060124682,T. & D. BARRS,63.92,21/03/2019
Commercial,Customer Support Group,Building Repairs & Maintenance,0060125601,T. & D. BARRS,243.80,15/03/2019
Commercial,Customer Support Group,Building Repairs & Maintenance,0060125618,T. & D. BARRS,364.84,22/03/2019
Commercial,Customer Support Group,Building Repairs & Maintenance,0060125619,T. & D. BARRS,247.33,14/03/2019
Commercial,Customer Support Group,Building Repairs & Maintenance,0060125634,T. & D. BARRS,312.88,14/03/2019
Commercial,Customer Support Group,Building Repairs & Maintenance,0060123783,WATES LIVING SPACE,71.25,07/03/2019
Commercial,Customer Support Group,Building Repairs & Maintenance,0060124263,WATES LIVING SPACE,266.49,07/03/2019
Commercial,Customer Support Group,Building Repairs & Maintenance,0060124316,WATES LIVING SPACE,986.18,14/03/2019
Commercial,Customer Support Group,Building Repairs & Maintenance,0060125242,WATES LIVING SPACE,35.63,27/03/2019
Commercial,Customer Support Group,Building Repairs & Maintenance,0060125255,WATES LIVING SPACE,71.25,27/03/2019
Commercial,Customer Support Group,Building Repairs & Maintenance,0060125333,WATES LIVING SPACE,106.88,27/03/2019
Commercial,Customer Support Group,Building Repairs & Maintenance,0060125378,WATES LIVING SPACE,699.47,20/03/2019
Commercial,Customer Support Group,Building Repairs & Maintenance,0060125815,WATES LIVING SPACE,310.00,15/03/2019
Commercial,Customer Support Group,Building Repairs & Maintenance,0060125819,WATES LIVING SPACE,500.00,18/03/2019
Commercial,Customer Support Group,Building Repairs & Maintenance,0060125848,WATES LIVING SPACE,129.65,15/03/2019
Commercial,Customer Support Group,Building Repairs & Maintenance,0060125860,WATES LIVING SPACE,53.44,15/03/2019
Commercial,Customer Support Group,Building Repairs & Maintenance,0060123130,AJS LTD,824.00,07/03/2019
Commercial,Customer Support Group,Building Repairs & Maintenance,0060124891,AJS LTD,388.54,01/03/2019
Commercial,Customer Support Group,Building Repairs & Maintenance,0010015060,S W BRUCE & CO LTD,269.00,14/03/2019
Commercial,Customer Support Group,Building Repairs & Maintenance,0060095313,S W BRUCE & CO LTD,85.58,14/03/2019
Commercial,Customer Support Group,Building Repairs & Maintenance,0060113145,S W BRUCE & CO LTD,41.59,11/03/2019
Commercial,Customer Support Group,Building Repairs & Maintenance,0060113146,S W BRUCE & CO LTD,43.18,11/03/2019
Commercial,Customer Support Group,Building Repairs & Maintenance,0060113149,S W BRUCE & CO LTD,108.42,11/03/2019
Commercial,Customer Support Group,Building Repairs & Maintenance,0060113152,S W BRUCE & CO LTD,28.50,11/03/2019
Commercial,Customer Support Group,Building Repairs & Maintenance,0060113163,S W BRUCE & CO LTD,46.94,11/03/2019
Commercial,Customer Support Group,Building Repairs & Maintenance,0060113166,S W BRUCE & CO LTD,25.00,11/03/2019
Commercial,Customer Support Group,Building Repairs & Maintenance,0060113180,S W BRUCE & CO LTD,142.81,11/03/2019
Commercial,Customer Support Group,Building Repairs & Maintenance,0060113183,S W BRUCE & CO LTD,106.99,11/03/2019
Commercial,Customer Support Group,Building Repairs & Maintenance,0060113196,S W BRUCE & CO LTD,25.00,11/03/2019
Commercial,Customer Support Group,Building Repairs & Maintenance,0060117642,S W BRUCE & CO LTD,829.94,11/03/2019
Commercial,Customer Support Group,Building Repairs & Maintenance,0060118047,S W BRUCE & CO LTD,382.78,11/03/2019
Commercial,Customer Support Group,Building Repairs & Maintenance,0060118069,S W BRUCE & CO LTD,"2,555.96",13/03/2019
Commercial,Customer Support Group,Building Repairs & Maintenance,0060118076,S W BRUCE & CO LTD,25.00,11/03/2019
Commercial,Customer Support Group,Building Repairs & Maintenance,0060118106,S W BRUCE & CO LTD,596.00,11/03/2019
Commercial,Customer Support Group,Building Repairs & Maintenance,0060119388,S W BRUCE & CO LTD,57.00,11/03/2019
Commercial,Customer Support Group,Building Repairs & Maintenance,0060119433,S W BRUCE & CO LTD,241.50,11/03/2019
Commercial,Customer Support Group,Building Repairs & Maintenance,0060119445,S W BRUCE & CO LTD,57.00,11/03/2019
Commercial,Customer Support Group,Building Repairs & Maintenance,0060119551,S W BRUCE & CO LTD,57.00,11/03/2019
Commercial,Customer Support Group,Building Repairs & Maintenance,0060119615,S W BRUCE & CO LTD,481.85,11/03/2019
Commercial,Customer Support Group,Building Repairs & Maintenance,0060119624,S W BRUCE & CO LTD,101.12,11/03/2019
Commercial,Customer Support Group,Building Repairs & Maintenance,0060119882,S W BRUCE & CO LTD,355.63,11/03/2019
Commercial,Customer Support Group,Building Repairs & Maintenance,0060120938,S W BRUCE & CO LTD,180.00,11/03/2019
Commercial,Customer Support Group,Building Repairs & Maintenance,0060120945,S W BRUCE & CO LTD,50.00,11/03/2019
Commercial,Customer Support Group,Building Repairs & Maintenance,0060120952,S W BRUCE & CO LTD,173.33,11/03/2019
Commercial,Customer Support Group,Building Repairs & Maintenance,0060120963,S W BRUCE & CO LTD,"2,350.00",11/03/2019
Commercial,Customer Support Group,Building Repairs & Maintenance,0060120966,S W BRUCE & CO LTD,"3,605.00",11/03/2019
Commercial,Customer Support Group,Building Repairs & Maintenance,0060120990,S W BRUCE & CO LTD,50.00,11/03/2019
Commercial,Customer Support Group,Building Repairs & Maintenance,0060120996,S W BRUCE & CO LTD,108.83,11/03/2019
Commercial,Customer Support Group,Building Repairs & Maintenance,0060121035,S W BRUCE & CO LTD,920.00,11/03/2019
Commercial,Customer Support Group,Building Repairs & Maintenance,0060121046,S W BRUCE & CO LTD,25.00,11/03/2019
Commercial,Customer Support Group,Building Repairs & Maintenance,0060121047,S W BRUCE & CO LTD,25.00,11/03/2019
Commercial,Customer Support Group,Building Repairs & Maintenance,0060121058,S W BRUCE & CO LTD,309.35,11/03/2019
Commercial,Customer Support Group,Building Repairs & Maintenance,0060121079,S W BRUCE & CO LTD,50.00,11/03/2019
Commercial,Customer Support Group,Building Repairs & Maintenance,0060121105,S W BRUCE & CO LTD,57.92,11/03/2019
Commercial,Customer Support Group,Building Repairs & Maintenance,0060121109,S W BRUCE & CO LTD,220.00,11/03/2019
Commercial,Customer Support Group,Building Repairs & Maintenance,0060121112,S W BRUCE & CO LTD,25.00,11/03/2019
Commercial,Customer Support Group,Building Repairs & Maintenance,0060121136,S W BRUCE & CO LTD,320.00,11/03/2019
Commercial,Customer Support Group,Building Repairs & Maintenance,0060121172,S W BRUCE & CO LTD,50.00,11/03/2019
Commercial,Customer Support Group,Building Repairs & Maintenance,0060121199,S W BRUCE & CO LTD,309.35,11/03/2019
Commercial,Customer Support Group,Building Repairs & Maintenance,0060124044,S W BRUCE & CO LTD,180.00,15/03/2019
Commercial,Customer Support Group,Building Repairs & Maintenance,0060124061,S W BRUCE & CO LTD,95.70,14/03/2019
Commercial,Customer Support Group,Building Repairs & Maintenance,0060124064,S W BRUCE & CO LTD,181.70,14/03/2019
Commercial,Customer Support Group,Building Repairs & Maintenance,0060124084,S W BRUCE & CO LTD,285.00,14/03/2019
Commercial,Customer Support Group,Building Repairs & Maintenance,0060124092,S W BRUCE & CO LTD,28.50,15/03/2019
Commercial,Customer Support Group,Building Repairs & Maintenance,0060124099,S W BRUCE & CO LTD,168.00,14/03/2019
Commercial,Customer Support Group,Building Repairs & Maintenance,0060124103,S W BRUCE & CO LTD,88.44,14/03/2019
Commercial,Customer Support Group,Building Repairs & Maintenance,0060124119,S W BRUCE & CO LTD,57.00,14/03/2019
Commercial,Customer Support Group,Building Repairs & Maintenance,0060124120,S W BRUCE & CO LTD,279.38,14/03/2019
Commercial,Customer Support Group,Building Repairs & Maintenance,0060124146,S W BRUCE & CO LTD,57.00,15/03/2019
Commercial,Customer Support Group,Building Repairs & Maintenance,0060124171,S W BRUCE & CO LTD,57.00,14/03/2019
Commercial,Customer Support Group,Building Repairs & Maintenance,0060124176,S W BRUCE & CO LTD,161.51,14/03/2019
Commercial,Customer Support Group,Building Repairs & Maintenance,0060124178,S W BRUCE & CO LTD,47.01,14/03/2019
Commercial,Customer Support Group,Building Repairs & Maintenance,0060124206,S W BRUCE & CO LTD,495.75,14/03/2019
Commercial,Customer Support Group,Building Repairs & Maintenance,0060124215,S W BRUCE & CO LTD,139.92,14/03/2019
Commercial,Customer Support Group,Building Repairs & Maintenance,0060124238,S W BRUCE & CO LTD,101.12,14/03/2019
Commercial,Customer Support Group,Building Repairs & Maintenance,0060124245,S W BRUCE & CO LTD,186.91,14/03/2019
Commercial,Customer Support Group,Building Repairs & Maintenance,0060124259,S W BRUCE & CO LTD,516.03,14/03/2019
Commercial,Customer Support Group,Building Repairs & Maintenance,0060124262,S W BRUCE & CO LTD,57.00,14/03/2019
Commercial,Customer Support Group,Building Repairs & Maintenance,0060124275,S W BRUCE & CO LTD,123.72,14/03/2019
Commercial,Customer Support Group,Building Repairs & Maintenance,0060124300,S W BRUCE & CO LTD,940.00,11/03/2019
Commercial,Customer Support Group,Building Repairs & Maintenance,0060124301,S W BRUCE & CO LTD,234.75,14/03/2019
Commercial,Customer Support Group,Building Repairs & Maintenance,0060124303,S W BRUCE & CO LTD,70.68,14/03/2019
Commercial,Customer Support Group,Building Repairs & Maintenance,0060124304,S W BRUCE & CO LTD,87.46,14/03/2019
Commercial,Customer Support Group,Building Repairs & Maintenance,0060124315,S W BRUCE & CO LTD,57.00,14/03/2019
Commercial,Customer Support Group,Building Repairs & Maintenance,0060124333,S W BRUCE & CO LTD,120.78,14/03/2019
Commercial,Customer Support Group,Building Repairs & Maintenance,0060124340,S W BRUCE & CO LTD,213.26,14/03/2019
Commercial,Customer Support Group,Building Repairs & Maintenance,0060124400,S W BRUCE & CO LTD,101.12,14/03/2019
Commercial,Customer Support Group,Building Repairs & Maintenance,0060124412,S W BRUCE & CO LTD,84.81,14/03/2019
Commercial,Customer Support Group,Building Repairs & Maintenance,0060124644,S W BRUCE & CO LTD,517.50,21/03/2019
Commercial,Customer Support Group,Building Repairs & Maintenance,0060124832,COLT INTERNATIONAL LTD,699.00,18/03/2019
Commercial,Customer Support Group,Building Repairs & Maintenance,0060125094,HSL COMPLIANCE LTD,179.55,21/03/2019
Commercial,Customer Support Group,Building Repairs & Maintenance,0060124582,PICKERINGS LIFTS LTD,273.87,05/03/2019
Commercial,Customer Support Group,Building Repairs & Maintenance,0060124585,PICKERINGS LIFTS LTD,156.75,04/03/2019
Commercial,Customer Support Group,Building Repairs & Maintenance,0060124588,PICKERINGS LIFTS LTD,142.50,28/03/2019
Commercial,Customer Support Group,Building Repairs & Maintenance,0060124601,PICKERINGS LIFTS LTD,216.60,28/03/2019
Commercial,Customer Support Group,Building Repairs & Maintenance,0060124608,PICKERINGS LIFTS LTD,313.50,05/03/2019
Commercial,Customer Support Group,Building Repairs & Maintenance,0060124668,PICKERINGS LIFTS LTD,185.25,04/03/2019
Commercial,Customer Support Group,Building Repairs & Maintenance,0060124680,PICKERINGS LIFTS LTD,185.25,04/03/2019
Commercial,Customer Support Group,Building Repairs & Maintenance,0060126850,PICKERINGS LIFTS LTD,128.25,28/03/2019
Commercial,Customer Support Group,Building Repairs & Maintenance,0060118914,PURDY CONTRACTS LTD,"1,766.16",05/03/2019
Commercial,Customer Support Group,Building Repairs & Maintenance,0060123877,REDACTED - PERSONAL DATA,383.52,13/03/2019
Commercial,Customer Support Group,Electricity,0010015040,E-ON ENERGY,25.60,06/03/2019
Commercial,Customer Support Group,Other Services,0060125696,BLUE 9 SECURITY LIMITED,108.80,13/03/2019
Commercial,Customer Support Group,Other Services,0060125718,BLUE 9 SECURITY LIMITED,"1,020.00",13/03/2019
Commercial,Customer Support Group,Other Services,0060125910,BLUE 9 SECURITY LIMITED,"10,463.04",18/03/2019
Commercial,Customer Support Group,Other Services,0060125913,BLUE 9 SECURITY LIMITED,"20,926.08",18/03/2019
Commercial,Customer Support Group,Other Services,0060126238,BLUE 9 SECURITY LIMITED,136.00,20/03/2019
Commercial,Customer Support Group,Building Repairs & Maintenance,0010015037,WATES LIVING SPACE,716.21,07/03/2019
Commercial,Customer Support Group,Building Repairs & Maintenance,0060124220,WATES LIVING SPACE,"1,026.19",07/03/2019
Commercial,Customer Support Group,Building Repairs & Maintenance,0060124548,PURDY CONTRACTS LTD,382.50,13/03/2019
Commercial,HB LAW,Professional Services,0060125272,LONDON BOROUGH OF HARROW,"334,651.13",26/03/2019
Commercial,HB LAW,Professional Services,0060126301,LONDON BOROUGH OF HARROW,"345,068.57",26/03/2019
Commercial,Housing Needs Resources,Private Contractors - Third Pa,0060122349,THE BARNETGROUP LIMITED,"2,280,000.00",11/03/2019
Commercial,Housing Needs Resources,Private Contractors - Third Pa,0060125447,THE BARNETGROUP LIMITED,"2,280,000.00",08/03/2019
Commercial,Housing Needs Resources,Private Contractors - Third Pa,0060125450,THE BARNETGROUP LIMITED,"51,071.51",08/03/2019
Commercial,Housing Needs Resources,Private Contractors - Third Pa,0060126026,THE BARNETGROUP LIMITED,"2,716.10",29/03/2019
Commercial,Housing Needs Resources,Private Contractors - Third Pa,0060126029,THE BARNETGROUP LIMITED,"5,237.37",29/03/2019
Commercial,Housing Needs Resources,Private Contractors - Third Pa,0060126037,THE BARNETGROUP LIMITED,"75,456.82",29/03/2019
Commercial,Housing Needs Resources,Building Repairs & Maintenance,0060125629,THE BARNETGROUP LIMITED,"153,755.36",13/03/2019
Commercial,Housing Needs Resources,Consultants Fees,0060125907,THE BARNETGROUP LIMITED,"45,704.40",18/03/2019
COMMERCIAL,HOUSING NEEDS RESOURCES,Other Agencies - Third Party P,0060126123,THE BARNETGROUP LIMITED,"3,148,169.00",20/03/2019
COMMERCIAL,HOUSING NEEDS RESOURCES,Grant Payments,0080024125,ARTHUR J. FERRYMAN ASSOCIATES,313.01,15/03/2019
COMMERCIAL,HOUSING NEEDS RESOURCES,Professional Services,0060125756,TBG OPEN DOOR LIMITED,"745,249.43",14/03/2019
COMMERCIAL,HOUSING NEEDS RESOURCES,Professional Services,0060126747,TBG OPEN DOOR LIMITED,"3,068,862.38",28/03/2019
COMMERCIAL,HOUSING REVENUE ACCOUNT,Professional Services,0060126810,GREATER LONDON AUTHORITY,"7,500.00",28/03/2019
COMMERCIAL,HOUSING REVENUE ACCOUNT,Professional Services,0060122453,CAPITAL PROPERTY,"39,120.00",07/03/2019
COMMERCIAL,HOUSING REVENUE ACCOUNT,Consultants Fees,0060113503,THE BARNETGROUP LIMITED,"124,602.00",29/03/2019
Commercial,HRA,Consultants Fees,0060124846,THE BARNETGROUP LIMITED,631.25,06/03/2019
Commercial,HRA,Consultants Fees,0060124857,THE BARNETGROUP LIMITED,"2,691.50",06/03/2019
Commercial,HRA,Consultants Fees,0060124888,THE BARNETGROUP LIMITED,"1,570.25",06/03/2019
Commercial,HRA,Consultants Fees,0060124551,PRIORITY ESTATES PROJECT LTD,"2,654.30",12/03/2019
Commercial,HRA,Advertising,0060125587,TMP (UK) LTD,"2,770.00",14/03/2019
Commercial,HRA,Advertising,0060125600,TMP (UK) LTD,853.00,14/03/2019
Commercial,HRA,Other Services,0060106645,THE BARNETGROUP LIMITED,"16,902.16",21/03/2019
Commercial,HRA,Other Services,0060106680,THE BARNETGROUP LIMITED,"36,000.00",21/03/2019
Commercial,HRA,Other Services,0060125873,THE BARNETGROUP LIMITED,"202,000.00",21/03/2019
Commercial,HRA,Other Services,0060125912,THE BARNETGROUP LIMITED,"17,708.00",25/03/2019
Commercial,HRA,Other Services,0060125928,THE BARNETGROUP LIMITED,"4,722.90",20/03/2019
Commercial,HRA,Other Services,0060125940,THE BARNETGROUP LIMITED,"15,390.45",20/03/2019
Commercial,HRA,Other Services,0060125942,THE BARNETGROUP LIMITED,"20,730.71",20/03/2019
Commercial,HRA,Building Repairs & Maintenance,0060124289,WATES LIVING SPACE,253.00,14/03/2019
Commercial,HRA,Consultants Fees,0060113608,BARNET HOMES LIMITED,"11,000.00",06/03/2019
Commercial,HRA,Consultants Fees,0060113629,BARNET HOMES LIMITED,"1,500.00",06/03/2019
Commercial,HRA,Other Services,0060125900,THE BARNETGROUP LIMITED,"52,512.34",29/03/2019
Commercial,HRA,Consultants Fees,0060124922,PRIORITY ESTATES PROJECT LTD,"4,254.98",04/03/2019
Commercial,HRA,Consultants Fees,0060124945,PRIORITY ESTATES PROJECT LTD,"6,834.70",04/03/2019
Commercial,HRA,Consultants Fees,0060126341,PRIORITY ESTATES PROJECT LTD,"4,979.15",21/03/2019
Commercial,Parking & Infrastructure,Equipment and Materials Purcha,0060124142,RENNICK UK LTD,544.15,14/03/2019
Commercial,Parking & Infrastructure,Equipment and Materials Purcha,0060123769,LAFARGE TARMAC TRADING LIMITED,176.72,07/03/2019
Commercial,Parking & Infrastructure,Equipment and Materials Purcha,0060123953,LAFARGE TARMAC TRADING LIMITED,120.80,07/03/2019
Commercial,Parking & Infrastructure,Equipment and Materials Purcha,0060124207,LAFARGE TARMAC TRADING LIMITED,165.54,14/03/2019
Commercial,Parking & Infrastructure,Equipment and Materials Purcha,0060124353,LAFARGE TARMAC TRADING LIMITED,140.93,14/03/2019
Commercial,Parking & Infrastructure,Equipment and Materials Purcha,0060124462,LAFARGE TARMAC TRADING LIMITED,165.54,13/03/2019
Commercial,Parking & Infrastructure,Equipment and Materials Purcha,0060124464,LAFARGE TARMAC TRADING LIMITED,127.51,14/03/2019
Commercial,Parking & Infrastructure,Equipment and Materials Purcha,0060124620,LAFARGE TARMAC TRADING LIMITED,140.93,19/03/2019
Commercial,Parking & Infrastructure,Equipment and Materials Purcha,0060124507,KLOECKNER METALS UK,822.00,13/03/2019
Commercial,Parking & Infrastructure,Other Services,0060125779,LONDON SURFACING CO LTD,650.00,19/03/2019
Commercial,Parking & Infrastructure,Building Repairs & Maintenance,0060083787,OAKRAY LIMITED,"4,389.00",13/03/2019
Commercial,Parking & Infrastructure,Building Repairs & Maintenance,0060125020,BARNET LOCK CENTRE LTD.,121.84,12/03/2019
Commercial,Parking & Infrastructure,Building Repairs & Maintenance,0060125033,BARNET LOCK CENTRE LTD.,152.56,12/03/2019
Commercial,Parking & Infrastructure,Building Repairs & Maintenance,0060125085,BARNET LOCK CENTRE LTD.,152.56,12/03/2019
Commercial,Parking & Infrastructure,Building Repairs & Maintenance,0060125385,BARNET LOCK CENTRE LTD.,224.34,12/03/2019
Commercial,Parking & Infrastructure,Building Repairs & Maintenance,0060125468,BARNET LOCK CENTRE LTD.,152.56,12/03/2019
Commercial,Parking & Infrastructure,Building Repairs & Maintenance,0060125497,BARNET LOCK CENTRE LTD.,62.00,12/03/2019
Commercial,Parking & Infrastructure,Building Repairs & Maintenance,0060126500,BARNET LOCK CENTRE LTD.,156.61,28/03/2019
Commercial,Parking & Infrastructure,Gas,0060123801,KENT COUNTY COUNCIL (KCS),43.40,04/03/2019
Commercial,Parking & Infrastructure,Gas,0060124975,KENT COUNTY COUNCIL (KCS),91.90,05/03/2019
Commercial,Parking & Infrastructure,Electricity,0060124988,KENT COUNTY COUNCIL (KCS),672.91,06/03/2019
Commercial,Parking & Infrastructure,Gas,0060124992,KENT COUNTY COUNCIL (KCS),46.78,05/03/2019
Commercial,Parking & Infrastructure,Electricity,0060124999,KENT COUNTY COUNCIL (KCS),285.47,06/03/2019
Commercial,Parking & Infrastructure,Electricity,0060125005,KENT COUNTY COUNCIL (KCS),45.16,06/03/2019
Commercial,Parking & Infrastructure,Gas,0060125058,KENT COUNTY COUNCIL (KCS),260.07,05/03/2019
Commercial,Parking & Infrastructure,Gas,0060125063,KENT COUNTY COUNCIL (KCS),275.61,05/03/2019
Commercial,Parking & Infrastructure,Gas,0060125101,KENT COUNTY COUNCIL (KCS),564.61,05/03/2019
Commercial,Parking & Infrastructure,Electricity,0060125103,KENT COUNTY COUNCIL (KCS),299.77,07/03/2019
Commercial,Parking & Infrastructure,Electricity,0060125110,KENT COUNTY COUNCIL (KCS),31.09,06/03/2019
Commercial,Parking & Infrastructure,Electricity,0060125352,KENT COUNTY COUNCIL (KCS),488.33,14/03/2019
Commercial,Parking & Infrastructure,Electricity,0060125384,KENT COUNTY COUNCIL (KCS),565.64,14/03/2019
Commercial,Parking & Infrastructure,Electricity,0060125402,KENT COUNTY COUNCIL (KCS),35.29,14/03/2019
Commercial,Parking & Infrastructure,Other Services,0060123190,IRIS GARDENING SERVICES LTD,390.00,06/03/2019
Commercial,Parking & Infrastructure,Equipment and Materials Purcha,0060123468,IRIS GARDENING SERVICES LTD,675.00,06/03/2019
Commercial,Parking & Infrastructure,Equipment and Materials Purcha,0060124797,IRIS GARDENING SERVICES LTD,360.00,06/03/2019
Commercial,Parking & Infrastructure,Other Services,0060125350,IRIS GARDENING SERVICES LTD,995.00,08/03/2019
Commercial,Parking & Infrastructure,Grounds maintenance,0060126854,IRIS GARDENING SERVICES LTD,356.40,28/03/2019
Commercial,Parking & Infrastructure,Other Services,0060124843,RM COUNTRYSIDE SERVICES LTD,370.00,14/03/2019
Commercial,Parking & Infrastructure,Other Services,0060125210,RM COUNTRYSIDE SERVICES LTD,"1,685.00",07/03/2019
Commercial,Parking & Infrastructure,Other Services,0060125400,RM COUNTRYSIDE SERVICES LTD,459.00,14/03/2019
Commercial,Parking & Infrastructure,Other Services,0060125408,RM COUNTRYSIDE SERVICES LTD,276.00,14/03/2019
Commercial,Parking & Infrastructure,Other Services,0060125424,RM COUNTRYSIDE SERVICES LTD,420.00,14/03/2019
Commercial,Parking & Infrastructure,Other Services,0060125438,RM COUNTRYSIDE SERVICES LTD,509.00,14/03/2019
Commercial,Parking & Infrastructure,Other Services,0060125464,RM COUNTRYSIDE SERVICES LTD,639.00,14/03/2019
Commercial,Parking & Infrastructure,Other Services,0060125498,RM COUNTRYSIDE SERVICES LTD,468.00,14/03/2019
Commercial,Parking & Infrastructure,Other Services,0060125570,RM COUNTRYSIDE SERVICES LTD,"1,658.00",15/03/2019
Commercial,Parking & Infrastructure,Other Services,0060125751,RM COUNTRYSIDE SERVICES LTD,290.00,20/03/2019
Commercial,Parking & Infrastructure,Other Services,0060125787,RM COUNTRYSIDE SERVICES LTD,"1,020.00",20/03/2019
Commercial,Parking & Infrastructure,Other Services,0060125916,RM COUNTRYSIDE SERVICES LTD,"4,675.00",21/03/2019
Commercial,Parking & Infrastructure,Other Services,0060126098,RM COUNTRYSIDE SERVICES LTD,182.00,21/03/2019
Commercial,Parking & Infrastructure,Other Services,0060126455,RM COUNTRYSIDE SERVICES LTD,391.00,26/03/2019
Commercial,Parking & Infrastructure,Other Services,0060126785,RM COUNTRYSIDE SERVICES LTD,899.00,28/03/2019
Commercial,Parking & Infrastructure,Other Services,0010015073,BLUE 9 SECURITY LIMITED,653.94,20/03/2019
Commercial,Parking & Infrastructure,Grounds maintenance,0060126698,BLUE 9 SECURITY LIMITED,249.12,27/03/2019
Commercial,Parking & Infrastructure,Grounds maintenance,0060126800,BLUE 9 SECURITY LIMITED,"1,292.31",28/03/2019
Commercial,Parking & Infrastructure,Cleaning and domestic material,0060116736,CHURCHILL CONTRACT SERVICES,"6,824.88",18/03/2019
Commercial,Parking & Infrastructure,Cleaning and domestic material,0060121363,CHURCHILL CONTRACT SERVICES,"8,872.33",18/03/2019
Commercial,Parking & Infrastructure,Cleaning and domestic material,0060121657,CHURCHILL CONTRACT SERVICES,"4,094.93",06/03/2019
Commercial,Parking & Infrastructure,Water Services,0010015048,AFFINITY WATER LIMITED,17.31,08/03/2019
Commercial,Parking & Infrastructure,Water Services,0010015076,AFFINITY WATER LIMITED,63.24,21/03/2019
Commercial,Parking & Infrastructure,Water Services,0010015077,AFFINITY WATER LIMITED,21.64,21/03/2019
Commercial,Parking & Infrastructure,Water Services,0060125002,AFFINITY WATER LIMITED,21.64,26/03/2019
Commercial,Parking & Infrastructure,Water Services,0060125415,AFFINITY WATER LIMITED,"1,147.55",26/03/2019
Commercial,Parking & Infrastructure,Water Services,0060125817,AFFINITY WATER LIMITED,"2,209.94",26/03/2019
Commercial,Parking & Infrastructure,Building Repairs & Maintenance,0060124268,WATES LIVING SPACE,375.16,14/03/2019
Commercial,Parking & Infrastructure,Building Repairs & Maintenance,0060124343,WATES LIVING SPACE,229.50,14/03/2019
Commercial,Parking & Infrastructure,Building Repairs & Maintenance,0060124410,WATES LIVING SPACE,106.88,14/03/2019
Commercial,Parking & Infrastructure,Building Repairs & Maintenance,0060125326,WATES LIVING SPACE,62.35,27/03/2019
Commercial,Parking & Infrastructure,Building Repairs & Maintenance,0060125809,WATES LIVING SPACE,640.00,22/03/2019
Commercial,Parking & Infrastructure,Grounds maintenance,0060123667,CONWAY AECOM LTD,574.72,07/03/2019
Commercial,Parking & Infrastructure,Building Repairs & Maintenance,0060098290,S W BRUCE & CO LTD,454.25,15/03/2019
Commercial,Parking & Infrastructure,Building Repairs & Maintenance,0060098323,S W BRUCE & CO LTD,345.00,15/03/2019
Commercial,Parking & Infrastructure,Building Repairs & Maintenance,0060104019,S W BRUCE & CO LTD,67.63,11/03/2019
Commercial,Parking & Infrastructure,Building Repairs & Maintenance,0060116446,S W BRUCE & CO LTD,25.00,13/03/2019
Commercial,Parking & Infrastructure,Building Repairs & Maintenance,0060116520,S W BRUCE & CO LTD,59.46,11/03/2019
Commercial,Parking & Infrastructure,Building Repairs & Maintenance,0060124584,S W BRUCE & CO LTD,"2,405.00",14/03/2019
Commercial,Parking & Infrastructure,Building Repairs & Maintenance,0060124622,S W BRUCE & CO LTD,352.50,14/03/2019
Commercial,Parking & Infrastructure,Building Repairs & Maintenance,0060124646,S W BRUCE & CO LTD,984.50,14/03/2019
Commercial,Parking & Infrastructure,Grounds maintenance,0060125475,WATES CONSTRUCTION LTD,699.47,08/03/2019
Commercial,Parking & Infrastructure,Water Services,0060124909,CASTLE WATER LTD,81.16,05/03/2019
Commercial,Parking & Infrastructure,Water Services,0060124910,CASTLE WATER LTD,232.44,05/03/2019
Commercial,Parking & Infrastructure,Water Services,0060124974,CASTLE WATER LTD,35.44,05/03/2019
Commercial,Parking & Infrastructure,Water Services,0060125018,CASTLE WATER LTD,11.66,05/03/2019
Commercial,Parking & Infrastructure,Water Services,0060125043,CASTLE WATER LTD,25.02,05/03/2019
Commercial,Parking & Infrastructure,Water Services,0060125048,CASTLE WATER LTD,29.59,05/03/2019
Commercial,Parking & Infrastructure,Water Services,0060125053,CASTLE WATER LTD,19.78,05/03/2019
Commercial,Parking & Infrastructure,Water Services,0060125059,CASTLE WATER LTD,584.93,05/03/2019
Commercial,Parking & Infrastructure,Water Services,0060125090,CASTLE WATER LTD,175.76,06/03/2019
Commercial,Parking & Infrastructure,Water Services,0060125106,CASTLE WATER LTD,208.33,05/03/2019
Commercial,Parking & Infrastructure,Water Services,0060125111,CASTLE WATER LTD,164.38,26/03/2019
Commercial,Parking & Infrastructure,Water Services,0060126544,CASTLE WATER LTD,188.16,26/03/2019
Commercial,Parking & Infrastructure,Water Services,0060126558,CASTLE WATER LTD,99.47,26/03/2019
Commercial,Parking & Infrastructure,Water Services,0060126563,CASTLE WATER LTD,5.27,26/03/2019
Commercial,Parking & Infrastructure,Water Services,0060126568,CASTLE WATER LTD,148.47,28/03/2019
Commercial,Parking & Infrastructure,Water Services,0060126596,CASTLE WATER LTD,26.72,26/03/2019
Commercial,Parking & Infrastructure,Water Services,0060126606,CASTLE WATER LTD,18.09,26/03/2019
Commercial,Parking & Infrastructure,Water Services,0060126675,CASTLE WATER LTD,158.75,27/03/2019
Commercial,Parking & Infrastructure,Water Services,0060126681,CASTLE WATER LTD,32.01,27/03/2019
Commercial,Parking & Infrastructure,Water Services,0060126718,CASTLE WATER LTD,17.87,27/03/2019
Commercial,Parking & Infrastructure,Water Services,0060126771,CASTLE WATER LTD,13.25,28/03/2019
Commercial,Parking & Infrastructure,Water Services,0060126794,CASTLE WATER LTD,70.33,28/03/2019
Commercial,Parking & Infrastructure,Building Repairs & Maintenance,0060123721,WOODS BUILDING SERVICES,756.00,07/03/2019
Commercial,Parking & Infrastructure,Equipment and Materials Purcha,0060123223,VAISALA LTD,"14,090.00",05/03/2019
Commercial,Parking & Infrastructure,Equipment and Materials Purcha,0060126974,SKILLS TRAINING CENTRE LTD,"1,165.00",29/03/2019
Commercial,Parking & Infrastructure,Equipment and Materials Purcha,0060125305,EXACTRAK LTD T/A AVERY WEIGH-TRONIX,605.00,27/03/2019
Commercial,Parking & Infrastructure,Equipment and Materials Purcha,0060124887,GREENHAM TRADING LIMITED,412.47,27/03/2019
Commercial,Parking & Infrastructure,Equipment and Materials Purcha,0060125066,GREENHAM TRADING LIMITED,169.23,28/03/2019
Commercial,Parking & Infrastructure,Equipment and Materials Purcha,0060125985,GREENHAM TRADING LIMITED,24.96,27/03/2019
Commercial,Parking & Infrastructure,Equipment and Materials Purcha,0060126171,GREENHAM TRADING LIMITED,113.40,27/03/2019
Commercial,Parking & Infrastructure,Equipment and Materials Purcha,0060124447,INSTARMAC GROUP PLC,"1,851.72",01/03/2019
Commercial,Parking & Infrastructure,Grounds maintenance,0060125029,GRISTWOOD & TOM LTD,"9,700.00",28/03/2019
Commercial,Parking & Infrastructure,Grounds maintenance,0060125064,GRISTWOOD & TOM LTD,"13,580.00",28/03/2019
Commercial,Parking & Infrastructure,Grounds maintenance,0060124717,GLENDALE COUNTRYSIDE LTD,653.60,21/03/2019
Commercial,Parking & Infrastructure,Grounds maintenance,0060124720,GLENDALE COUNTRYSIDE LTD,288.35,21/03/2019
Commercial,Parking & Infrastructure,Grounds maintenance,0060077100,GRISTWOOD & TOM LTD,"3,458.65",19/03/2019
Commercial,Parking & Infrastructure,Grounds maintenance,0060125024,GRISTWOOD & TOM LTD,805.50,28/03/2019
Commercial,Parking & Infrastructure,Grounds maintenance,0060125087,GRISTWOOD & TOM LTD,388.00,28/03/2019
Commercial,Parking & Infrastructure,Other Services,0060125098,INSTITUTE OF CHARTERED FORESTERS,305.00,13/03/2019
Commercial,Parking & Infrastructure,Grounds maintenance,0060124693,GLENDALE COUNTRYSIDE LTD,315.06,21/03/2019
Commercial,Parking & Infrastructure,Grounds maintenance,0060124694,GLENDALE COUNTRYSIDE LTD,"1,066.33",21/03/2019
Commercial,Parking & Infrastructure,Grounds maintenance,0060124721,GLENDALE COUNTRYSIDE LTD,127.64,21/03/2019
Commercial,Parking & Infrastructure,Grounds maintenance,0060124727,GLENDALE COUNTRYSIDE LTD,"1,584.82",21/03/2019
Commercial,Parking & Infrastructure,Grounds maintenance,0060124729,GLENDALE COUNTRYSIDE LTD,372.82,21/03/2019
Commercial,Parking & Infrastructure,Grounds maintenance,0060124732,GLENDALE COUNTRYSIDE LTD,968.52,21/03/2019
Commercial,Parking & Infrastructure,Grounds maintenance,0060124924,GLENDALE COUNTRYSIDE LTD,"3,145.50",21/03/2019
Commercial,Parking & Infrastructure,Grounds maintenance,0080023939,SL TREECARE LTD,"1,850.00",11/03/2019
Commercial,Parking & Infrastructure,Other Services,0060123756,LONDON COUNCILS,"15,464.00",07/03/2019
Commercial,Parking & Infrastructure,Miscellaneous Expenses,0060126151,NSL LTD,888.75,20/03/2019
Commercial,Parking & Infrastructure,Software Licences & Support,0060126158,NSL LTD,"1,259.32",20/03/2019
Commercial,Parking & Infrastructure,Miscellaneous Expenses,0060126234,NSL LTD,"1,302.10",26/03/2019
Commercial,Parking & Infrastructure,Electricity,0060125685,BARNET LIGHTING SERVICES LTD,"580,692.28",13/03/2019
Commercial,Parking & Infrastructure,Electricity,0060126818,NETWORK RAIL ACCOUNTS RECEIVABLE,69.58,28/03/2019
Commercial,Public Health,Other Establishments - Third P,0060122992,REDACTED - PERSONAL DATA,500.00,06/03/2019
Commercial,Public Health,Consultants Fees,0060125527,VENN GROUP LIMITED,"1,500.00",19/03/2019
Commercial,Public Health,Health authorities - Third Par,0060124799,CENTRAL LONDONCOMMUNITY HEALTHCARE,"384,000.00",05/03/2019
Commercial,Public Health,Health authorities - Third Par,0060124829,CENTRAL LONDONCOMMUNITY HEALTHCARE,"86,448.00",05/03/2019
Commercial,Public Health,Health authorities - Third Par,0060125154,VALE DRIVE MEDICAL CENTRE,"1,425.00",06/03/2019
Commercial,Public Health,Health authorities - Third Par,0060125924,ADDINGTON MEDICAL CENTRE,75.00,18/03/2019
Commercial,Public Health,Health authorities - Third Par,0060125179,COLINDALE MEDICAL CENTRE,"1,425.00",06/03/2019
Commercial,Public Health,Health authorities - Third Par,0060125814,SUPREME MEDICAL CENTRE,"1,075.00",20/03/2019
Commercial,Public Health,Health authorities - Third Par,0060125818,SUPREME MEDICAL CENTRE,"1,025.00",20/03/2019
Commercial,Public Health,Other Local Authorities - Thir,0060124838,LEEDS CITY COUNCIL,134.00,14/03/2019
Commercial,Public Health,Other Local Authorities - Thir,0060125254,LEEDS CITY COUNCIL,134.00,14/03/2019
Commercial,Public Health,Other Local Authorities - Thir,0060126137,LEEDS CITY COUNCIL,134.00,28/03/2019
Commercial,Public Health,Other Local Authorities - Thir,0060126140,LEEDS CITY COUNCIL,379.00,28/03/2019
Commercial,Public Health,Other Local Authorities - Thir,0060122842,CITY OF LONDON,"56,847.95",01/03/2019
Commercial,Public Health,Health authorities - Third Par,0060125138,CENTRAL LONDONCOMMUNITY HEALTHCARE,293.54,12/03/2019
Commercial,Public Health,Health authorities - Third Par,0060125153,CENTRAL LONDONCOMMUNITY HEALTHCARE,"2,507.00",12/03/2019
Commercial,Public Health,Health authorities - Third Par,0060125214,CENTRAL LONDONCOMMUNITY HEALTHCARE,276.89,12/03/2019
Commercial,Public Health,Health authorities - Third Par,0060126430,CENTRAL LONDONCOMMUNITY HEALTHCARE,751.24,22/03/2019
Commercial,Public Health,Health authorities - Third Par,0060126458,CENTRAL LONDONCOMMUNITY HEALTHCARE,281.12,22/03/2019
Commercial,Public Health,Health authorities - Third Par,0060126464,CENTRAL LONDONCOMMUNITY HEALTHCARE,362.66,22/03/2019
Commercial,Public Health,Health authorities - Third Par,0060117014,CENTRAL & NORTH WEST LONDON NHS FT,235.74,13/03/2019
Commercial,Public Health,Health authorities - Third Par,0060123294,CENTRAL & NORTH WEST LONDON NHS FT,"125,660.51",12/03/2019
Commercial,Public Health,Health authorities - Third Par,0060125244,CENTRAL & NORTH WEST LONDON NHS FT,"1,147.07",12/03/2019
Commercial,Public Health,Health authorities - Third Par,0060125285,CENTRAL & NORTH WEST LONDON NHS FT,"176,730.98",12/03/2019
Commercial,Public Health,Health authorities - Third Par,0060125804,CENTRAL & NORTH WEST LONDON NHS FT,"11,500.00",15/03/2019
Commercial,Public Health,Health authorities - Third Par,0060125868,CENTRAL & NORTH WEST LONDON NHS FT,"31,699.98",18/03/2019
Commercial,Public Health,Health authorities - Third Par,0060126730,LONDON NORTH WEST HEALTHCARE NHS TRUST,"7,720.00",29/03/2019
Commercial,Public Health,Health authorities - Third Par,0060126806,LONDON NORTH WEST HEALTHCARE NHS TRUST,"7,282.00",29/03/2019
Commercial,Public Health,Health authorities - Third Par,0060120669,KING'S COLLEGE HOSPITAL NHS FOUNDATION T,368.31,05/03/2019
Commercial,Public Health,Health authorities - Third Par,0060123243,KING'S COLLEGE HOSPITAL NHS FOUNDATION T,441.76,06/03/2019
Commercial,Public Health,Health authorities - Third Par,0060124666,KING'S COLLEGE HOSPITAL NHS FOUNDATION T,272.26,21/03/2019
Commercial,Public Health,Health authorities - Third Par,0060125206,KING'S COLLEGE HOSPITAL NHS FOUNDATION T,29.00,06/03/2019
Commercial,Public Health,Health authorities - Third Par,0060108087,OXFORD UNIVERSITY HOSPITALS NHS FOUNDATI,-254.60,06/03/2019
Commercial,Public Health,Health authorities - Third Par,0060125193,OXFORD UNIVERSITY HOSPITALS NHS FOUNDATI,337.00,06/03/2019
Commercial,Public Health,Health authorities - Third Par,0060125123,ROYAL BERKSHIRE NHS FOUNDATION TRUST,131.00,06/03/2019
Commercial,Public Health,Health authorities - Third Par,0060123869,UNIVERSITY HOSPITALS BIRMINGHAM,140.00,07/03/2019
Commercial,Public Health,Health authorities - Third Par,0060124861,UNIVERSITY HOSPITALS BIRMINGHAM,140.00,01/03/2019
Commercial,Public Health,Health authorities - Third Par,0060106437,CHELSEA & WESTMINSTER HOSPITAL NHS,"-30,258.07",01/03/2019
Commercial,Public Health,Health authorities - Third Par,0060106471,CHELSEA & WESTMINSTER HOSPITAL NHS,"-52,799.35",01/03/2019
Commercial,Public Health,Health authorities - Third Par,0060123290,CHELSEA & WESTMINSTER HOSPITAL NHS,"41,528.71",01/03/2019
Commercial,Public Health,Health authorities - Third Par,0060123293,CHELSEA & WESTMINSTER HOSPITAL NHS,"41,528.71",01/03/2019
Commercial,Public Health,Health authorities - Third Par,0060123303,CHELSEA & WESTMINSTER HOSPITAL NHS,111.01,01/03/2019
Commercial,Public Health,Health authorities - Third Par,0060125362,CHELSEA & WESTMINSTER HOSPITAL NHS,119.46,12/03/2019
Commercial,Public Health,Health authorities - Third Par,0060125459,CHELSEA & WESTMINSTER HOSPITAL NHS,"41,528.71",12/03/2019
Commercial,Public Health,Health authorities - Third Par,0060125491,CHELSEA & WESTMINSTER HOSPITAL NHS,97.53,12/03/2019
Commercial,Public Health,Health authorities - Third Par,0060126311,CHELSEA & WESTMINSTER HOSPITAL NHS,364.19,21/03/2019
Commercial,Public Health,Health authorities - Third Par,0060124415,GUY'S AND ST THOMAS' NHS FT,"5,909.27",14/03/2019
Commercial,Public Health,Health authorities - Third Par,0060124660,UNIVERSITY HOSPITALS BRISTOL,225.87,19/03/2019
Commercial,Public Health,Health authorities - Third Par,0060124856,BARTS HEALTH NHS TRUST,"3,366.88",21/03/2019
Commercial,Public Health,Health authorities - Third Par,0060125324,WESTERN SUSSEX HOSPITALS NHS FT,174.20,28/03/2019
Commercial,Public Health,Health authorities - Third Par,0060118950,KINGSTON HOSPITAL NHS FOUNDATION TRUST,562.75,18/03/2019
Commercial,Public Health,Health authorities - Third Par,0060125603,KINGSTON HOSPITAL NHS FOUNDATION TRUST,744.75,28/03/2019
Commercial,Public Health,Health authorities - Third Par,0060126827,KINGSTON HOSPITAL NHS FOUNDATION TRUST,"5,231.32",28/03/2019
Commercial,Public Health,Health authorities - Third Par,0060126135,WALSALL HEALTHCARE NHS TRUST,271.00,22/03/2019
Commercial,Public Health,Health authorities - Third Par,0060126322,WALSALL HEALTHCARE NHS TRUST,137.00,22/03/2019
Commercial,Public Health,Health authorities - Third Par,0060126731,PROVIDE,264.00,29/03/2019
Commercial,Public Health,Health authorities - Third Par,0060126789,PROVIDE,132.00,29/03/2019
Commercial,Public Health,Health authorities - Third Par,0060126745,LUTON AND DUNSTABLE U H,457.56,29/03/2019
Commercial,Public Health,Health authorities - Third Par,0060126815,LUTON AND DUNSTABLE U H,152.52,29/03/2019
Commercial,Public Health,Health authorities - Third Par,0060120448,LEWISHAM AND GREENWICH NHS TRUST,-129.85,06/03/2019
Commercial,Public Health,Health authorities - Third Par,0060125081,LEWISHAM AND GREENWICH NHS TRUST,324.78,06/03/2019
Commercial,Public Health,Health authorities - Third Par,0060125231,LEWISHAM AND GREENWICH NHS TRUST,50.50,21/03/2019
Commercial,Public Health,Health authorities - Third Par,0060125119,THE ROYAL BOURNEMOUTH AND CHRISTCHURCH H,251.52,06/03/2019
Commercial,Public Health,Health authorities - Third Par,0060125149,THE ROYAL BOURNEMOUTH AND CHRISTCHURCH H,362.36,06/03/2019
Commercial,Public Health,Health authorities - Third Par,0060125279,THE ROYAL BOURNEMOUTH AND CHRISTCHURCH H,140.68,28/03/2019
Commercial,Public Health,Health authorities - Third Par,0060124870,HOMERTON UNIVERSITY HOSPITAL NHS FOUNDAT,"4,963.58",04/03/2019
Commercial,Public Health,Health authorities - Third Par,0060124890,HOMERTON UNIVERSITY HOSPITAL NHS FOUNDAT,"2,954.25",04/03/2019
Commercial,Public Health,Health authorities - Third Par,0060126778,HOMERTON UNIVERSITY HOSPITAL NHS FOUNDAT,"5,906.52",29/03/2019
Commercial,Public Health,Health authorities - Third Par,0060126206,COUNTY DURHAM AND DARLINGTON NHS TRUST,135.00,20/03/2019
Commercial,Public Health,Health authorities - Third Par,0060124252,BARKING HAVERING REDBRIDGE NHS TRUST,168.71,14/03/2019
Commercial,Public Health,Health authorities - Third Par,0060125172,ROYAL UNITED HOSPITALS BATH NHS FOUNDATI,144.15,07/03/2019
Commercial,Public Health,Health authorities - Third Par,0060123871,MIDLANDS PARTNERSHIP NHS FT,109.00,27/03/2019
Commercial,Public Health,Health authorities - Third Par,0060126758,MIDLANDS PARTNERSHIP NHS FT,266.72,29/03/2019
Commercial,Public Health,Health authorities - Third Par,0060126797,MIDLANDS PARTNERSHIP NHS FT,133.36,29/03/2019
Commercial,Public Health,Health authorities - Third Par,0060125841,THE DERWENT MEDICAL CENTRE,250.00,27/03/2019
Commercial,Public Health,Health authorities - Third Par,0060126007,OAKLODGE MEDICAL CENTRE,230.00,27/03/2019
Commercial,Public Health,Health authorities - Third Par,0060126002,LONGROVE SURGERY,60.00,19/03/2019
Commercial,Public Health,Health authorities - Third Par,0060125997,THE CLINIC,130.00,20/03/2019
Commercial,Public Health,Health authorities - Third Par,0060126031,ST ANDREWS MEDICAL PRACTICE,20.00,19/03/2019
Commercial,Public Health,Health authorities - Third Par,0060125908,EAST BARNET HEALTH CENTRE,80.00,18/03/2019
Commercial,Public Health,Health authorities - Third Par,0060125740,MOUNTFIELD SURGERY,90.00,14/03/2019
Commercial,Public Health,Health authorities - Third Par,0060125990,THE OLD COURTHOUSE SURGERY,870.00,19/03/2019
Commercial,Public Health,Health authorities - Third Par,0060125984,PHGH DOCTORS,280.00,19/03/2019
Commercial,Public Health,Health authorities - Third Par,0060125974,SQUIRES LANE MEDICAL PRACTICE,490.00,19/03/2019
Commercial,Public Health,Health authorities - Third Par,0060125812,ADDINGTON MEDICAL CENTRE,90.00,26/03/2019
Commercial,Public Health,Health authorities - Third Par,0060125834,COLNEY HATCH LANE SURGERY,50.00,26/03/2019
Commercial,Public Health,Health authorities - Third Par,0060125981,THE EVERGLADE MEDICAL PRACTICE,450.00,19/03/2019
Commercial,Public Health,Health authorities - Third Par,0060125901,GREENFIELD MEDICAL CENTRE,80.00,18/03/2019
Commercial,Public Health,Health authorities - Third Par,0060125936,HEATHFIELDE MEDICAL CENTRE,20.00,18/03/2019
Commercial,Public Health,Health authorities - Third Par,0060125932,HENDON WAY SURGERY,210.00,18/03/2019
Commercial,Public Health,Health authorities - Third Par,0060126094,LANGSTONE WAY SURGERY,220.00,19/03/2019
Commercial,Public Health,Health authorities - Third Par,0060125898,REDACTED - PERSONAL DATA,400.00,19/03/2019
Commercial,Public Health,Health authorities - Third Par,0060125876,REDACTED - PERSONAL DATA,160.00,19/03/2019
Commercial,Public Health,Health authorities - Third Par,0060125807,COLINDALE MEDICAL CENTRE,490.00,15/03/2019
Commercial,Public Health,Health authorities - Third Par,0060126107,THE PHOENIX PRACTICE,90.00,19/03/2019
Commercial,Public Health,Health authorities - Third Par,0060125795,MEDICAL CENTRE,140.00,27/03/2019
Commercial,Public Health,Health authorities - Third Par,0060125802,REDACTED - PERSONAL DATA,100.00,26/03/2019
Commercial,Public Health,Other Establishments - Third P,0060124932,GOOD IMPRESSIONS (LONDON) LIMITED,210.00,28/03/2019
Commercial,Public Health,Other Establishments - Third P,0060125121,GOOD IMPRESSIONS (LONDON) LIMITED,180.00,28/03/2019
Commercial,Public Health,Other Establishments - Third P,0060126805,NHS BARNET CCG,"10,000.00",28/03/2019
Commercial,Public Health,Professional Services,0060125132,HEALTH EDUCATION PARTNERSHIP LTD,"24,500.00",28/03/2019
Commercial,Public Health,Other Establishments - Third P,0060124476,YOUTH REALITIES,"9,970.00",28/03/2019
Commercial,Public Health,Other Establishments - Third P,0060124875,STEPJOCKEY LTD,"3,614.91",01/03/2019
Commercial,Public Health,Other Establishments - Third P,0010015088,REDACTED - PERSONAL DATA,"1,300.00",28/03/2019
Commercial,Public Health,Professional Services,0080024314,REDACTED - PERSONAL DATA,"9,000.00",28/03/2019
COMMERCIAL,REGIONAL ENTERPRISE,Consultants Fees,0060124395,TROWERS & HAMLINS,"1,012.66",27/03/2019
COMMERCIAL,REGIONAL ENTERPRISE,Professional Services,0060126285,CHOICES FOR GRAHAME PARK,"585,411.49",28/03/2019
COMMERCIAL,REGIONAL ENTERPRISE,Professional Services,0060126788,COPPING JOYCE SURVEYORS LIMITED,"2,000.00",28/03/2019
Commercial,Regional Enterprise,Other Services,0060125234,CONWAY AECOM LTD,"2,023.27",07/03/2019
Commercial,Regional Enterprise,Other Services,0060125277,CONWAY AECOM LTD,"1,002.99",07/03/2019
Commercial,Regional Enterprise,Other Services,0060125297,CONWAY AECOM LTD,"42,330.48",07/03/2019
Commercial,Regional Enterprise,Other Services,0060125334,CONWAY AECOM LTD,"42,330.48",28/03/2019
Commercial,Regional Enterprise,Other Services,0060122741,THAMES WATER UTILITIES LIMITED,109.57,27/03/2019
Commercial,Regional Enterprise,Other Services,0010015022,KENT COUNTY COUNCIL (KCS),71.80,15/03/2019
Commercial,Regional Enterprise,Other Services,0060124607,KENT COUNTY COUNCIL (KCS),69.55,06/03/2019
Commercial,Regional Enterprise,Other Services,0060124648,KENT COUNTY COUNCIL (KCS),36.90,06/03/2019
Commercial,Regional Enterprise,Other Services,0060124900,KENT COUNTY COUNCIL (KCS),26.28,06/03/2019
Commercial,Regional Enterprise,Other Services,0060124904,KENT COUNTY COUNCIL (KCS),62.92,06/03/2019
Commercial,Regional Enterprise,Other Services,0060124929,KENT COUNTY COUNCIL (KCS),48.71,06/03/2019
Commercial,Regional Enterprise,Other Services,0060124937,KENT COUNTY COUNCIL (KCS),32.74,07/03/2019
Commercial,Regional Enterprise,Other Services,0060124942,KENT COUNTY COUNCIL (KCS),39.95,06/03/2019
Commercial,Regional Enterprise,Other Services,0060124943,KENT COUNTY COUNCIL (KCS),32.59,06/03/2019
Commercial,Regional Enterprise,Other Services,0060124953,KENT COUNTY COUNCIL (KCS),26.56,06/03/2019
Commercial,Regional Enterprise,Other Services,0060124959,KENT COUNTY COUNCIL (KCS),50.92,06/03/2019
Commercial,Regional Enterprise,Other Services,0060124981,KENT COUNTY COUNCIL (KCS),55.43,06/03/2019
Commercial,Regional Enterprise,Other Services,0010015021,AFFINITY WATER LIMITED,25.34,06/03/2019
Commercial,Regional Enterprise,Other Services,0060113027,AFFINITY WATER LIMITED,30.36,06/03/2019
Commercial,Regional Enterprise,Other Services,0060122639,AFFINITY WATER LIMITED,176.14,07/03/2019
Commercial,Regional Enterprise,Other Services,0060122705,AFFINITY WATER LIMITED,18.72,06/03/2019
Commercial,Regional Enterprise,Other Services,0060125055,AFFINITY WATER LIMITED,42.94,06/03/2019
Commercial,Regional Enterprise,Other Services,0060125040,CASTLE WATER LTD,18.21,26/03/2019
Commercial,Regional Enterprise,Advertising,0060111063,TMP (UK) LTD,260.00,19/03/2019
Commercial,Regional Enterprise,Advertising,0060114756,TMP (UK) LTD,197.00,19/03/2019
Commercial,Regional Enterprise,Advertising,0060115986,TMP (UK) LTD,350.00,19/03/2019
Commercial,Regional Enterprise,Advertising,0060116027,TMP (UK) LTD,404.00,19/03/2019
Commercial,Regional Enterprise,Advertising,0060120394,TMP (UK) LTD,314.00,19/03/2019
Commercial,Regional Enterprise,Advertising,0060121096,TMP (UK) LTD,260.00,26/03/2019
Commercial,Regional Enterprise,Advertising,0060121271,TMP (UK) LTD,170.00,15/03/2019
Commercial,Regional Enterprise,Advertising,0060121289,TMP (UK) LTD,233.00,15/03/2019
Commercial,Regional Enterprise,Advertising,0060121290,TMP (UK) LTD,99.00,15/03/2019
Commercial,Regional Enterprise,Advertising,0060121336,TMP (UK) LTD,278.00,26/03/2019
Commercial,Regional Enterprise,Advertising,0060121382,TMP (UK) LTD,278.00,26/03/2019
Commercial,Regional Enterprise,Advertising,0060121401,TMP (UK) LTD,90.00,15/03/2019
Commercial,Regional Enterprise,Advertising,0060121418,TMP (UK) LTD,90.00,15/03/2019
Commercial,Regional Enterprise,Advertising,0060122498,TMP (UK) LTD,206.00,19/03/2019
Commercial,Regional Enterprise,Advertising,0060122552,TMP (UK) LTD,135.00,19/03/2019
Commercial,Regional Enterprise,Advertising,0060123614,TMP (UK) LTD,170.00,15/03/2019
Commercial,Regional Enterprise,Advertising,0060123640,TMP (UK) LTD,99.00,15/03/2019
Commercial,Regional Enterprise,Advertising,0060123677,TMP (UK) LTD,161.00,27/03/2019
Commercial,Regional Enterprise,Advertising,0060123761,TMP (UK) LTD,90.00,15/03/2019
Commercial,Regional Enterprise,Advertising,0060123797,TMP (UK) LTD,170.00,15/03/2019
Commercial,Regional Enterprise,Advertising,0060124391,TMP (UK) LTD,117.00,15/03/2019
Commercial,Regional Enterprise,Advertising,0060124394,TMP (UK) LTD,90.00,15/03/2019
Commercial,Regional Enterprise,Advertising,0060124650,TMP (UK) LTD,188.00,15/03/2019
Commercial,Regional Enterprise,Advertising,0060124662,TMP (UK) LTD,179.00,15/03/2019
Commercial,Regional Enterprise,Advertising,0060124697,TMP (UK) LTD,260.00,26/03/2019
Commercial,Regional Enterprise,Advertising,0060125025,TMP (UK) LTD,99.00,15/03/2019
Commercial,Regional Enterprise,Advertising,0060125072,TMP (UK) LTD,108.00,15/03/2019
Commercial,Regional Enterprise,Advertising,0060126250,TMP (UK) LTD,260.00,26/03/2019
Commercial,Regional Enterprise,Advertising,0060126283,TMP (UK) LTD,260.00,26/03/2019
Commercial,Regional Enterprise,Advertising,0060126305,TMP (UK) LTD,260.00,26/03/2019
Commercial,Regional Enterprise,Advertising,0060126325,TMP (UK) LTD,296.00,26/03/2019
Commercial,Regional Enterprise,Advertising,0060126340,TMP (UK) LTD,278.00,26/03/2019
Commercial,Regional Enterprise,Advertising,0060126342,TMP (UK) LTD,81.00,26/03/2019
Commercial,Regional Enterprise,Advertising,0060126359,TMP (UK) LTD,90.00,21/03/2019
Commercial,Regional Enterprise,Other Services,0060125664,CONWAY AECOM LTD,"1,512.33",28/03/2019
Commercial,Regional Enterprise,Other Services,0060125706,CONWAY AECOM LTD,"6,017.02",27/03/2019
Commercial,Regional Enterprise,Other Services,0060125216,CONWAY AECOM LTD,"1,400.00",27/03/2019
Commercial,Regional Enterprise,Other Services,0060125321,CONWAY AECOM LTD,"1,400.00",20/03/2019
Commercial,Regional Enterprise,Capital Construction and Works,0060126449,CONWAY AECOM LTD,"2,163.74",25/03/2019
Commercial,Regional Enterprise,Professional Services,0060123699,WATES LIVING SPACE,296.14,12/03/2019
Commercial,Regional Enterprise,Professional Services,0060126265,WATES LIVING SPACE,296.14,28/03/2019
Commercial,Regional Enterprise,Professional Services,0060126394,WATES LIVING SPACE,"1,008.67",27/03/2019
Commercial,Regional Enterprise,Professional Services,0060126935,WATES LIVING SPACE,28.20,29/03/2019
Commercial,Regional Enterprise,Professional Services,0060126982,WATES LIVING SPACE,28.20,29/03/2019
Commercial,Regional Enterprise,Advertising,0060115142,TMP (UK) LTD,287.00,11/03/2019
Commercial,Regional Enterprise,Advertising,0060122712,TMP (UK) LTD,287.00,29/03/2019
Commercial,Regional Enterprise,Advertising,0060123747,TMP (UK) LTD,171.00,15/03/2019
Commercial,Regional Enterprise,Capital Construction and Works,0060125221,CONWAY AECOM LTD,131.49,28/03/2019
Commercial,Regional Enterprise,Other Services,0060125276,CONWAY AECOM LTD,560.00,28/03/2019
Commercial,Regional Enterprise,Equipment and Materials Purcha,0060125296,CONWAY AECOM LTD,288.75,28/03/2019
Commercial,Regional Enterprise,Other Services,0060126252,RM COUNTRYSIDE SERVICES LTD,525.00,25/03/2019
Commercial,Regional Enterprise,Other Services,0060126276,RM COUNTRYSIDE SERVICES LTD,411.00,25/03/2019
Commercial,Regional Enterprise,Other Services,0060126312,RM COUNTRYSIDE SERVICES LTD,100.00,25/03/2019
Commercial,Regional Enterprise,Other Services,0060126314,RM COUNTRYSIDE SERVICES LTD,911.00,25/03/2019
Commercial,Regional Enterprise,Other Services,0060126347,RM COUNTRYSIDE SERVICES LTD,540.00,25/03/2019
Commercial,Regional Enterprise,Other Services,0060126977,LOCAL GOVERNMENT TECHNICAL ADVISERS GROU,690.00,29/03/2019
Commercial,Regional Enterprise,Fees and Charges,0080023778,REDACTED - PERSONAL DATA,"6,000.00",15/03/2019
Commercial,Regional Enterprise,Fees and Charges,0080023451,REDACTED - PERSONAL DATA,"27,000.00",15/03/2019
Commercial,Regional Enterprise,Fees and Charges,0080024365,REDACTED - PERSONAL DATA,"10,835.00",25/03/2019
Commercial,Regional Enterprise,Other Services,0060125712,CONWAY AECOM LTD,"21,418.31",27/03/2019
Commercial,Regional Enterprise,Other Services,0060122996,CONWAY AECOM LTD,85.05,06/03/2019
Commercial,Regional Enterprise,Other Services,0060123010,CONWAY AECOM LTD,157.50,27/03/2019
Commercial,Regional Enterprise,Other Services,0060124984,CONWAY AECOM LTD,176.96,05/03/2019
Commercial,Regional Enterprise,Other Services,0060126438,CONWAY AECOM LTD,"1,789.29",26/03/2019
Commercial,Regional Enterprise,Other Services,0060117724,CONWAY AECOM LTD,358.05,06/03/2019
Commercial,Regional Enterprise,Other Services,0060119263,CONWAY AECOM LTD,518.70,06/03/2019
Commercial,Regional Enterprise,Other Services,0060119309,CONWAY AECOM LTD,739.20,06/03/2019
Commercial,Regional Enterprise,Other Services,0060125641,CONWAY AECOM LTD,441.00,27/03/2019
Commercial,Regional Enterprise,Other Services,0060125659,CONWAY AECOM LTD,"1,260.00",27/03/2019
Commercial,Regional Enterprise,Other Services,0060125667,CONWAY AECOM LTD,"1,612.80",27/03/2019
Commercial,Regional Enterprise,Other Services,0060125690,CONWAY AECOM LTD,945.00,27/03/2019
Commercial,Regional Enterprise,Other Services,0060125963,CONWAY AECOM LTD,313.95,19/03/2019
Commercial,Regional Enterprise,Other Services,0060125979,CONWAY AECOM LTD,945.00,19/03/2019
Commercial,Regional Enterprise,Other Services,0060125999,CONWAY AECOM LTD,781.20,19/03/2019
Commercial,Regional Enterprise,Grant Payments,0080023971,REDACTED - PERSONAL DATA,114.00,22/03/2019
Commercial,Regional Enterprise,Grant Payments,0080023973,REDACTED - PERSONAL DATA,114.00,22/03/2019
Commercial,Regional Enterprise,Grant Payments,0080023982,REDACTED - PERSONAL DATA,114.00,22/03/2019
Commercial,Regional Enterprise,Grant Payments,0080023984,REDACTED - PERSONAL DATA,114.00,22/03/2019
Commercial,Regional Enterprise,Grant Payments,0080023889,REDACTED - PERSONAL DATA,"8,088.00",07/03/2019
Commercial,Regional Enterprise,Grant Payments,0080024321,REDACTED - PERSONAL DATA,"3,900.00",21/03/2019
Commercial,Regional Enterprise,Equipment and Materials Purcha,0060125884,REDACTED - PERSONAL DATA,"80,000.00",21/03/2019
Commercial,Regional Enterprise,Other Establishments - Third P,0080022621,TRANSPORT FOR LONDON,"1,627,259.53",11/03/2019
Commercial,Regional Enterprise,Fees and Charges,0080024308,REDACTED - PERSONAL DATA,969.74,15/03/2019
Commercial,Regional Enterprise,Consultants Fees,0060125313,VALUATION OFFICE AGENCY,"1,454.30",28/03/2019
Commercial,Regional Enterprise,Consultants Fees,0060126470,SAPIENS CONSULTANCY,"4,680.50",25/03/2019
COMMERCIAL,REGIONAL ENTERPRISE,Equipment and Materials Purcha,0060126057,CONWAY AECOM LTD,"3,944.36",19/03/2019
COMMERCIAL,REGIONAL ENTERPRISE,Other Services,0060123513,CONWAY AECOM LTD,"100,000.00",06/03/2019
COMMERCIAL,REGIONAL ENTERPRISE,Other Services,0010015070,CONWAY AECOM LTD,"12,307.58",19/03/2019
COMMERCIAL,REGIONAL ENTERPRISE,Other Services,0060124442,CONWAY AECOM LTD,"92,164.90",14/03/2019
COMMERCIAL,REGIONAL ENTERPRISE,Other Services,0060126004,CONWAY AECOM LTD,"12,735.60",19/03/2019
COMMERCIAL,REGIONAL ENTERPRISE,Other Services,0060126408,CONWAY AECOM LTD,"9,644.41",25/03/2019
COMMERCIAL,REGIONAL ENTERPRISE,Other Services,0060126416,CONWAY AECOM LTD,"8,391.32",25/03/2019
COMMERCIAL,REGIONAL ENTERPRISE,Other Services,0060126949,CONWAY AECOM LTD,"104,598.77",29/03/2019
COMMERCIAL,REGIONAL ENTERPRISE,Other Services,0060116464,CONWAY AECOM LTD,"1,106.04",14/03/2019
COMMERCIAL,REGIONAL ENTERPRISE,Other Services,0060116476,CONWAY AECOM LTD,"1,375.53",06/03/2019
COMMERCIAL,REGIONAL ENTERPRISE,Other Services,0060116489,CONWAY AECOM LTD,"1,260.49",11/03/2019
COMMERCIAL,REGIONAL ENTERPRISE,Other Services,0060125341,CONWAY AECOM LTD,"5,867.64",28/03/2019
COMMERCIAL,REGIONAL ENTERPRISE,Other Services,0010015092,CONWAY AECOM LTD,870.83,29/03/2019
COMMERCIAL,REGIONAL ENTERPRISE,Other Services,0060101308,CONWAY AECOM LTD,"32,195.70",06/03/2019
COMMERCIAL,REGIONAL ENTERPRISE,Other Services,0060101428,CONWAY AECOM LTD,"-4,218.51",04/03/2019
COMMERCIAL,REGIONAL ENTERPRISE,Other Services,0060124927,CONWAY AECOM LTD,"5,987.08",04/03/2019
COMMERCIAL,REGIONAL ENTERPRISE,Other Services,0060124964,CONWAY AECOM LTD,"8,066.14",04/03/2019
COMMERCIAL,REGIONAL ENTERPRISE,Capital Construction and Works,0060125265,CONWAY AECOM LTD,"13,626.92",07/03/2019
COMMERCIAL,REGIONAL ENTERPRISE,Capital Construction and Works,0060125266,CONWAY AECOM LTD,"2,864.29",28/03/2019
COMMERCIAL,REGIONAL ENTERPRISE,Other Services,0060125268,CONWAY AECOM LTD,"9,030.00",07/03/2019
COMMERCIAL,REGIONAL ENTERPRISE,Other Services,0060125301,CONWAY AECOM LTD,"1,853.01",07/03/2019
COMMERCIAL,REGIONAL ENTERPRISE,Other Services,0060125315,CONWAY AECOM LTD,"2,542.07",07/03/2019
COMMERCIAL,REGIONAL ENTERPRISE,Capital Construction and Works,0060125332,CONWAY AECOM LTD,"2,690.03",07/03/2019
COMMERCIAL,REGIONAL ENTERPRISE,Other Services,0060125518,CONWAY AECOM LTD,"3,248.94",19/03/2019
COMMERCIAL,REGIONAL ENTERPRISE,Other Services,0060125530,CONWAY AECOM LTD,"2,780.23",11/03/2019
COMMERCIAL,REGIONAL ENTERPRISE,Other Services,0060125653,CONWAY AECOM LTD,"3,309.16",27/03/2019
COMMERCIAL,REGIONAL ENTERPRISE,Other Services,0060126243,CONWAY AECOM LTD,"7,485.21",20/03/2019
COMMERCIAL,REGIONAL ENTERPRISE,Professional Services,0060121790,PENNA PLC,"4,563.00",14/03/2019
COMMERCIAL,REGIONAL ENTERPRISE,Consultants Fees,0060119765,NETWORK RAIL INFRASTRUCTURE LTD,"235,125.09",06/03/2019
COMMERCIAL,REGIONAL ENTERPRISE,Consultants Fees,0060122885,NETWORK RAIL INFRASTRUCTURE LTD,"81,485.46",29/03/2019
COMMERCIAL,REGIONAL ENTERPRISE,Consultants Fees,0060124079,NETWORK RAIL INFRASTRUCTURE LTD,"1,455,381.59",06/03/2019
COMMERCIAL,REGIONAL ENTERPRISE,Consultants Fees,0060124086,NETWORK RAIL INFRASTRUCTURE LTD,"1,484,196.93",06/03/2019
COMMERCIAL,REGIONAL ENTERPRISE,Consultants Fees,0060124102,NETWORK RAIL INFRASTRUCTURE LTD,"337,665.01",06/03/2019
COMMERCIAL,REGIONAL ENTERPRISE,Consultants Fees,0060124105,NETWORK RAIL INFRASTRUCTURE LTD,"661,692.58",06/03/2019
COMMERCIAL,REGIONAL ENTERPRISE,Consultants Fees,0060124257,NETWORK RAIL INFRASTRUCTURE LTD,"810,814.48",29/03/2019
COMMERCIAL,REGIONAL ENTERPRISE,Consultants Fees,0060124402,NETWORK RAIL INFRASTRUCTURE LTD,"1,442,551.71",29/03/2019
COMMERCIAL,REGIONAL ENTERPRISE,Equipment and Materials Purcha,0060126900,UK POWER NETWORKS,"87,642.96",29/03/2019
COMMERCIAL,REGIONAL ENTERPRISE,Equipment and Materials Purcha,0060126946,UK POWER NETWORKS,900.29,29/03/2019
COMMERCIAL,REGIONAL ENTERPRISE,Equipment and Materials Purcha,0060124881,TRANSPORT FOR LONDON,"40,639.96",05/03/2019
COMMERCIAL,REGIONAL ENTERPRISE,Other Services,0060123752,NATIONWIDE DATA COLLECTION,500.00,07/03/2019
COMMERCIAL,REGIONAL ENTERPRISE,Venue Hire,0060124833,CLAREMONT FREE CHURCH,200.00,07/03/2019
COMMERCIAL,REGIONAL ENTERPRISE,Equipment and Materials Purcha,0060125798,JOHN GRAHAM CONSTRUCTION LTD,"202,033.16",19/03/2019
COMMERCIAL,REGIONAL ENTERPRISE,Other Services,0060039348,CONWAY AECOM LTD,"-10,364.60",04/03/2019
COMMERCIAL,REGIONAL ENTERPRISE,Grant Payments,0080023769,DP BUILDERS DISABLED ADAPTATIONS,"1,668.00",01/03/2019
COMMERCIAL,REGIONAL ENTERPRISE,Grant Payments,0080023908,REDACTED - PERSONAL DATA,"3,235.00",04/03/2019
COMMERCIAL,REGIONAL ENTERPRISE,Other Services,0060126751,CONWAY AECOM LTD,"3,967.01",28/03/2019
COMMERCIAL,REGIONAL ENTERPRISE,Other Services,0010015074,CYCLE CONFIDENT LTD,"6,326.94",21/03/2019
COMMERCIAL,REGIONAL ENTERPRISE,Other Services,0060125369,CYCLE CONFIDENT LTD,"22,786.76",28/03/2019
COMMERCIAL,REGIONAL ENTERPRISE,Other Services,0060125482,CYCLE CONFIDENT LTD,"4,275.00",28/03/2019
COMMERCIAL,REGIONAL ENTERPRISE,Other Services,0060125488,CYCLE CONFIDENT LTD,"13,904.30",28/03/2019
COMMERCIAL,REGIONAL ENTERPRISE,Other Services,0060126099,PARKFIELD ACADEMY,"3,000.00",20/03/2019
COMMERCIAL,REGIONAL ENTERPRISE,Other Services,0060125368,CYCLE CONFIDENT LTD,"10,000.00",28/03/2019
COMMERCIAL,REGIONAL ENTERPRISE,Other Services,0060125383,THE PARDES HOUSE GRAMMAR SCHOOL,600.00,11/03/2019
COMMERCIAL,REGIONAL ENTERPRISE,Other Services,0060125311,WHITEFIELD SCHOOL ACADEMY TRUST CO.,"1,900.00",11/03/2019
COMMERCIAL,REGIONAL ENTERPRISE,Other Services,0060125610,COPTHALL SCHOOL (ACADEMY),800.00,13/03/2019
COMMERCIAL,REGIONAL ENTERPRISE,Other Services,0060125575,GRASVENOR AVENUE INFANT SCHOOL (ACA,"1,200.00",13/03/2019
COMMERCIAL,REGIONAL ENTERPRISE,Other Services,0060125607,GRASVENOR AVENUE INFANT SCHOOL (ACA,"1,200.00",13/03/2019
COMMERCIAL,REGIONAL ENTERPRISE,Other Services,0060124565,BRIGHT KIDZ,554.00,14/03/2019
COMMERCIAL,REGIONAL ENTERPRISE,Other Services,0060125604,THE HYDE EF ACADEMY,"1,500.00",13/03/2019
COMMERCIAL,REGIONAL ENTERPRISE,Other Services,0060125404,BROADFIELDS ACADEMY,"1,900.00",11/03/2019
COMMERCIAL,REGIONAL ENTERPRISE,Other Services,0060125636,BROADFIELDS ACADEMY,"1,350.00",13/03/2019
COMMERCIAL,REGIONAL ENTERPRISE,Other Services,0060125239,PARKFIELD ACADEMY,"1,500.00",11/03/2019
COMMERCIAL,REGIONAL ENTERPRISE,Other Services,0060125583,MILLBROOK PARK PRIMARY SCHOOL,"1,400.00",13/03/2019
COMMERCIAL,REGIONAL ENTERPRISE,Other Services,0060125704,WATLING PARK SCHOOL,"1,500.00",13/03/2019
COMMERCIAL,REGIONAL ENTERPRISE,Other Services,0060125395,ASHMOLE PRIMARY SCHOOL,650.00,11/03/2019
COMMERCIAL,REGIONAL ENTERPRISE,Other Services,0060126194,ARTS DEPOT PRODUCTIONS LTD,"8,742.00",20/03/2019
COMMERCIAL,REGIONAL ENTERPRISE,Other Services,0060125466,CYCLE CONFIDENT LTD,"45,000.00",28/03/2019
COMMERCIAL,REGIONAL ENTERPRISE,Other Services,0080024402,STOPWATCH THEATRE COMPANY,"8,500.00",21/03/2019
COMMERCIAL,REGIONAL ENTERPRISE,Other Services,0080024409,ZINC COMMUNICATE,"1,335.00",21/03/2019
COMMERCIAL,REGIONAL ENTERPRISE,Advertising,0060122631,TMP (UK) LTD,624.00,28/03/2019
COMMERCIAL,REGIONAL ENTERPRISE,Advertising,0060122733,TMP (UK) LTD,583.50,28/03/2019
COMMERCIAL,REGIONAL ENTERPRISE,Advertising,0060122756,TMP (UK) LTD,556.50,28/03/2019
COMMERCIAL,REGIONAL ENTERPRISE,Advertising,0060121213,TMP (UK) LTD,215.00,19/03/2019
COMMERCIAL,REGIONAL ENTERPRISE,Advertising,0060121416,TMP (UK) LTD,135.00,19/03/2019
COMMERCIAL,REGIONAL ENTERPRISE,Advertising,0060123700,TMP (UK) LTD,242.00,15/03/2019
COMMERCIAL,REGIONAL ENTERPRISE,Advertising,0060123799,TMP (UK) LTD,287.00,15/03/2019
COMMERCIAL,REGIONAL ENTERPRISE,Advertising,0060123659,TMP (UK) LTD,417.00,15/03/2019
COMMERCIAL,REGIONAL ENTERPRISE,Other Services,0060124172,CONWAY AECOM LTD,"5,926.36",06/03/2019
COMMERCIAL,REGIONAL ENTERPRISE,Other Services,0060125720,CONWAY AECOM LTD,478.28,27/03/2019
COMMERCIAL,REGIONAL ENTERPRISE,Equipment and Materials Purcha,0060117220,BOUYGUES E&S INFRASTRUCTURE UK LTD,"-4,959.83",28/03/2019
COMMERCIAL,REGIONAL ENTERPRISE,Other Services,0060124168,THAMES WATER UTILITIES LIMITED,277.00,12/03/2019
COMMERCIAL,REGIONAL ENTERPRISE,Advertising,0060123828,TMP (UK) LTD,242.00,15/03/2019
COMMERCIAL,REGIONAL ENTERPRISE,Other Services,0060125652,CONWAY AECOM LTD,"10,418.53",28/03/2019
COMMERCIAL,REGIONAL ENTERPRISE,Other Services,0060125655,CONWAY AECOM LTD,"3,903.21",14/03/2019
COMMERCIAL,REGIONAL ENTERPRISE,Other Services,0060125677,CONWAY AECOM LTD,"8,000.28",27/03/2019
COMMERCIAL,REGIONAL ENTERPRISE,Other Services,0060124948,CONWAY AECOM LTD,"2,459.19",04/03/2019
COMMERCIAL,REGIONAL ENTERPRISE,Other Services,0060125672,CONWAY AECOM LTD,"8,836.96",28/03/2019
COMMERCIAL,REGIONAL ENTERPRISE,Other Services,0060125709,CONWAY AECOM LTD,"3,879.05",27/03/2019
COMMERCIAL,REGIONAL ENTERPRISE,Equipment and Materials Purcha,0060114853,BOUYGUES E&S INFRASTRUCTURE UK LTD,"1,090.71",28/03/2019
COMMERCIAL,REGIONAL ENTERPRISE,Other Services,0060120349,LONDON BUSES SERVICES LIMITED,723.29,05/03/2019
COMMERCIAL,REGIONAL ENTERPRISE,Advertising,0060123698,TMP (UK) LTD,305.00,15/03/2019
COMMERCIAL,REGIONAL ENTERPRISE,Advertising,0060123771,TMP (UK) LTD,498.00,15/03/2019
COMMERCIAL,REGIONAL ENTERPRISE,Other Services,0060125241,CONWAY AECOM LTD,"2,738.54",28/03/2019
COMMERCIAL,REGIONAL ENTERPRISE,Other Services,0060125248,CONWAY AECOM LTD,750.00,28/03/2019
COMMERCIAL,REGIONAL ENTERPRISE,Other Services,0060125273,CONWAY AECOM LTD,"52,445.37",28/03/2019
COMMERCIAL,REGIONAL ENTERPRISE,Other Services,0060125309,CONWAY AECOM LTD,"30,002.97",28/03/2019
COMMERCIAL,REGIONAL ENTERPRISE,Other Services,0060125342,CONWAY AECOM LTD,"30,272.45",28/03/2019
COMMERCIAL,REGIONAL ENTERPRISE,Other Services,0060125532,CONWAY AECOM LTD,"7,805.18",26/03/2019
COMMERCIAL,REGIONAL ENTERPRISE,Other Services,0060121830,CONWAY AECOM LTD,"39,958.80",15/03/2019
COMMERCIAL,REGIONAL ENTERPRISE,Other Services,0060122865,CONWAY AECOM LTD,"39,958.80",12/03/2019
COMMERCIAL,REGIONAL ENTERPRISE,Other Services,0060125228,CONWAY AECOM LTD,"19,479.31",28/03/2019
COMMERCIAL,REGIONAL ENTERPRISE,Other Services,0060125243,CONWAY AECOM LTD,"20,034.85",28/03/2019
COMMERCIAL,REGIONAL ENTERPRISE,Other Services,0060125263,CONWAY AECOM LTD,"57,706.20",28/03/2019
COMMERCIAL,REGIONAL ENTERPRISE,Other Services,0060125264,CONWAY AECOM LTD,"37,297.79",28/03/2019
COMMERCIAL,REGIONAL ENTERPRISE,Other Services,0060125267,CONWAY AECOM LTD,"12,112.34",28/03/2019
COMMERCIAL,REGIONAL ENTERPRISE,Other Services,0060125314,CONWAY AECOM LTD,"30,555.20",28/03/2019
COMMERCIAL,REGIONAL ENTERPRISE,Other Services,0060125971,CONWAY AECOM LTD,"50,699.22",20/03/2019
COMMERCIAL,REGIONAL ENTERPRISE,Other Services,0060126034,CONWAY AECOM LTD,"23,102.08",19/03/2019
COMMERCIAL,REGIONAL ENTERPRISE,Other Services,0060126045,CONWAY AECOM LTD,"6,735.78",19/03/2019
COMMERCIAL,REGIONAL ENTERPRISE,Other Services,0060126051,CONWAY AECOM LTD,"3,939.20",19/03/2019
COMMERCIAL,REGIONAL ENTERPRISE,Other Services,0060126066,CONWAY AECOM LTD,"18,365.50",19/03/2019
COMMERCIAL,REGIONAL ENTERPRISE,Other Services,0060126105,CONWAY AECOM LTD,"3,431.84",19/03/2019
COMMERCIAL,REGIONAL ENTERPRISE,Other Services,0060126108,CONWAY AECOM LTD,"33,616.35",19/03/2019
COMMERCIAL,REGIONAL ENTERPRISE,Other Services,0060126113,CONWAY AECOM LTD,"15,346.80",19/03/2019
COMMERCIAL,REGIONAL ENTERPRISE,Capital Construction and Works,0060126415,CONWAY AECOM LTD,"2,205.48",25/03/2019
COMMERCIAL,REGIONAL ENTERPRISE,Capital Construction and Works,0060124940,CONWAY AECOM LTD,"2,381.63",04/03/2019
COMMERCIAL,REGIONAL ENTERPRISE,Other Services,0060125233,CONWAY AECOM LTD,"4,580.00",20/03/2019
COMMERCIAL,REGIONAL ENTERPRISE,Professional Services,0060125372,BLAKEDOWN LANDSCAPE (SE) LTD,"244,241.57",11/03/2019
COMMERCIAL,REGIONAL ENTERPRISE,Professional Services,0060126196,APPLEYARD & TREW LLP,"12,876.18",20/03/2019
COMMERCIAL,REGIONAL ENTERPRISE,Consultants Fees,0060123381,GOOD IMPRESSIONS (LONDON) LIMITED,120.00,07/03/2019
COMMERCIAL,REGIONAL ENTERPRISE,Professional Services,0060124516,EMERGENT VERNACULAR ARCHITECTURE LTD,"3,666.90",20/03/2019
COMMERCIAL,REGIONAL ENTERPRISE,Building Repairs & Maintenance,0060124831,GUILD ARCHITECTURAL RESTORATION LTD,"50,270.20",15/03/2019
COMMERCIAL,REGIONAL ENTERPRISE,Other Services,0010015064,METRO RADIO CARS,140.00,18/03/2019
Commissioning,Commissioning,Professional Services,0060126739,CAPITA BUSINESS SERVICES LTD,"10,005.98",29/03/2019
Commissioning,Commissioning,Professional Services,0060126823,CAPITA BUSINESS SERVICES LTD,"9,774.50",29/03/2019
Commissioning,Commissioning,Professional Services,0060126831,CAPITA BUSINESS SERVICES LTD,"7,448.98",29/03/2019
Commissioning,Commissioning,Professional Services,0060126849,CAPITA BUSINESS SERVICES LTD,"12,401.08",29/03/2019
Commissioning,Commissioning,Cleaning and domestic material,0060119009,CHURCHILL CONTRACT SERVICES,664.48,06/03/2019
Commissioning,Commissioning,Cleaning and domestic material,0060123133,CHURCHILL CONTRACT SERVICES,89.55,21/03/2019
Commissioning,Commissioning,Professional Services,0060118378,MYSTERY SHOPPERS LTD,478.00,06/03/2019
Commissioning,Commissioning,Professional Services,0060120493,MYSTERY SHOPPERS LTD,341.20,06/03/2019
Commissioning,Commissioning,Professional Services,0060122512,MYSTERY SHOPPERS LTD,364.30,06/03/2019
Commissioning,Commissioning,Professional Services,0060122855,MYSTERY SHOPPERS LTD,634.90,06/03/2019
Commissioning,Commissioning,Professional Services,0060122166,PRICEWATERHOUSE COOPERS,"13,000.00",13/03/2019
Commissioning,Commissioning,Advertising,0060123708,THE EMERGENCY PLANNING SOCIETY,399.00,07/03/2019
Commissioning,Commissioning,Consultants Fees,0060124862,ANDREW PRITCHARD LIMITED,"12,000.00",11/03/2019
Commissioning,Commissioning,Professional Services,0040003162,OFFICE DEPOT UK LTD,49.79,01/03/2019
Commissioning,Commissioning,Grant Payments,0080023656,ART AGAINST KNIVES,"2,434.75",20/03/2019
Commissioning,Commissioning,Professional Services,0060120797,PENNA PLC,"5,622.75",20/03/2019
Commissioning,Commissioning,Professional Services,0060120825,PENNA PLC,"11,245.50",14/03/2019
Commissioning,Commissioning,Professional Services,0060123312,PENNA PLC,"11,934.00",14/03/2019
Commissioning,Commissioning,Professional Services,0060125211,PENNA PLC,"10,040.62",29/03/2019
Commissioning,Commissioning,Professional Services,0060124254,GRANT THORNTON UK LLP,"2,194.00",13/03/2019
Commissioning,Commissioning,Professional Services,0060125348,L G FUTURES,"6,090.00",13/03/2019
Commissioning,Commissioning,Other Services,0080024484,FAMILY FUND TRADING (CRISIS FUND),"50,000.00",21/03/2019
Commissioning,Commissioning,Professional Services,0060125872,THE BARNETGROUP LIMITED,"72,846.49",18/03/2019
Commissioning,Commissioning,Training,0060123642,ROYAL AIR FORCE MUSEUM,"1,320.00",18/03/2019
Commissioning,Commissioning,Training,0060125075,ROYAL AIR FORCE MUSEUM,292.50,28/03/2019
Commissioning,Commissioning,Training,0060124921,GOOD IMPRESSIONS (LONDON) LIMITED,270.00,28/03/2019
Commissioning,Commissioning,Training,0060124963,GOOD IMPRESSIONS (LONDON) LIMITED,360.00,28/03/2019
Commissioning,Commissioning,Consultants Fees,0060123180,GATENBY SANDERSON,"6,756.24",06/03/2019
Commissioning,Commissioning,Consultants Fees,0060123189,GATENBY SANDERSON,"7,579.20",06/03/2019
Commissioning,Commissioning,Consultants Fees,0060124216,GATENBY SANDERSON,"3,979.08",20/03/2019
Commissioning,Commissioning,Training,0010014413,MOTT MACDONALD LTD/CAMBRIDGE EDUCATION,500.00,06/03/2019
Commissioning,Commissioning,Training,0060125124,SHA'ARE TSEDEK NORTH LONDON REFORM SYNAG,560.00,11/03/2019
Commissioning,Commissioning,Training,0060125881,SHA'ARE TSEDEK NORTH LONDON REFORM SYNAG,150.00,21/03/2019
Commissioning,Commissioning,Training,0060125938,SHA'ARE TSEDEK NORTH LONDON REFORM SYNAG,150.00,20/03/2019
Commissioning,Commissioning,Training,0060124458,RESOLVEX PEOPLE SOLUTIONS LIMITED,549.10,20/03/2019
Commissioning,Commissioning,Training,0060125565,RESOLVEX PEOPLE SOLUTIONS LIMITED,549.10,14/03/2019
Commissioning,Commissioning,Training,0060123627,JUDELINE NICOLAS,"1,289.25",12/03/2019
Commissioning,Commissioning,Training,0060125510,JUDELINE NICOLAS,691.20,28/03/2019
Commissioning,Commissioning,Training,0060125964,JUDELINE NICOLAS,650.00,29/03/2019
Commissioning,Commissioning,Agency/Interim Hays,0010015051,MATRIX SCM LTD,"258,241.20",08/03/2019
Commissioning,Commissioning,Agency/Interim Hays,0060125349,MATRIX SCM LTD,"246,473.76",12/03/2019
Commissioning,Commissioning,Agency/Interim Hays,0060126030,MATRIX SCM LTD,"246,514.28",19/03/2019
Commissioning,Commissioning,Agency/Interim Hays,0060126483,MATRIX SCM LTD,"246,043.62",26/03/2019
Commissioning,Commissioning,Training,0080020625,OXFORD BROOKES UNIVERSITY,"1,290.00",25/03/2019
Commissioning,Commissioning,Equipment and Materials Purcha,0010015089,OCS GROUP UK LIMITED,"47,269.00",29/03/2019
Commissioning,Commissioning,Equipment and Materials Purcha,0060117544,OCS GROUP UK LIMITED,"2,037.50",21/03/2019
Commissioning,Commissioning,Equipment and Materials Purcha,0060124570,OCS GROUP UK LIMITED,"5,075.00",07/03/2019
Commissioning,Commissioning,Equipment and Materials Purcha,0060125079,OCS GROUP UK LIMITED,"47,269.00",22/03/2019
Commissioning,Commissioning,Other Transfer Payments to Soc,0060126566,BARNET MENCAP,"20,000.00",26/03/2019
Commissioning,Commissioning,Other Transfer Payments to Soc,0060106448,THE BARNETGROUP LIMITED,"2,100.00",06/03/2019
Commissioning,Commissioning,Other Transfer Payments to Soc,0060123682,VICTIM SUPPORT SERVICES,"5,000.00",07/03/2019
Commissioning,Commissioning,Other Transfer Payments to Soc,0060123743,VICTIM SUPPORT SERVICES,"5,000.00",07/03/2019
Commissioning,Commissioning,Miscellaneous Expenses,0080024329,INSTITUE OF LICENSING LIMITED,"1,500.00",20/03/2019
Commissioning,Commissioning,Consultants Fees,0060124375,LONDON BOROUGH OF ISLINGTON,"10,765.21",29/03/2019
Commissioning,Commissioning,Consultants Fees,0060126575,LEDNET,"2,500.00",26/03/2019
Commissioning,Commissioning,Professional Services,0060124855,WSP UK LIMITED,"2,160.00",07/03/2019
Commissioning,Commissioning,Miscellaneous Expenses,0060124597,BOUYGUES E&S INFRASTRUCTURE UK LTD,"2,392.32",14/03/2019
Commissioning,Commissioning,Professional Services,0060124854,STEER DAVIES & GLEAVE LTD,"3,422.19",13/03/2019
Commissioning,Commissioning,Professional Services,0060124871,STEER DAVIES & GLEAVE LTD,"6,800.00",21/03/2019
Commissioning,Commissioning,Government Grants,0080023921,CABINET OFFICE,"18,000.00",08/03/2019
Commissioning,Commissioning,Professional Services,0060121733,LONDON BOROUGH OF CAMDEN,"11,930.49",04/03/2019
Commissioning,Commissioning,Professional Services,0060126160,LONDON BOROUGH OF CAMDEN,"12,485.80",25/03/2019
Commissioning,Commissioning,Professional Services,0080024188,REDACTED - PERSONAL DATA,"6,061.20",14/03/2019
Commissioning,Commissioning,Advertising,0060124770,NEWSQUEST (LONDON) LIMITED,"1,000.00",18/03/2019
Commissioning,Commissioning,Advertising,0060124803,NEWSQUEST (LONDON) LIMITED,"2,500.00",18/03/2019
Commissioning,Commissioning,Other Services,0080024316,STEWARD AND STEWARD LIMITED,875.00,15/03/2019
Commissioning,Commissioning,Other Services,0060123446,GOOD IMPRESSIONS (LONDON) LIMITED,90.00,07/03/2019
Commissioning,Commissioning,Professional Services,0060124911,GOOD IMPRESSIONS (LONDON) LIMITED,120.00,28/03/2019
Commissioning,Commissioning,Professional Services,0060124956,GOOD IMPRESSIONS (LONDON) LIMITED,540.00,28/03/2019
Commissioning,Commissioning,Publications,0060123766,GOOD IMPRESSIONS (LONDON) LIMITED,180.00,29/03/2019
Commissioning,Commissioning,Training,0060125827,DOD'S PARLIAMENTARY,885.00,26/03/2019
Commissioning,Commissioning,Grant Payments,0060124738,THE BARNETGROUP LIMITED,"42,170.25",04/03/2019
Commissioning,Commissioning,Professional Services,0060124802,GROUNDWORK LONDON,"5,000.00",26/03/2019
Commissioning,Commissioning,Professional Services,0060125760,LONDON BOROUGH OF EALING,"11,930.25",14/03/2019
Commissioning,Commissioning,Professional Services,0060125877,THE BARNETGROUP LIMITED,"6,768.05",29/03/2019
Commissioning,Commissioning,Other Services,0060125891,THE BARNETGROUP LIMITED,"44,112.98",29/03/2019
Commissioning,Commissioning,Professional Services,0060126304,MOTT MACDONALD LTD,"22,544.80",29/03/2019
COMMISSIONING,COMMISSIONING GROUP,Ttl IT & Comms,0060124454,MISL LTD,"1,474.16",14/03/2019
COMMISSIONING,COMMISSIONING GROUP,Ttl IT & Comms,0060125095,MISL LTD,"1,261.46",27/03/2019
COMMISSIONING,COMMISSIONING GROUP,Ttl IT & Comms,0060125358,MISL LTD,25.00,28/03/2019
COMMISSIONING,COMMISSIONING GROUP,Capital Construction and Works,0060124906,CONWAY AECOM LTD,"13,000.00",14/03/2019
COMMISSIONING,COMMISSIONING GROUP,Ttl IT & Comms,0060125303,CONWAY AECOM LTD,"3,478.34",20/03/2019
COMMISSIONING,COMMISSIONING GROUP,Ttl IT & Comms,0060125689,CONWAY AECOM LTD,"11,233.42",14/03/2019
COMMISSIONING,COMMISSIONING GROUP,Ttl IT & Comms,0060126095,CONWAY AECOM LTD,"20,071.64",19/03/2019
COMMISSIONING,COMMISSIONING GROUP,Ttl IT & Comms,0060125711,BOUYGUES E&S INFRASTRUCTURE UK LTD,"1,782.50",28/03/2019
COMMISSIONING,COMMISSIONING GROUP,Building Repairs & Maintenance,0060125729,BOUYGUES E&S INFRASTRUCTURE UK LTD,483.00,28/03/2019
COMMISSIONING,COMMISSIONING GROUP,Building Repairs & Maintenance,0060124251,SECOM PLC,55.00,14/03/2019
COMMISSIONING,COMMISSIONING GROUP,Building Repairs & Maintenance,0060124416,SECOM PLC,"1,453.00",14/03/2019
COMMISSIONING,COMMISSIONING GROUP,Equipment and Materials Purcha,0060125713,GEMCO EQUIPMENT LTD,"5,275.00",26/03/2019
COMMISSIONING,COMMISSIONING GROUP,Building Repairs & Maintenance,0060126162,VALUATION OFFICE AGENCY,"2,500.00",20/03/2019
COMMISSIONING,COMMISSIONING GROUP,Building Repairs & Maintenance,0060126200,VALUATION OFFICE AGENCY,"2,250.00",20/03/2019
COMMISSIONING,COMMISSIONING GROUP,Professional Services,0060124181,SURFACING STANDARDS LTD,"1,055.00",12/03/2019
COMMISSIONING,COMMISSIONING GROUP,Building Repairs & Maintenance,0010014971,S W BRUCE & CO LTD,"-60,409.00",11/03/2019
COMMISSIONING,COMMISSIONING GROUP,Building Repairs & Maintenance,0060125524,S W BRUCE & CO LTD,888.52,11/03/2019
COMMISSIONING,COMMISSIONING GROUP,Capital Construction and Works,0060125545,S W BRUCE & CO LTD,707.96,11/03/2019
COMMISSIONING,COMMISSIONING GROUP,Building Repairs & Maintenance,0060125559,S W BRUCE & CO LTD,"5,611.67",11/03/2019
COMMISSIONING,COMMISSIONING GROUP,Capital Construction and Works,0060124235,MULALLEY & COMPANY LTD,"10,641.85",06/03/2019
COMMISSIONING,COMMISSIONING GROUP,Capital Construction and Works,0060124698,CARMELCREST LTD,"12,500.36",19/03/2019
COMMISSIONING,COMMISSIONING GROUP,Equipment and Materials Purcha,0060124740,JOHN GRAHAM CONSTRUCTION LTD,"847,307.48",14/03/2019
COMMISSIONING,COMMISSIONING GROUP,Training,0060124969,GOOD IMPRESSIONS (LONDON) LIMITED,270.00,28/03/2019
COMMISSIONING,COMMISSIONING GROUP,Capital Construction and Works,0010015047,CHOICES FOR GRAHAME PARK,"2,500,000.00",08/03/2019
COMMISSIONING,COMMISSIONING GROUP,Training,0060114519,STAIRWAY CONSULTING LTD,669.30,29/03/2019
COMMISSIONING,COMMISSIONING GROUP,Training,0060117958,STAIRWAY CONSULTING LTD,"1,338.60",06/03/2019
COMMISSIONING,COMMISSIONING GROUP,Equipment and Materials Purcha,0060125768,JOHN GRAHAM CONSTRUCTION LTD,"1,239,257.67",21/03/2019
COMMISSIONING,COMMISSIONING GROUP,Advertising,0060115096,TMP (UK) LTD,287.00,11/03/2019
COMMISSIONING,COMMISSIONING GROUP,Other Services,0060124902,CONWAY AECOM LTD,64.66,14/03/2019
COMMISSIONING,COMMISSIONING GROUP,Other Services,0060124907,CONWAY AECOM LTD,87.11,14/03/2019
COMMISSIONING,COMMISSIONING GROUP,Other Services,0060124914,CONWAY AECOM LTD,42.70,14/03/2019
COMMISSIONING,COMMISSIONING GROUP,Other Services,0060124971,CONWAY AECOM LTD,75.64,14/03/2019
COMMISSIONING,COMMISSIONING GROUP,Equipment and Materials Purcha,0060116325,BOUYGUES E&S INFRASTRUCTURE UK LTD,"3,459.41",06/03/2019
COMMISSIONING,COMMISSIONING GROUP,Other Services,0060125062,BOUYGUES E&S INFRASTRUCTURE UK LTD,"1,124.75",14/03/2019
COMMISSIONING,COMMISSIONING GROUP,Other Services,0060125666,BOUYGUES E&S INFRASTRUCTURE UK LTD,"3,322.91",28/03/2019
COMMISSIONING,COMMISSIONING GROUP,Other Services,0060122682,TMP (UK) LTD,453.00,05/03/2019
COMMISSIONING,COMMISSIONING GROUP,Advertising,0060125500,TMP (UK) LTD,556.50,19/03/2019
COMMISSIONING,COMMISSIONING GROUP,Other Services,0060125269,CONWAY AECOM LTD,73.20,28/03/2019
COMMISSIONING,COMMISSIONING GROUP,Equipment and Materials Purcha,0060125295,CONWAY AECOM LTD,295.12,28/03/2019
COMMISSIONING,COMMISSIONING GROUP,Other Services,0060125674,CONWAY AECOM LTD,835.48,28/03/2019
COMMISSIONING,COMMISSIONING GROUP,Capital Construction and Works,0060126384,SUN HILL SURVEYS,900.00,25/03/2019
COMMISSIONING,COMMISSIONING GROUP,Equipment and Materials Purcha,0060124980,BARNET LOCK CENTRE LTD.,107.43,05/03/2019
COMMISSIONING,COMMISSIONING GROUP,Building Repairs & Maintenance,0060122028,S W BRUCE & CO LTD,440.10,11/03/2019
Corporate Accounting,Corporate Accounting,Other Local Authorities - Thir,EBX0272825,GREATER LONDON AUTHORITY,"236,146.00",07/03/2019
Corporate Accounting,Corporate Accounting,Other Local Authorities - Thir,EBX0271350,GREATER LONDON AUTHORITY,"4,363,157.80",04/03/2019
Corporate Accounting,Corporate Accounting,Government departments - Third,0080023050,DEPARTMENT FOR COMMUNITIES & LOCAL GOV.,"438,098.57",04/03/2019
Corporate Accounting,Corporate Accounting,Other Transfer Payments to Soc,0080024199,WIRECARD (FS INSTANT 2040880892973),"27,796.40",13/03/2019
Corporate Accounting,Corporate Accounting,Other Transfer Payments to Soc,0080024200,WIRECARD (FS ONGOING 2040881670310,"5,734.05",13/03/2019
Corporate Accounting,Corporate Accounting,Employee Expenses,0060125945,EDENRED,956.25,19/03/2019
Corporate Accounting,Corporate Accounting,Fees and Charges,0080023624,JOHN GRAHAM CONSTRUCTION LTD,"4,000.00",01/03/2019
COST CENTRES BLOCKED,COST CENTRES BLOCKED,Other Services,0060108309,WESTCOTEC LIMITED,"2,100.00",29/03/2019
Delivery Units,Adults and Communities,Other Services,0060124848,CIVICA UK LIMITED,"1,718.75",22/03/2019
Delivery Units,Adults and Communities,Other Services,0060124866,CIVICA UK LIMITED,"1,943.75",22/03/2019
Delivery Units,Adults and Communities,Translation Exp / Interpret,0060120748,D.A. LANGUAGES LTD,22.00,15/03/2019
Delivery Units,Adults and Communities,Voluntary Associations - Third,0020043838,SANCTUARY HOUSING ASSOCIATION,"6,268.71",18/03/2019
Delivery Units,Adults and Communities,Voluntary Associations - Third,0020043829,ELEANOR PALMER TRUST NO 2 A/C.,486.50,18/03/2019
Delivery Units,Adults and Communities,Voluntary Associations - Third,0020043826,BARNET MENCAP,"11,142.65",18/03/2019
Delivery Units,Adults and Communities,Voluntary Associations - Third,0020043828,CHRISTIAN ACTION (ENFIELD),365.80,18/03/2019
Delivery Units,Adults and Communities,Voluntary Associations - Third,0020043825,ASRA GREATER LONDON HOUSING ASSOC,379.30,18/03/2019
Delivery Units,Adults and Communities,Voluntary Associations - Third,0020043837,LINEN & WOOLLEN DRAPERS COTTAGE,730.11,18/03/2019
Delivery Units,Adults and Communities,Voluntary Associations - Third,0020043830,HABINTEG HOUSING ASSOCIATION,446.37,18/03/2019
Delivery Units,Adults and Communities,Voluntary Associations - Third,0020043835,ORCHARD HOUSING ASSOCIATION,196.62,15/03/2019
Delivery Units,Adults and Communities,Voluntary Associations - Third,0020043836,ST PANCRAS & HUMANIST H.A.,661.55,18/03/2019
Delivery Units,Adults and Communities,Other Services,0020043840,WILLOW HOUSING & CARE LTD.,711.38,18/03/2019
Delivery Units,Adults and Communities,Voluntary Associations - Third,0020043831,JEWISH COMMUNITY HOUSING ASSOCIATIO,568.17,18/03/2019
Delivery Units,Adults and Communities,Voluntary Associations - Third,0020043833,METROPOLITAN SUPPORT TRUST,502.00,18/03/2019
Delivery Units,Adults and Communities,Voluntary Associations - Third,0020043834,METROPOLITAN SUPPORT TRUST,"5,400.00",18/03/2019
Delivery Units,Adults and Communities,Voluntary Associations - Third,0020043839,SCOTSCARE,361.52,18/03/2019
Delivery Units,Adults and Communities,Equipment and Materials Purcha,0060117367,VISION AID TECHNOLOGIES LTD,"1,253.82",07/03/2019
Delivery Units,Adults and Communities,Travelling Expenses,0010015061,M1 EXPRESS CAR SERVICES,136.00,15/03/2019
Delivery Units,Adults and Communities,Travelling Expenses,0060125224,M1 EXPRESS CAR SERVICES,126.00,14/03/2019
Delivery Units,Adults and Communities,Travelling Expenses,0060125225,M1 EXPRESS CAR SERVICES,236.00,14/03/2019
Delivery Units,Adults and Communities,Travelling Expenses,0060125257,M1 EXPRESS CAR SERVICES,127.00,15/03/2019
Delivery Units,Adults and Communities,Other Services,0060120717,D.A. LANGUAGES LTD,27.00,26/03/2019
Delivery Units,Adults and Communities,Other Services,0060123207,D.A. LANGUAGES LTD,48.83,05/03/2019
Delivery Units,Adults and Communities,Other Services,0060124538,D.A. LANGUAGES LTD,95.50,05/03/2019
Delivery Units,Adults and Communities,Other Services,0060125956,D.A. LANGUAGES LTD,19.24,26/03/2019
Delivery Units,Adults and Communities,Other Services,0060126185,D.A. LANGUAGES LTD,33.00,21/03/2019
Delivery Units,Adults and Communities,Other Services,0060126541,D.A. LANGUAGES LTD,235.80,26/03/2019
Delivery Units,Adults and Communities,Other Services,0060126571,D.A. LANGUAGES LTD,18.20,26/03/2019
Delivery Units,Adults and Communities,Other Services,0060126610,D.A. LANGUAGES LTD,110.00,26/03/2019
Delivery Units,Adults and Communities,Ttl IT & Comms,0060123697,P A CONSULTING SERVICES LTD,"38,690.03",07/03/2019
Delivery Units,Adults and Communities,Ttl IT & Comms,0060124580,P A CONSULTING SERVICES LTD,"41,000.00",21/03/2019
Delivery Units,Adults and Communities,Equipment and Materials Purcha,0060126859,MILLBROOK HEALTHCARE LTD,"37,507.78",29/03/2019
Delivery Units,Adults and Communities,Equipment and Materials Purcha,0060126937,MILLBROOK HEALTHCARE LTD,"198,811.41",29/03/2019
Delivery Units,Adults and Communities,Other Services,0010015071,BRENT COURIERS LIMITED,200.00,26/03/2019
Delivery Units,Adults and Communities,Other Services,0080024486,GENESIS HOUSING ASSOCIATION LIMITED,900.12,20/03/2019
Delivery Units,Adults and Communities,Other Transfer Payments to Soc,0060124583,KORU MEDICAL LTD,354.69,08/03/2019
Delivery Units,Adults and Communities,Other Services,0060125523,KORU MEDICAL LTD,176.55,11/03/2019
Delivery Units,Adults and Communities,Other Services,0080024726,HIGHVIEW MEDICAL CENTRE,138.00,26/03/2019
Delivery Units,Adults and Communities,Other Services,0080024086,REDACTED - PERSONAL DATA,66.50,15/03/2019
Delivery Units,Adults and Communities,Gas,0060124269,KENT COUNTY COUNCIL (KCS),316.89,04/03/2019
Delivery Units,Adults and Communities,Furniture-Purchase-Repair,0060125851,HERTFORDSHIRE SUPPLIES   COUNTY CO,37.68,18/03/2019
Delivery Units,Adults and Communities,CSG Services Contract Payment,0060125773,XEROX FINANCE LTD,1.47,21/03/2019
Delivery Units,Adults and Communities,Stationery,0040003167,OFFICE DEPOT UK LTD,203.00,07/03/2019
Delivery Units,Adults and Communities,Stationery,0040003169,OFFICE DEPOT UK LTD,214.30,07/03/2019
Delivery Units,Adults and Communities,Grounds maintenance,0060126695,REDACTED - PERSONAL DATA,100.00,27/03/2019
Delivery Units,Adults and Communities,Grounds maintenance,0060126717,REDACTED - PERSONAL DATA,100.00,27/03/2019
Delivery Units,Adults and Communities,Building Repairs & Maintenance,0060102511,S W BRUCE & CO LTD,260.00,11/03/2019
Delivery Units,Adults and Communities,Food Costs,0060124256,MULLER MILK & INGREDIENTS,0.88,08/03/2019
Delivery Units,Adults and Communities,Food Costs,0060124274,MULLER MILK & INGREDIENTS,1.78,01/03/2019
Delivery Units,Adults and Communities,Food Costs,0060124605,MULLER MILK & INGREDIENTS,0.44,15/03/2019
Delivery Units,Adults and Communities,Food Costs,0060125759,MULLER MILK & INGREDIENTS,0.88,15/03/2019
Delivery Units,Adults and Communities,Food Costs,0060125776,MULLER MILK & INGREDIENTS,0.88,29/03/2019
Delivery Units,Adults and Communities,Water Services,0060126381,CASTLE WATER LTD,16.82,25/03/2019
Delivery Units,Adults and Communities,Translation Exp / Interpret,0060123131,D.A. LANGUAGES LTD,221.75,05/03/2019
Delivery Units,Adults and Communities,Voluntary Associations - Third,0020043832,MIDDLESEX ASSOCIATION  FOR THE BLIN,"2,394.00",18/03/2019
Delivery Units,Adults and Communities,Voluntary Associations - Third,0020043827,BARNET MENCAP,"28,583.00",18/03/2019
Delivery Units,Adults and Communities,Other Transfer Payments to Soc,0060125220,BARNET CITIZENS ADVICE BUREAU,"66,220.50",11/03/2019
Delivery Units,Adults and Communities,Professional Services,0060126882,BARNET CITIZENS ADVICE BUREAU,"89,039.00",29/03/2019
Delivery Units,Adults and Communities,Voluntary Associations - Third,0020043824,AGE CONCERN,"58,333.00",18/03/2019
Delivery Units,Adults and Communities,Other Transfer Payments to Soc,0060125240,AGE CONCERN,"6,300.00",08/03/2019
Delivery Units,Adults and Communities,Grant Payments,0080024337,DEPRESSION ALLIANCE (BARNET),454.00,14/03/2019
Delivery Units,Adults and Communities,Other Transfer Payments to Soc,0060122837,ALZHEIMER'S SOCIETY (BARNET),"24,562.17",04/03/2019
Delivery Units,Adults and Communities,Other Transfer Payments to Soc,0060125001,ALZHEIMER'S SOCIETY (BARNET),"24,562.17",06/03/2019
Delivery Units,Adults and Communities,Other Transfer Payments to Soc,0060125016,ALZHEIMER'S SOCIETY (BARNET),"24,562.17",06/03/2019
Delivery Units,Adults and Communities,Other Transfer Payments to Soc,0060125310,ALZHEIMER'S SOCIETY (BARNET),"24,562.17",19/03/2019
Delivery Units,Adults and Communities,Voluntary Associations - Third,0080024021,GENESIS HOUSING ASSOCIATION LIMITED,"37,843.07",20/03/2019
Delivery Units,Adults and Communities,Other Services,0060126583,POHWER,"5,161.27",27/03/2019
Delivery Units,Adults and Communities,Other Services,0060126600,POHWER,"3,980.00",27/03/2019
Delivery Units,Adults and Communities,Other Transfer Payments to Soc,0060124882,SOUTHWARK COUNCIL,"1,491.50",04/03/2019
Delivery Units,Adults and Communities,Training,0060125665,EDGE TRAINING,875.00,13/03/2019
Delivery Units,Adults and Communities,Training,0060124482,MEDUCATE TRAINING LTD,400.00,14/03/2019
Delivery Units,Adults and Communities,Training,0060125589,HEARING IMPAIRMENT AND VISUAL IMPAIRMENT,"1,512.00",28/03/2019
Delivery Units,Adults and Communities,Other Services,0080024180,SKILLS FOR CARE LTD,708.46,14/03/2019
Delivery Units,Adults and Communities,Other Services,0080024479,CARE MONITORING 2000 LTD,"5,610.23",20/03/2019
Delivery Units,Adults and Communities,Other Services,0080024481,CARE MONITORING 2000 LTD,"5,455.98",20/03/2019
Delivery Units,Adults and Communities,Other Transfer Payments to Soc,0060125270,PRT BARNET CARERS CENTRE,"97,268.15",12/03/2019
Delivery Units,Adults and Communities,Other Transfer Payments to Soc,0080024581,REDACTED - PERSONAL DATA,160.00,27/03/2019
Delivery Units,Adults and Communities,Other Establishments - Third P,0060124250,HERTFORDSHIRE PARTNERSHIP,"111,724.50",07/03/2019
Delivery Units,Adults and Communities,Miscellaneous Expenses,0080024165,CAPSTICKS SOLICITORS,138.00,11/03/2019
Delivery Units,Adults and Communities,Miscellaneous Expenses,0080024166,CAPSTICKS SOLICITORS,105.00,11/03/2019
Delivery Units,Adults and Communities,Miscellaneous Expenses,0080024169,CAPSTICKS SOLICITORS,300.00,11/03/2019
Delivery Units,Adults and Communities,Other Services,0080024769,REDACTED - PERSONAL DATA,9.20,28/03/2019
Delivery Units,Adults and Communities,Other Services,0080024774,REDACTED - PERSONAL DATA,1.84,28/03/2019
Delivery Units,Adults and Communities,Other Services,0060126555,REDACTED - PERSONAL DATA,40.00,26/03/2019
Delivery Units,Adults and Communities,Venue Hire,0060104039,REDACTED - PERSONAL DATA,"1,600.00",20/03/2019
Delivery Units,Adults and Communities,Non Education Staff GPay,0060119725,BARNET ENFIELD & HARINGEY MENTAL,"51,174.00",14/03/2019
Delivery Units,Adults and Communities,Other Services,0060106304,LONDON BOROUGH OF EALING,258.25,06/03/2019
Delivery Units,Adults and Communities,Other Services,0060111232,LONDON BOROUGH OF EALING,285.25,29/03/2019
Delivery Units,Adults and Communities,Other Services,0060124557,D.A. LANGUAGES LTD,93.50,05/03/2019
Delivery Units,Adults and Communities,Other Services,0060126738,D.A. LANGUAGES LTD,200.75,28/03/2019
Delivery Units,Adults and Communities,Other Transfer Payments to Soc,0060126223,M1 EXPRESS CAR SERVICES,25.00,20/03/2019
Delivery Units,Adults and Communities,Translation Exp / Interpret,0060116949,D.A. LANGUAGES LTD,87.00,21/03/2019
Delivery Units,Adults and Communities,Translation Exp / Interpret,0060120710,D.A. LANGUAGES LTD,98.00,06/03/2019
Delivery Units,Adults and Communities,Translation Exp / Interpret,0060126591,D.A. LANGUAGES LTD,376.00,26/03/2019
Delivery Units,Adults and Communities,Translation Exp / Interpret,0060126652,D.A. LANGUAGES LTD,447.46,26/03/2019
Delivery Units,Adults and Communities,Translation Exp / Interpret,0060120681,D.A. LANGUAGES LTD,253.53,14/03/2019
Delivery Units,Adults and Communities,Translation Exp / Interpret,0060123251,D.A. LANGUAGES LTD,44.00,05/03/2019
Delivery Units,Adults and Communities,Translation Exp / Interpret,0060123256,D.A. LANGUAGES LTD,278.50,05/03/2019
Delivery Units,Adults and Communities,Other Services,0060108446,LONDON BOROUGH OF ENFIELD,"96,243.00",01/03/2019
Delivery Units,Adults and Communities,Other Transfer Payments to Soc,0080024565,LONDON BOROUGH OF ENFIELD,"50,933.07",21/03/2019
Delivery Units,Adults and Communities,Other Services,0060126567,THOMPSON SOLICITORS,291.67,26/03/2019
Delivery Units,Adults and Communities,Translation Exp / Interpret,0080024654,JEWISH DEAF ASSOCIATION,310.00,25/03/2019
Delivery Units,Adults and Communities,Other Transfer Payments to Soc,0060125846,LONDON BOROUGH OF HARINGEY,"39,392.20",15/03/2019
Delivery Units,Adults and Communities,Other Transfer Payments to Soc,0060120328,KORU MEDICAL LTD,"2,690.35",29/03/2019
Delivery Units,Adults and Communities,Other Transfer Payments to Soc,0060125113,KORU MEDICAL LTD,836.66,28/03/2019
Delivery Units,Adults and Communities,Other Services,0080024660,REDACTED - PERSONAL DATA,223.80,25/03/2019
Delivery Units,Adults and Communities,Other Transfer Payments to Soc,0060105571,BARTEK ZANIEWSKI LTD,"2,734.40",25/03/2019
Delivery Units,Adults and Communities,Other Transfer Payments to Soc,0060125602,EMPOWERING SOCIAL WORK LTD,700.00,14/03/2019
Delivery Units,Adults and Communities,Other Transfer Payments to Soc,0060125608,EMPOWERING SOCIAL WORK LTD,350.00,14/03/2019
Delivery Units,Adults and Communities,Other Transfer Payments to Soc,0060125637,EMPOWERING SOCIAL WORK LTD,350.00,14/03/2019
Delivery Units,Adults and Communities,Other Transfer Payments to Soc,0060126906,EDUHEZ LTD,"1,750.00",29/03/2019
Delivery Units,Adults and Communities,Other Transfer Payments to Soc,0060124876,PEACEABLE HABITATION LTD,319.08,05/03/2019
Delivery Units,Adults and Communities,Translation Exp / Interpret,0060125923,D.A. LANGUAGES LTD,27.00,27/03/2019
Delivery Units,Adults and Communities,Other Services,0060124893,KMCA CONSULTANCY SERVICES LTD,"2,163.80",04/03/2019
Delivery Units,Adults and Communities,Other Services,0080024655,REDACTED - PERSONAL DATA,399.09,25/03/2019
DELIVERY UNITS,ADULTS AND COMMUNITIES,Ttl IT & Comms,0060125294,TROJAN CONSULTANTS LTD,"1,522.00",28/03/2019
DELIVERY UNITS,ADULTS AND COMMUNITIES,Consultants Fees,0060125747,BETTER GROUP LIMITED,"133,494.00",19/03/2019
DELIVERY UNITS,ADULTS AND COMMUNITIES,Consultants Fees,0060125777,BETTER GROUP LIMITED,"133,494.00",19/03/2019
DELIVERY UNITS,ADULTS AND COMMUNITIES,Consultants Fees,0060125778,BETTER GROUP LIMITED,"133,494.00",19/03/2019
DELIVERY UNITS,ADULTS AND COMMUNITIES,Consultants Fees,0060126173,BETTER GROUP LIMITED,"133,494.00",20/03/2019
Delivery Units,Adults and Communities,Other Agencies - Third Party P,0090147000,NIGHTINGALE HOUSE,"2,666.64",06/03/2019
Delivery Units,Adults and Communities,Other Agencies - Third Party P,0090148839,JEWISH CARE,"2,610.96",14/03/2019
Delivery Units,Adults and Communities,Other Agencies - Third Party P,0090148840,JEWISH CARE,"2,356.88",14/03/2019
Delivery Units,Adults and Communities,Other Agencies - Third Party P,0090148841,JEWISH CARE,"2,610.96",14/03/2019
Delivery Units,Adults and Communities,Other Agencies - Third Party P,0090148842,JEWISH CARE,"2,356.88",14/03/2019
Delivery Units,Adults and Communities,Other Agencies - Third Party P,0090148843,JEWISH CARE,"2,610.96",14/03/2019
Delivery Units,Adults and Communities,Other Agencies - Third Party P,0090148844,JEWISH CARE,"2,610.96",14/03/2019
Delivery Units,Adults and Communities,Other Agencies - Third Party P,0090149087,JEWISH CARE,"2,356.88",15/03/2019
Delivery Units,Adults and Communities,Other Agencies - Third Party P,0090149088,JEWISH CARE,"2,356.88",15/03/2019
Delivery Units,Adults and Communities,Other Agencies - Third Party P,0090149089,JEWISH CARE,"2,356.88",15/03/2019
Delivery Units,Adults and Communities,Other Agencies - Third Party P,0090149090,JEWISH CARE,"2,610.96",15/03/2019
Delivery Units,Adults and Communities,Other Agencies - Third Party P,0090149091,JEWISH CARE,"3,400.00",15/03/2019
Delivery Units,Adults and Communities,Other Agencies - Third Party P,0090149093,JEWISH CARE,"2,610.96",15/03/2019
Delivery Units,Adults and Communities,Other Agencies - Third Party P,0090149094,JEWISH CARE,"2,610.96",15/03/2019
Delivery Units,Adults and Communities,Other Agencies - Third Party P,0090149095,JEWISH CARE,"2,356.88",15/03/2019
Delivery Units,Adults and Communities,Other Agencies - Third Party P,0090149096,JEWISH CARE,"2,610.96",15/03/2019
Delivery Units,Adults and Communities,Other Agencies - Third Party P,0090149097,JEWISH CARE,"13,362.96",15/03/2019
Delivery Units,Adults and Communities,Other Agencies - Third Party P,0090149098,JEWISH CARE,"2,356.88",15/03/2019
Delivery Units,Adults and Communities,Other Agencies - Third Party P,0090149099,JEWISH CARE,"2,356.88",15/03/2019
Delivery Units,Adults and Communities,Other Agencies - Third Party P,0090149101,JEWISH CARE,"2,356.88",15/03/2019
Delivery Units,Adults and Communities,Other Agencies - Third Party P,0090149103,JEWISH CARE,"2,368.88",15/03/2019
Delivery Units,Adults and Communities,Other Agencies - Third Party P,0090149105,JEWISH CARE,"2,356.88",15/03/2019
Delivery Units,Adults and Communities,Other Agencies - Third Party P,0090149106,JEWISH CARE,"2,356.88",15/03/2019
Delivery Units,Adults and Communities,Other Agencies - Third Party P,0090149133,JEWISH CARE,"2,357.36",15/03/2019
Delivery Units,Adults and Communities,Other Agencies - Third Party P,0090149861,JEWISH CARE,745.99,19/03/2019
Delivery Units,Adults and Communities,Other Agencies - Third Party P,0090149862,JEWISH CARE,673.39,19/03/2019
Delivery Units,Adults and Communities,Other Agencies - Third Party P,0090149863,JEWISH CARE,745.99,19/03/2019
Delivery Units,Adults and Communities,Other Agencies - Third Party P,0090149864,JEWISH CARE,673.39,19/03/2019
Delivery Units,Adults and Communities,Other Agencies - Third Party P,0090149865,JEWISH CARE,745.99,19/03/2019
Delivery Units,Adults and Communities,Other Agencies - Third Party P,0090149866,JEWISH CARE,745.99,19/03/2019
Delivery Units,Adults and Communities,Other Agencies - Third Party P,0090149867,JEWISH CARE,673.39,19/03/2019
Delivery Units,Adults and Communities,Other Agencies - Third Party P,0090149868,JEWISH CARE,673.39,19/03/2019
Delivery Units,Adults and Communities,Other Agencies - Third Party P,0090149869,JEWISH CARE,673.39,19/03/2019
Delivery Units,Adults and Communities,Other Agencies - Third Party P,0090149870,JEWISH CARE,745.99,19/03/2019
Delivery Units,Adults and Communities,Other Agencies - Third Party P,0090150086,JEWISH CARE,"-1,010.09",19/03/2019
Delivery Units,Adults and Communities,Other Agencies - Third Party P,0090150182,JEWISH CARE,971.43,19/03/2019
Delivery Units,Adults and Communities,Other Agencies - Third Party P,0090150184,JEWISH CARE,745.99,19/03/2019
Delivery Units,Adults and Communities,Other Agencies - Third Party P,0090150185,JEWISH CARE,745.99,19/03/2019
Delivery Units,Adults and Communities,Other Agencies - Third Party P,0090150186,JEWISH CARE,673.39,19/03/2019
Delivery Units,Adults and Communities,Other Agencies - Third Party P,0090150187,JEWISH CARE,745.99,19/03/2019
Delivery Units,Adults and Communities,Other Agencies - Third Party P,0090150188,JEWISH CARE,"3,817.99",19/03/2019
Delivery Units,Adults and Communities,Other Agencies - Third Party P,0090150189,JEWISH CARE,673.39,19/03/2019
Delivery Units,Adults and Communities,Other Agencies - Third Party P,0090150190,JEWISH CARE,673.39,19/03/2019
Delivery Units,Adults and Communities,Other Agencies - Third Party P,0090150191,JEWISH CARE,673.39,19/03/2019
Delivery Units,Adults and Communities,Other Agencies - Third Party P,0090150192,JEWISH CARE,673.39,19/03/2019
Delivery Units,Adults and Communities,Other Agencies - Third Party P,0090150193,JEWISH CARE,673.39,19/03/2019
Delivery Units,Adults and Communities,Other Agencies - Third Party P,0090150216,JEWISH CARE,673.53,19/03/2019
Delivery Units,Adults and Communities,Other Agencies - Third Party P,0090150235,JEWISH CARE,673.39,19/03/2019
Delivery Units,Adults and Communities,Other Agencies - Third Party P,0090151170,JEWISH CARE,"4,797.94",21/03/2019
Delivery Units,Adults and Communities,Other Agencies - Third Party P,0090151171,JEWISH CARE,"2,356.88",21/03/2019
Delivery Units,Adults and Communities,Other Agencies - Third Party P,0090148295,FERNBANK NURSING HOME.,"2,397.54",12/03/2019
Delivery Units,Adults and Communities,Other Agencies - Third Party P,0090148296,FERNBANK NURSING HOME.,"2,397.54",12/03/2019
Delivery Units,Adults and Communities,Other Agencies - Third Party P,0090148297,FERNBANK NURSING HOME.,"2,397.54",12/03/2019
Delivery Units,Adults and Communities,Other Agencies - Third Party P,0090148298,FERNBANK NURSING HOME.,"2,397.54",12/03/2019
Delivery Units,Adults and Communities,Other Agencies - Third Party P,0090148299,FERNBANK NURSING HOME.,"2,413.35",12/03/2019
Delivery Units,Adults and Communities,Other Agencies - Third Party P,0090148300,FERNBANK NURSING HOME.,"2,397.54",12/03/2019
Delivery Units,Adults and Communities,Other Agencies - Third Party P,0090148302,FERNBANK NURSING HOME.,"2,657.01",12/03/2019
Delivery Units,Adults and Communities,Other Agencies - Third Party P,0090148303,FERNBANK NURSING HOME.,"4,362.01",12/03/2019
Delivery Units,Adults and Communities,Other Agencies - Third Party P,0090148304,FERNBANK NURSING HOME.,"5,699.82",12/03/2019
Delivery Units,Adults and Communities,Other Agencies - Third Party P,0090150135,CEDARS NURSING HOME,"3,800.00",19/03/2019
Delivery Units,Adults and Communities,Other Agencies - Third Party P,0090150136,CEDARS NURSING HOME,"2,398.56",19/03/2019
Delivery Units,Adults and Communities,Other Agencies - Third Party P,0090150137,CEDARS NURSING HOME,"2,678.00",19/03/2019
Delivery Units,Adults and Communities,Other Agencies - Third Party P,0090150138,CEDARS NURSING HOME,"2,165.68",19/03/2019
Delivery Units,Adults and Communities,Other Agencies - Third Party P,0090150139,CEDARS NURSING HOME,"3,800.00",19/03/2019
Delivery Units,Adults and Communities,Other Agencies - Third Party P,0090150140,CEDARS NURSING HOME,"2,400.00",19/03/2019
Delivery Units,Adults and Communities,Other Agencies - Third Party P,0090150141,CEDARS NURSING HOME,"4,000.00",19/03/2019
Delivery Units,Adults and Communities,Other Agencies - Third Party P,0090147519,BUPA NURSING HOMES LTD - ARKLEY,"2,318.76",12/03/2019
Delivery Units,Adults and Communities,Other Agencies - Third Party P,0090147520,BUPA NURSING HOMES LTD - ARKLEY,"2,318.76",12/03/2019
Delivery Units,Adults and Communities,Other Agencies - Third Party P,0090147521,BUPA NURSING HOMES LTD - ARKLEY,"2,318.76",12/03/2019
Delivery Units,Adults and Communities,Other Agencies - Third Party P,0090147523,BUPA NURSING HOMES LTD - ARKLEY,"2,318.76",12/03/2019
Delivery Units,Adults and Communities,Other Agencies - Third Party P,0090149693,BUPA NURSING HOMES LTD - ARKLEY,"2,318.76",19/03/2019
Delivery Units,Adults and Communities,Other Agencies - Third Party P,0090149694,BUPA NURSING HOMES LTD - ARKLEY,"2,318.76",19/03/2019
Delivery Units,Adults and Communities,Other Agencies - Third Party P,0090149688,AGUDAS ISRAEL HOUSING ASSCTN LTD,"2,472.00",19/03/2019
Delivery Units,Adults and Communities,Other Agencies - Third Party P,0090149691,AGUDAS ISRAEL HOUSING ASSCTN LTD,"2,736.86",19/03/2019
Delivery Units,Adults and Communities,Other Agencies - Third Party P,0090151248,WESTMINSTER HEALTH CARE LTD,"2,399.58",22/03/2019
Delivery Units,Adults and Communities,Other Agencies - Third Party P,0090151249,WESTMINSTER HEALTH CARE LTD,"2,399.57",22/03/2019
Delivery Units,Adults and Communities,Other Agencies - Third Party P,0090151251,WESTMINSTER HEALTH CARE LTD,"18,654.78",22/03/2019
Delivery Units,Adults and Communities,Other Agencies - Third Party P,0090151254,WESTMINSTER HEALTH CARE LTD,"2,167.36",28/03/2019
Delivery Units,Adults and Communities,Other Agencies - Third Party P,0090151255,WESTMINSTER HEALTH CARE LTD,"2,167.36",28/03/2019
Delivery Units,Adults and Communities,Other Agencies - Third Party P,0090150604,WESTMINSTER HEALTH CARE LTD,"2,318.93",20/03/2019
Delivery Units,Adults and Communities,Other Agencies - Third Party P,0090144941,HENRY NIHILL HOUSE,"2,167.36",01/03/2019
Delivery Units,Adults and Communities,Other Agencies - Third Party P,0090144942,HENRY NIHILL HOUSE,"2,167.36",01/03/2019
Delivery Units,Adults and Communities,Other Agencies - Third Party P,0090144943,HENRY NIHILL HOUSE,"2,167.36",01/03/2019
Delivery Units,Adults and Communities,Other Agencies - Third Party P,0090144944,HENRY NIHILL HOUSE,"2,167.36",01/03/2019
Delivery Units,Adults and Communities,Other Agencies - Third Party P,0090144945,HENRY NIHILL HOUSE,"2,167.36",01/03/2019
Delivery Units,Adults and Communities,Other Agencies - Third Party P,0090144947,HENRY NIHILL HOUSE,"2,167.36",01/03/2019
Delivery Units,Adults and Communities,Other Agencies - Third Party P,0090144948,HENRY NIHILL HOUSE,"2,167.36",01/03/2019
Delivery Units,Adults and Communities,Other Agencies - Third Party P,0090144949,HENRY NIHILL HOUSE,851.46,01/03/2019
Delivery Units,Adults and Communities,Other Agencies - Third Party P,0090144950,HENRY NIHILL HOUSE,"1,315.90",01/03/2019
Delivery Units,Adults and Communities,Other Agencies - Third Party P,0090144953,HENRY NIHILL HOUSE,"2,167.36",01/03/2019
Delivery Units,Adults and Communities,Other Agencies - Third Party P,0090144954,HENRY NIHILL HOUSE,"2,167.36",01/03/2019
Delivery Units,Adults and Communities,Other Agencies - Third Party P,0090144955,HENRY NIHILL HOUSE,"2,167.36",01/03/2019
Delivery Units,Adults and Communities,Other Agencies - Third Party P,0090144956,HENRY NIHILL HOUSE,"2,167.36",01/03/2019
Delivery Units,Adults and Communities,Other Agencies - Third Party P,0090144957,HENRY NIHILL HOUSE,"2,167.36",01/03/2019
Delivery Units,Adults and Communities,Other Agencies - Third Party P,0090144959,HENRY NIHILL HOUSE,"2,167.36",01/03/2019
Delivery Units,Adults and Communities,Other Agencies - Third Party P,0090144960,HENRY NIHILL HOUSE,"2,137.36",01/03/2019
Delivery Units,Adults and Communities,Other Agencies - Third Party P,0090144961,HENRY NIHILL HOUSE,"2,167.36",01/03/2019
Delivery Units,Adults and Communities,Other Agencies - Third Party P,0090147004,THE LEONARD CHESHIRE FOUNDATION,"5,992.00",28/03/2019
Delivery Units,Adults and Communities,Other Agencies - Third Party P,0090147509,LIFESTYLE CARE PLC,"2,165.68",12/03/2019
Delivery Units,Adults and Communities,Other Agencies - Third Party P,0090147511,LIFESTYLE CARE PLC,"2,567.36",12/03/2019
Delivery Units,Adults and Communities,Other Agencies - Third Party P,0090147513,LIFESTYLE CARE PLC,"2,165.68",12/03/2019
Delivery Units,Adults and Communities,Other Agencies - Third Party P,0090147514,LIFESTYLE CARE PLC,"2,398.56",12/03/2019
Delivery Units,Adults and Communities,Other Agencies - Third Party P,0090147515,LIFESTYLE CARE PLC,"2,165.68",12/03/2019
Delivery Units,Adults and Communities,Other Agencies - Third Party P,0090147516,LIFESTYLE CARE PLC,"2,165.68",12/03/2019
Delivery Units,Adults and Communities,Other Agencies - Third Party P,0090147517,LIFESTYLE CARE PLC,"2,398.56",12/03/2019
Delivery Units,Adults and Communities,Other Agencies - Third Party P,0090147518,LIFESTYLE CARE PLC,"2,165.68",12/03/2019
Delivery Units,Adults and Communities,Other Agencies - Third Party P,0090148053,LIFESTYLE CARE PLC,"2,856.21",12/03/2019
Delivery Units,Adults and Communities,Other Agencies - Third Party P,0090148055,LIFESTYLE CARE PLC,"2,856.21",12/03/2019
Delivery Units,Adults and Communities,Other Agencies - Third Party P,0090149929,LIFESTYLE CARE PLC,"2,165.68",19/03/2019
Delivery Units,Adults and Communities,Other Agencies - Third Party P,0090149930,LIFESTYLE CARE PLC,"2,165.68",19/03/2019
Delivery Units,Adults and Communities,Other Agencies - Third Party P,0090147286,CARETECH COMMUNITY SERVICES LTD,"4,449.60",08/03/2019
Delivery Units,Adults and Communities,Other Agencies - Third Party P,0090149404,CARETECH COMMUNITY SERVICES LTD,"4,926.34",28/03/2019
Delivery Units,Adults and Communities,Other Agencies - Third Party P,0090146976,SONESTA NURSING HOME LTD.,"2,397.72",06/03/2019
Delivery Units,Adults and Communities,Other Agencies - Third Party P,0090146977,SONESTA NURSING HOME LTD.,"2,322.17",06/03/2019
Delivery Units,Adults and Communities,Other Agencies - Third Party P,0090146979,SONESTA NURSING HOME LTD.,"2,320.37",06/03/2019
Delivery Units,Adults and Communities,Other Agencies - Third Party P,0090146980,SONESTA NURSING HOME LTD.,"2,399.58",06/03/2019
Delivery Units,Adults and Communities,Other Agencies - Third Party P,0090146984,SONESTA NURSING HOME LTD.,"2,322.17",06/03/2019
Delivery Units,Adults and Communities,Other Agencies - Third Party P,0090146987,SONESTA NURSING HOME LTD.,"2,320.37",06/03/2019
Delivery Units,Adults and Communities,Other Agencies - Third Party P,0090147009,SONESTA NURSING HOME LTD.,"2,397.72",06/03/2019
Delivery Units,Adults and Communities,Other Agencies - Third Party P,0090147054,SONESTA NURSING HOME LTD.,"2,167.36",06/03/2019
Delivery Units,Adults and Communities,Other Agencies - Third Party P,0090147057,SONESTA NURSING HOME LTD.,"2,165.68",06/03/2019
Delivery Units,Adults and Communities,Other Agencies - Third Party P,0090150107,SONESTA NURSING HOME LTD.,"2,399.58",19/03/2019
Delivery Units,Adults and Communities,Other Agencies - Third Party P,0090150110,SONESTA NURSING HOME LTD.,"2,397.72",19/03/2019
Delivery Units,Adults and Communities,Other Agencies - Third Party P,0090150112,SONESTA NURSING HOME LTD.,"2,655.55",19/03/2019
Delivery Units,Adults and Communities,Other Agencies - Third Party P,0090143151,MEERA NURSING HOME LIMITED,"-1,660.14",08/03/2019
Delivery Units,Adults and Communities,Other Agencies - Third Party P,0090147137,MEERA NURSING HOME LIMITED,"2,445.68",08/03/2019
Delivery Units,Adults and Communities,Other Agencies - Third Party P,0090147138,MEERA NURSING HOME LIMITED,"2,445.68",08/03/2019
Delivery Units,Adults and Communities,Other Agencies - Third Party P,0090147185,MEERA NURSING HOME LIMITED,"3,079.80",08/03/2019
Delivery Units,Adults and Communities,Other Agencies - Third Party P,0090147275,MEERA NURSING HOME LIMITED,"3,167.36",08/03/2019
Delivery Units,Adults and Communities,Other Agencies - Third Party P,0090147276,MEERA NURSING HOME LIMITED,"2,446.52",08/03/2019
Delivery Units,Adults and Communities,Other Agencies - Third Party P,0090147279,MEERA NURSING HOME LIMITED,"2,209.00",08/03/2019
Delivery Units,Adults and Communities,Other Agencies - Third Party P,0090147280,MEERA NURSING HOME LIMITED,"2,209.00",08/03/2019
Delivery Units,Adults and Communities,Other Agencies - Third Party P,0090147525,MEERA NURSING HOME LIMITED,"3,506.72",12/03/2019
Delivery Units,Adults and Communities,Other Agencies - Third Party P,0090148061,MEERA NURSING HOME LIMITED,"-3,079.80",12/03/2019
Delivery Units,Adults and Communities,Other Agencies - Third Party P,0090151220,MEERA NURSING HOME LIMITED,"2,366.79",22/03/2019
Delivery Units,Adults and Communities,Other Agencies - Third Party P,0090151221,MEERA NURSING HOME LIMITED,"2,445.68",22/03/2019
Delivery Units,Adults and Communities,Other Agencies - Third Party P,0090145364,NEWCENTURY CARE LTD,"3,746.44",01/03/2019
Delivery Units,Adults and Communities,Other Agencies - Third Party P,0090145365,NEWCENTURY CARE LTD,"3,020.00",01/03/2019
Delivery Units,Adults and Communities,Other Agencies - Third Party P,0090145366,NEWCENTURY CARE LTD,"3,600.00",01/03/2019
Delivery Units,Adults and Communities,Other Agencies - Third Party P,0090145367,NEWCENTURY CARE LTD,"3,920.00",01/03/2019
Delivery Units,Adults and Communities,Other Agencies - Third Party P,0090145368,NEWCENTURY CARE LTD,"3,792.00",01/03/2019
Delivery Units,Adults and Communities,Other Agencies - Third Party P,0090145369,NEWCENTURY CARE LTD,"3,400.00",01/03/2019
Delivery Units,Adults and Communities,Other Agencies - Third Party P,0090148044,BUPA CARE HOMES,"2,315.32",13/03/2019
Delivery Units,Adults and Communities,Other Agencies - Third Party P,0090151159,BUPA CARE HOMES,"3,463.92",27/03/2019
Delivery Units,Adults and Communities,Other Agencies - Third Party P,0090151160,BUPA CARE HOMES,"3,865.12",27/03/2019
Delivery Units,Adults and Communities,Other Agencies - Third Party P,0090151162,BUPA CARE HOMES,"2,315.32",27/03/2019
Delivery Units,Adults and Communities,Other Agencies - Third Party P,0090146988,BUPA CARE HOMES,"2,167.36",08/03/2019
Delivery Units,Adults and Communities,Other Agencies - Third Party P,0090146990,BUPA CARE HOMES,"2,511.60",08/03/2019
Delivery Units,Adults and Communities,Other Agencies - Third Party P,0090146991,BUPA CARE HOMES,"2,900.00",08/03/2019
Delivery Units,Adults and Communities,Other Agencies - Third Party P,0090146992,BUPA CARE HOMES,"2,180.00",08/03/2019
Delivery Units,Adults and Communities,Other Agencies - Third Party P,0090146994,BUPA CARE HOMES,"2,167.36",08/03/2019
Delivery Units,Adults and Communities,Other Agencies - Third Party P,0090146995,BUPA CARE HOMES,"2,167.36",08/03/2019
Delivery Units,Adults and Communities,Other Agencies - Third Party P,0090147047,BUPA CARE HOMES,"2,167.36",06/03/2019
Delivery Units,Adults and Communities,Other Agencies - Third Party P,0090147131,BUPA CARE HOMES,"2,167.36",08/03/2019
Delivery Units,Adults and Communities,Other Agencies - Third Party P,0030184226,FOUR SEASONS HEALTH CARE,"2,399.36",27/03/2019
Delivery Units,Adults and Communities,Other Agencies - Third Party P,0090148286,FOUR SEASONS HEALTH CARE,"10,413.74",12/03/2019
Delivery Units,Adults and Communities,Other Agencies - Third Party P,0090149759,FOUR SEASONS HEALTH CARE,"2,291.36",19/03/2019
Delivery Units,Adults and Communities,Other Agencies - Third Party P,0090149761,FOUR SEASONS HEALTH CARE,"2,291.36",19/03/2019
Delivery Units,Adults and Communities,Other Agencies - Third Party P,0090149762,FOUR SEASONS HEALTH CARE,"2,550.72",19/03/2019
Delivery Units,Adults and Communities,Other Agencies - Third Party P,0090149764,FOUR SEASONS HEALTH CARE,"2,550.72",19/03/2019
Delivery Units,Adults and Communities,Other Agencies - Third Party P,0090149766,FOUR SEASONS HEALTH CARE,"2,291.36",19/03/2019
Delivery Units,Adults and Communities,Other Agencies - Third Party P,0090149768,FOUR SEASONS HEALTH CARE,"2,663.69",19/03/2019
Delivery Units,Adults and Communities,Other Agencies - Third Party P,0090149769,FOUR SEASONS HEALTH CARE,"2,291.36",19/03/2019
Delivery Units,Adults and Communities,Other Agencies - Third Party P,0090149770,FOUR SEASONS HEALTH CARE,"2,551.32",19/03/2019
Delivery Units,Adults and Communities,Other Agencies - Third Party P,0090149771,FOUR SEASONS HEALTH CARE,"2,291.36",19/03/2019
Delivery Units,Adults and Communities,Other Agencies - Third Party P,0090149772,FOUR SEASONS HEALTH CARE,"2,400.00",19/03/2019
Delivery Units,Adults and Communities,Other Agencies - Third Party P,0090149773,FOUR SEASONS HEALTH CARE,"2,550.72",19/03/2019
Delivery Units,Adults and Communities,Other Agencies - Third Party P,0090149810,FOUR SEASONS HEALTH CARE,-112.97,19/03/2019
Delivery Units,Adults and Communities,Other Agencies - Third Party P,0090151177,FOUR SEASONS HEALTH CARE,"2,550.72",21/03/2019
Delivery Units,Adults and Communities,Other Agencies - Third Party P,0090151178,FOUR SEASONS HEALTH CARE,"2,400.00",21/03/2019
Delivery Units,Adults and Communities,Other Agencies - Third Party P,0090151182,FOUR SEASONS HEALTH CARE,"4,282.14",21/03/2019
Delivery Units,Adults and Communities,Other Agencies - Third Party P,0090152178,FOUR SEASONS HEALTH CARE,"2,291.36",26/03/2019
Delivery Units,Adults and Communities,Other Agencies - Third Party P,0090152179,FOUR SEASONS HEALTH CARE,"2,291.36",26/03/2019
Delivery Units,Adults and Communities,Other Agencies - Third Party P,0090152180,FOUR SEASONS HEALTH CARE,342.86,26/03/2019
Delivery Units,Adults and Communities,Other Agencies - Third Party P,0090147503,SANCTUARY CARE LTD,"2,573.84",12/03/2019
Delivery Units,Adults and Communities,Other Agencies - Third Party P,0090147043,BUPA CARE HOMES,"3,082.20",06/03/2019
Delivery Units,Adults and Communities,Other Agencies - Third Party P,0090147044,BUPA CARE HOMES,"3,212.08",06/03/2019
Delivery Units,Adults and Communities,Other Agencies - Third Party P,0090148048,BUPA CARE HOMES,"3,265.92",14/03/2019
Delivery Units,Adults and Communities,Other Agencies - Third Party P,0090148049,BUPA CARE HOMES,"2,318.76",14/03/2019
Delivery Units,Adults and Communities,Other Agencies - Third Party P,0090150087,SAGE NURSING HOME,"3,800.00",19/03/2019
Delivery Units,Adults and Communities,Other Agencies - Third Party P,0090150089,SAGE NURSING HOME,"4,800.00",19/03/2019
Delivery Units,Adults and Communities,Other Agencies - Third Party P,0090150091,SAGE NURSING HOME,"2,167.36",19/03/2019
Delivery Units,Adults and Communities,Other Agencies - Third Party P,0090150093,SAGE NURSING HOME,"2,518.48",19/03/2019
Delivery Units,Adults and Communities,Other Agencies - Third Party P,0090150094,SAGE NURSING HOME,"2,273.96",19/03/2019
Delivery Units,Adults and Communities,Other Agencies - Third Party P,0090149549,M D HOMES,"3,072.32",15/03/2019
Delivery Units,Adults and Communities,Other Agencies - Third Party P,0090145377,APPLE TREE COURT CARE HOME,"4,400.00",01/03/2019
Delivery Units,Adults and Communities,Other Agencies - Third Party P,0090145378,APPLE TREE COURT CARE HOME,317.93,01/03/2019
Delivery Units,Adults and Communities,Other Agencies - Third Party P,0090145379,APPLE TREE COURT CARE HOME,"2,167.36",01/03/2019
Delivery Units,Adults and Communities,Other Agencies - Third Party P,0090145380,APPLE TREE COURT CARE HOME,"2,400.00",01/03/2019
Delivery Units,Adults and Communities,Other Agencies - Third Party P,0090147091,AUTUMN GARDENS,"4,800.00",06/03/2019
Delivery Units,Adults and Communities,Other Agencies - Third Party P,0090147098,AUTUMN GARDENS,"4,800.00",06/03/2019
Delivery Units,Adults and Communities,Other Agencies - Third Party P,0090148287,AUTUMN GARDENS,"3,440.00",14/03/2019
Delivery Units,Adults and Communities,Other Agencies - Third Party P,0090148288,AUTUMN GARDENS,"4,800.00",14/03/2019
Delivery Units,Adults and Communities,Other Agencies - Third Party P,0090148294,AUTUMN GARDENS,"4,800.00",14/03/2019
Delivery Units,Adults and Communities,Other Agencies - Third Party P,0090150446,AUTUMN GARDENS,"7,617.14",19/03/2019
Delivery Units,Adults and Communities,Other Agencies - Third Party P,0090150463,SUNRISE SENIOR LIVING,"5,764.64",19/03/2019
Delivery Units,Adults and Communities,Other Agencies - Third Party P,0090144931,ABBEY RAVENSCROFT PARK NURSING HOME,964.29,01/03/2019
Delivery Units,Adults and Communities,Other Agencies - Third Party P,0090144932,ABBEY RAVENSCROFT PARK NURSING HOME,"3,214.29",01/03/2019
Delivery Units,Adults and Communities,Other Agencies - Third Party P,0090144933,ABBEY RAVENSCROFT PARK NURSING HOME,"3,321.43",01/03/2019
Delivery Units,Adults and Communities,Other Agencies - Third Party P,0090146897,ABBEY RAVENSCROFT PARK NURSING HOME,"3,321.43",05/03/2019
Delivery Units,Adults and Communities,Other Agencies - Third Party P,0090146900,ABBEY RAVENSCROFT PARK NURSING HOME,"3,000.00",05/03/2019
Delivery Units,Adults and Communities,Other Agencies - Third Party P,0090146903,ABBEY RAVENSCROFT PARK NURSING HOME,"3,000.00",05/03/2019
Delivery Units,Adults and Communities,Other Agencies - Third Party P,0090146904,ABBEY RAVENSCROFT PARK NURSING HOME,"3,000.00",05/03/2019
Delivery Units,Adults and Communities,Other Agencies - Third Party P,0090146905,ABBEY RAVENSCROFT PARK NURSING HOME,"3,000.00",05/03/2019
Delivery Units,Adults and Communities,Other Agencies - Third Party P,0090146906,ABBEY RAVENSCROFT PARK NURSING HOME,"2,800.00",05/03/2019
Delivery Units,Adults and Communities,Other Agencies - Third Party P,0090146907,ABBEY RAVENSCROFT PARK NURSING HOME,"2,518.48",05/03/2019
Delivery Units,Adults and Communities,Other Agencies - Third Party P,0090146908,ABBEY RAVENSCROFT PARK NURSING HOME,"2,518.48",05/03/2019
Delivery Units,Adults and Communities,Other Agencies - Third Party P,0090146909,ABBEY RAVENSCROFT PARK NURSING HOME,"2,518.48",05/03/2019
Delivery Units,Adults and Communities,Other Agencies - Third Party P,0090146911,ABBEY RAVENSCROFT PARK NURSING HOME,"3,433.96",05/03/2019
Delivery Units,Adults and Communities,Other Agencies - Third Party P,0090146913,ABBEY RAVENSCROFT PARK NURSING HOME,"2,518.48",05/03/2019
Delivery Units,Adults and Communities,Other Agencies - Third Party P,0090146917,ABBEY RAVENSCROFT PARK NURSING HOME,"2,518.48",05/03/2019
Delivery Units,Adults and Communities,Other Agencies - Third Party P,0090146918,ABBEY RAVENSCROFT PARK NURSING HOME,"3,000.00",05/03/2019
Delivery Units,Adults and Communities,Other Agencies - Third Party P,0090147161,ABBEY RAVENSCROFT PARK NURSING HOME,"2,788.32",08/03/2019
Delivery Units,Adults and Communities,Other Agencies - Third Party P,0090147162,ABBEY RAVENSCROFT PARK NURSING HOME,"3,801.88",08/03/2019
Delivery Units,Adults and Communities,Other Agencies - Third Party P,0090147163,ABBEY RAVENSCROFT PARK NURSING HOME,"2,788.32",08/03/2019
Delivery Units,Adults and Communities,Other Agencies - Third Party P,0090147166,ABBEY RAVENSCROFT PARK NURSING HOME,"3,100.00",08/03/2019
Delivery Units,Adults and Communities,Other Agencies - Third Party P,0090147167,ABBEY RAVENSCROFT PARK NURSING HOME,"2,788.32",08/03/2019
Delivery Units,Adults and Communities,Other Agencies - Third Party P,0090147168,ABBEY RAVENSCROFT PARK NURSING HOME,"2,788.32",08/03/2019
Delivery Units,Adults and Communities,Other Agencies - Third Party P,0090147169,ABBEY RAVENSCROFT PARK NURSING HOME,"2,788.32",08/03/2019
Delivery Units,Adults and Communities,Other Agencies - Third Party P,0090147170,ABBEY RAVENSCROFT PARK NURSING HOME,"3,321.43",08/03/2019
Delivery Units,Adults and Communities,Other Agencies - Third Party P,0090147171,ABBEY RAVENSCROFT PARK NURSING HOME,"3,321.43",08/03/2019
Delivery Units,Adults and Communities,Other Agencies - Third Party P,0090147173,ABBEY RAVENSCROFT PARK NURSING HOME,"3,321.43",08/03/2019
Delivery Units,Adults and Communities,Other Agencies - Third Party P,0090147176,ABBEY RAVENSCROFT PARK NURSING HOME,"3,321.43",08/03/2019
Delivery Units,Adults and Communities,Other Agencies - Third Party P,0090147483,ABBEY RAVENSCROFT PARK NURSING HOME,"2,698.37",12/03/2019
Delivery Units,Adults and Communities,Other Agencies - Third Party P,0090147484,ABBEY RAVENSCROFT PARK NURSING HOME,"2,788.32",12/03/2019
Delivery Units,Adults and Communities,Other Agencies - Third Party P,0090147485,ABBEY RAVENSCROFT PARK NURSING HOME,"2,788.32",12/03/2019
Delivery Units,Adults and Communities,Other Agencies - Third Party P,0090147489,ABBEY RAVENSCROFT PARK NURSING HOME,"3,214.29",12/03/2019
Delivery Units,Adults and Communities,Other Agencies - Third Party P,0090147490,ABBEY RAVENSCROFT PARK NURSING HOME,"2,788.32",12/03/2019
Delivery Units,Adults and Communities,Other Agencies - Third Party P,0090149682,ABBEY RAVENSCROFT PARK NURSING HOME,"1,821.43",19/03/2019
Delivery Units,Adults and Communities,Other Agencies - Third Party P,0090149683,ABBEY RAVENSCROFT PARK NURSING HOME,"3,321.43",19/03/2019
Delivery Units,Adults and Communities,Other Agencies - Third Party P,0090147193,CARLTON COURT (TLC GROUP),"4,000.00",08/03/2019
Delivery Units,Adults and Communities,Other Agencies - Third Party P,0090147195,CARLTON COURT (TLC GROUP),"3,375.00",08/03/2019
Delivery Units,Adults and Communities,Other Agencies - Third Party P,0090147199,CARLTON COURT (TLC GROUP),"2,211.80",08/03/2019
Delivery Units,Adults and Communities,Other Agencies - Third Party P,0090147122,HUSKARDS NEW CARE LTD,"2,397.72",06/03/2019
Delivery Units,Adults and Communities,Other Agencies - Third Party P,0090149781,ASHTON LODGE CARE CENTRE,"2,895.00",19/03/2019
Delivery Units,Adults and Communities,Other Agencies - Third Party P,0090149782,ASHTON LODGE CARE CENTRE,"3,583.51",19/03/2019
Delivery Units,Adults and Communities,Other Agencies - Third Party P,0090149784,ASHTON LODGE CARE CENTRE,"3,380.90",19/03/2019
Delivery Units,Adults and Communities,Other Agencies - Third Party P,0090149785,ASHTON LODGE CARE CENTRE,"3,506.72",19/03/2019
Delivery Units,Adults and Communities,Other Agencies - Third Party P,0090149786,ASHTON LODGE CARE CENTRE,"4,171.01",19/03/2019
Delivery Units,Adults and Communities,Other Agencies - Third Party P,0090149789,ASHTON LODGE CARE CENTRE,"3,189.86",19/03/2019
Delivery Units,Adults and Communities,Other Agencies - Third Party P,0090149790,ASHTON LODGE CARE CENTRE,"3,132.73",19/03/2019
Delivery Units,Adults and Communities,Other Agencies - Third Party P,0090149791,ASHTON LODGE CARE CENTRE,"3,583.51",19/03/2019
Delivery Units,Adults and Communities,Other Agencies - Third Party P,0090149792,ASHTON LODGE CARE CENTRE,"3,128.43",19/03/2019
Delivery Units,Adults and Communities,Other Agencies - Third Party P,0090149793,ASHTON LODGE CARE CENTRE,"3,358.10",19/03/2019
Delivery Units,Adults and Communities,Other Agencies - Third Party P,0090149794,ASHTON LODGE CARE CENTRE,"3,132.73",19/03/2019
Delivery Units,Adults and Communities,Other Agencies - Third Party P,0090149795,ASHTON LODGE CARE CENTRE,"2,613.92",19/03/2019
Delivery Units,Adults and Communities,Other Agencies - Third Party P,0090149796,ASHTON LODGE CARE CENTRE,"3,831.69",19/03/2019
Delivery Units,Adults and Communities,Other Agencies - Third Party P,0090149798,ASHTON LODGE CARE CENTRE,"3,352.69",19/03/2019
Delivery Units,Adults and Communities,Other Agencies - Third Party P,0090149799,ASHTON LODGE CARE CENTRE,"3,127.32",19/03/2019
Delivery Units,Adults and Communities,Other Agencies - Third Party P,0090149800,ASHTON LODGE CARE CENTRE,"3,077.64",19/03/2019
Delivery Units,Adults and Communities,Other Agencies - Third Party P,0090149803,ASHTON LODGE CARE CENTRE,"3,506.72",19/03/2019
Delivery Units,Adults and Communities,Other Agencies - Third Party P,0090149804,ASHTON LODGE CARE CENTRE,"3,606.27",19/03/2019
Delivery Units,Adults and Communities,Other Agencies - Third Party P,0090149806,ASHTON LODGE CARE CENTRE,"3,808.88",19/03/2019
Delivery Units,Adults and Communities,Other Agencies - Third Party P,0090149807,ASHTON LODGE CARE CENTRE,"3,741.92",19/03/2019
Delivery Units,Adults and Communities,Other Agencies - Third Party P,0090149808,ASHTON LODGE CARE CENTRE,"2,895.00",19/03/2019
Delivery Units,Adults and Communities,Other Agencies - Third Party P,0090151229,ASHTON LODGE CARE CENTRE,"3,244.54",22/03/2019
Delivery Units,Adults and Communities,Other Agencies - Third Party P,0090152177,ASHTON LODGE CARE CENTRE,"2,988.71",26/03/2019
Delivery Units,Adults and Communities,Other Agencies - Third Party P,0090152181,ASHTON LODGE CARE CENTRE,"3,363.71",26/03/2019
Delivery Units,Adults and Communities,Other Agencies - Third Party P,0090152182,ASHTON LODGE CARE CENTRE,"3,767.36",26/03/2019
Delivery Units,Adults and Communities,Other Agencies - Third Party P,0090147139,WESTGATE HOUSE CARE CENTRE,"3,725.76",08/03/2019
Delivery Units,Adults and Communities,Other Agencies - Third Party P,0090149594,WILSMERE HOUSE CARE CENTRE,"4,979.35",15/03/2019
Delivery Units,Adults and Communities,Other Agencies - Third Party P,0090145678,NHS BARNET CCG,"15,676.30",04/03/2019
Delivery Units,Adults and Communities,Other Agencies - Third Party P,0090145683,NHS BARNET CCG,"15,676.30",04/03/2019
Delivery Units,Adults and Communities,Other Agencies - Third Party P,0090145687,NHS BARNET CCG,"15,676.30",04/03/2019
Delivery Units,Adults and Communities,Other Agencies - Third Party P,0090145688,NHS BARNET CCG,"4,283.14",04/03/2019
Delivery Units,Adults and Communities,Other Agencies - Third Party P,0090146933,FOUR SEASONS HEALTH CARE (NO.4) LTD,"2,098.17",05/03/2019
Delivery Units,Adults and Communities,Other Agencies - Third Party P,0090146595,KARUNA MANOR,"4,207.14",05/03/2019
Delivery Units,Adults and Communities,Other Agencies - Third Party P,0090147211,KARUNA MANOR,"3,800.00",08/03/2019
Delivery Units,Adults and Communities,Other Agencies - Third Party P,0090150145,KARUNA MANOR,"7,651.34",19/03/2019
Delivery Units,Adults and Communities,Other Agencies - Third Party P,0090150965,KARUNA MANOR,"4,392.43",21/03/2019
Delivery Units,Adults and Communities,Other Agencies - Third Party P,0090150431,ST ANNS HOME-LITTLE SISTERS OF THE POOR,"2,165.68",19/03/2019
Delivery Units,Adults and Communities,Other Agencies - Third Party P,0090150114,CHISWICK HOUSE,"3,321.34",28/03/2019
Delivery Units,Adults and Communities,Other Agencies - Third Party P,0090150115,CHISWICK HOUSE,"3,321.34",19/03/2019
Delivery Units,Adults and Communities,Other Agencies - Third Party P,0090150438,CHISWICK HOUSE,"2,999.92",19/03/2019
Delivery Units,Adults and Communities,Other Agencies - Third Party P,0090147121,ADARA HEALTHCARE LTD,"3,400.00",06/03/2019
Delivery Units,Adults and Communities,Other Agencies - Third Party P,0090147037,AARANDALE MANOR CARE HOME,"2,321.80",06/03/2019
Delivery Units,Adults and Communities,Other Agencies - Third Party P,0090147038,AARANDALE MANOR CARE HOME,"4,000.00",06/03/2019
Delivery Units,Adults and Communities,Other Agencies - Third Party P,0090147039,AARANDALE MANOR CARE HOME,"2,398.56",06/03/2019
Delivery Units,Adults and Communities,Other Agencies - Third Party P,0090153288,AARANDALE MANOR CARE HOME,"2,655.55",26/03/2019
Delivery Units,Adults and Communities,Other Agencies - Third Party P,0090153289,AARANDALE MANOR CARE HOME,"4,428.57",26/03/2019
Delivery Units,Adults and Communities,Other Agencies - Third Party P,0090153290,AARANDALE MANOR CARE HOME,"3,741.92",26/03/2019
Delivery Units,Adults and Communities,Other Agencies - Third Party P,0090153291,AARANDALE MANOR CARE HOME,"2,570.56",26/03/2019
Delivery Units,Adults and Communities,Other Agencies - Third Party P,0090153292,AARANDALE MANOR CARE HOME,"3,379.80",26/03/2019
Delivery Units,Adults and Communities,Other Agencies - Third Party P,0090153293,AARANDALE MANOR CARE HOME,"3,741.92",26/03/2019
Delivery Units,Adults and Communities,Other Agencies - Third Party P,0090153294,AARANDALE MANOR CARE HOME,"1,569.19",26/03/2019
Delivery Units,Adults and Communities,Other Agencies - Third Party P,0090147491,ST JOHNS WOOD CARE CENTRE,"2,856.21",20/03/2019
Delivery Units,Adults and Communities,Other Agencies - Third Party P,0090147492,ST JOHNS WOOD CARE CENTRE,"2,764.07",12/03/2019
Delivery Units,Adults and Communities,Other Agencies - Third Party P,0090148758,ST JOHNS WOOD CARE CENTRE,"3,542.86",14/03/2019
Delivery Units,Adults and Communities,Other Agencies - Third Party P,0090148759,ST JOHNS WOOD CARE CENTRE,"3,200.00",14/03/2019
Delivery Units,Adults and Communities,Other Agencies - Third Party P,0090148760,ST JOHNS WOOD CARE CENTRE,"-3,190.74",14/03/2019
Delivery Units,Adults and Communities,Other Agencies - Third Party P,0090147050,LANSGLADE HOMES LIMITED,"2,460.00",06/03/2019
Delivery Units,Adults and Communities,Other Agencies - Third Party P,0090147049,HC-ONE OVAL LTD,"2,139.40",06/03/2019
Delivery Units,Adults and Communities,Other Agencies - Third Party P,0090147134,HC-ONE OVAL LTD,"2,368.62",28/03/2019
Delivery Units,Adults and Communities,Other Agencies - Third Party P,0090147003,ALLIANCE CARE (DALES HOMES) LIMITED,"1,578.57",06/03/2019
Delivery Units,Adults and Communities,Other Agencies - Third Party P,0090150423,DR FRENCH MEMORIAL HOME LTD,"3,200.12",19/03/2019
Delivery Units,Adults and Communities,Other Agencies - Third Party P,0090150424,DR FRENCH MEMORIAL HOME LTD,"3,200.12",19/03/2019
Delivery Units,Adults and Communities,Other Agencies - Third Party P,0090150425,DR FRENCH MEMORIAL HOME LTD,"3,200.12",19/03/2019
Delivery Units,Adults and Communities,Other Agencies - Third Party P,0090150426,DR FRENCH MEMORIAL HOME LTD,"1,650.00",19/03/2019
Delivery Units,Adults and Communities,Other Agencies - Third Party P,0090150427,DR FRENCH MEMORIAL HOME LTD,"2,304.00",19/03/2019
Delivery Units,Adults and Communities,Other Agencies - Third Party P,0090150428,DR FRENCH MEMORIAL HOME LTD,"3,200.12",19/03/2019
Delivery Units,Adults and Communities,Other Agencies - Third Party P,0090147074,ROSEACRES CARE HOME LIMITED,"3,000.00",06/03/2019
Delivery Units,Adults and Communities,Other Agencies - Third Party P,0090147076,ROSEACRES CARE HOME LIMITED,"2,304.00",06/03/2019
Delivery Units,Adults and Communities,Other Agencies - Third Party P,0090147077,ROSEACRES CARE HOME LIMITED,"3,000.00",06/03/2019
Delivery Units,Adults and Communities,Other Agencies - Third Party P,0090147078,ROSEACRES CARE HOME LIMITED,"3,000.00",06/03/2019
Delivery Units,Adults and Communities,Other Agencies - Third Party P,0090147080,ROSEACRES CARE HOME LIMITED,"2,988.53",06/03/2019
Delivery Units,Adults and Communities,Other Agencies - Third Party P,0090147081,ROSEACRES CARE HOME LIMITED,"2,304.00",06/03/2019
Delivery Units,Adults and Communities,Other Agencies - Third Party P,0090147083,ROSEACRES CARE HOME LIMITED,"3,000.00",06/03/2019
Delivery Units,Adults and Communities,Other Agencies - Third Party P,0090147084,ROSEACRES CARE HOME LIMITED,"2,304.00",06/03/2019
Delivery Units,Adults and Communities,Other Agencies - Third Party P,0090147085,ROSEACRES CARE HOME LIMITED,"2,304.00",06/03/2019
Delivery Units,Adults and Communities,Other Agencies - Third Party P,0090147087,ROSEACRES CARE HOME LIMITED,"2,144.00",06/03/2019
Delivery Units,Adults and Communities,Other Agencies - Third Party P,0090147088,ROSEACRES CARE HOME LIMITED,"2,304.00",06/03/2019
Delivery Units,Adults and Communities,Other Agencies - Third Party P,0090147089,ROSEACRES CARE HOME LIMITED,"3,400.00",06/03/2019
Delivery Units,Adults and Communities,Other Agencies - Third Party P,0090150642,ROSEACRES CARE HOME LIMITED,"3,321.43",21/03/2019
Delivery Units,Adults and Communities,Other Agencies - Third Party P,0090150643,ROSEACRES CARE HOME LIMITED,"3,321.43",21/03/2019
Delivery Units,Adults and Communities,Other Agencies - Third Party P,0090150644,ROSEACRES CARE HOME LIMITED,"2,550.86",21/03/2019
Delivery Units,Adults and Communities,Other Agencies - Third Party P,0090150645,ROSEACRES CARE HOME LIMITED,"3,321.43",21/03/2019
Delivery Units,Adults and Communities,Other Agencies - Third Party P,0090150647,ROSEACRES CARE HOME LIMITED,"3,321.43",21/03/2019
Delivery Units,Adults and Communities,Other Agencies - Third Party P,0090150648,ROSEACRES CARE HOME LIMITED,"2,550.86",21/03/2019
Delivery Units,Adults and Communities,Other Agencies - Third Party P,0090150649,ROSEACRES CARE HOME LIMITED,"2,550.86",21/03/2019
Delivery Units,Adults and Communities,Other Agencies - Third Party P,0090150651,ROSEACRES CARE HOME LIMITED,"3,764.29",21/03/2019
Delivery Units,Adults and Communities,Other Agencies - Third Party P,0090150652,ROSEACRES CARE HOME LIMITED,"2,373.71",21/03/2019
Delivery Units,Adults and Communities,Other Agencies - Third Party P,0090150653,ROSEACRES CARE HOME LIMITED,"2,550.86",21/03/2019
Delivery Units,Adults and Communities,Other Agencies - Third Party P,0090150654,ROSEACRES CARE HOME LIMITED,"2,550.86",21/03/2019
Delivery Units,Adults and Communities,Other Agencies - Third Party P,0090150656,ROSEACRES CARE HOME LIMITED,"2,699.32",21/03/2019
Delivery Units,Adults and Communities,Other Agencies - Third Party P,0090146998,NIGHTINGALE HOUSE,"2,201.80",06/03/2019
Delivery Units,Adults and Communities,Other Agencies - Third Party P,0090146999,NIGHTINGALE HOUSE,"2,201.80",06/03/2019
Delivery Units,Adults and Communities,Other Agencies - Third Party P,0090149570,ELEANOR PALMER TRUST NO 2 A/C.,"2,550.86",15/03/2019
Delivery Units,Adults and Communities,Other Agencies - Third Party P,0090149571,ELEANOR PALMER TRUST NO 2 A/C.,82.29,15/03/2019
Delivery Units,Adults and Communities,Other Agencies - Third Party P,0090149572,ELEANOR PALMER TRUST NO 2 A/C.,"2,550.86",15/03/2019
Delivery Units,Adults and Communities,Other Agencies - Third Party P,0090149577,ELEANOR PALMER TRUST NO 2 A/C.,"3,321.43",15/03/2019
Delivery Units,Adults and Communities,Other Agencies - Third Party P,0090149578,ELEANOR PALMER TRUST NO 2 A/C.,"3,396.49",15/03/2019
Delivery Units,Adults and Communities,Other Agencies - Third Party P,0090149579,ELEANOR PALMER TRUST NO 2 A/C.,"3,321.43",15/03/2019
Delivery Units,Adults and Communities,Other Agencies - Third Party P,0090149580,ELEANOR PALMER TRUST NO 2 A/C.,"3,396.49",15/03/2019
Delivery Units,Adults and Communities,Other Agencies - Third Party P,0090149581,ELEANOR PALMER TRUST NO 2 A/C.,"2,604.31",15/03/2019
Delivery Units,Adults and Communities,Other Agencies - Third Party P,0090149582,ELEANOR PALMER TRUST NO 2 A/C.,"3,396.49",15/03/2019
Delivery Units,Adults and Communities,Other Agencies - Third Party P,0090149583,ELEANOR PALMER TRUST NO 2 A/C.,"2,550.86",15/03/2019
Delivery Units,Adults and Communities,Other Agencies - Third Party P,0090149584,ELEANOR PALMER TRUST NO 2 A/C.,"2,392.31",15/03/2019
Delivery Units,Adults and Communities,Other Agencies - Third Party P,0090149585,ELEANOR PALMER TRUST NO 2 A/C.,"3,321.43",15/03/2019
Delivery Units,Adults and Communities,Other Agencies - Third Party P,0090149586,ELEANOR PALMER TRUST NO 2 A/C.,"3,396.49",15/03/2019
Delivery Units,Adults and Communities,Other Agencies - Third Party P,0090149587,ELEANOR PALMER TRUST NO 2 A/C.,"3,396.49",15/03/2019
Delivery Units,Adults and Communities,Other Agencies - Third Party P,0090149588,ELEANOR PALMER TRUST NO 2 A/C.,"3,396.49",15/03/2019
Delivery Units,Adults and Communities,Other Agencies - Third Party P,0090149589,ELEANOR PALMER TRUST NO 2 A/C.,"2,392.31",15/03/2019
Delivery Units,Adults and Communities,Other Agencies - Third Party P,0090149590,ELEANOR PALMER TRUST NO 2 A/C.,"2,604.31",15/03/2019
Delivery Units,Adults and Communities,Other Agencies - Third Party P,0090149591,ELEANOR PALMER TRUST NO 2 A/C.,"3,321.43",15/03/2019
Delivery Units,Adults and Communities,Other Agencies - Third Party P,0090149592,ELEANOR PALMER TRUST NO 2 A/C.,"3,396.49",15/03/2019
Delivery Units,Adults and Communities,Other Agencies - Third Party P,0090149593,ELEANOR PALMER TRUST NO 2 A/C.,"3,396.49",15/03/2019
Delivery Units,Adults and Communities,Other Agencies - Third Party P,0090147216,ELM PARK LODGE,"2,932.16",08/03/2019
Delivery Units,Adults and Communities,Other Agencies - Third Party P,0090147220,ELM PARK LODGE,"1,606.20",08/03/2019
Delivery Units,Adults and Communities,Other Agencies - Third Party P,0090151232,ELM PARK LODGE,"1,778.29",22/03/2019
Delivery Units,Adults and Communities,Other Agencies - Third Party P,0090153287,ELM PARK LODGE,"3,242.51",28/03/2019
Delivery Units,Adults and Communities,Other Agencies - Third Party P,0090147030,TORRINGTON HOMES,"2,211.80",06/03/2019
Delivery Units,Adults and Communities,Other Agencies - Third Party P,0090147031,TORRINGTON HOMES,"2,211.80",06/03/2019
Delivery Units,Adults and Communities,Other Agencies - Third Party P,0090147032,TORRINGTON HOMES,"2,031.76",06/03/2019
Delivery Units,Adults and Communities,Other Agencies - Third Party P,0090147033,TORRINGTON HOMES,"2,211.80",06/03/2019
Delivery Units,Adults and Communities,Other Agencies - Third Party P,0090150434,TORRINGTON HOMES,"2,448.78",19/03/2019
Delivery Units,Adults and Communities,Other Agencies - Third Party P,0090150435,TORRINGTON HOMES,"2,249.45",19/03/2019
Delivery Units,Adults and Communities,Other Agencies - Third Party P,0090150436,TORRINGTON HOMES,"2,448.78",19/03/2019
Delivery Units,Adults and Communities,Other Agencies - Third Party P,0090150437,TORRINGTON HOMES,"2,448.78",19/03/2019
Delivery Units,Adults and Communities,Other Agencies - Third Party P,0090147071,THE GRANGE,"2,304.00",06/03/2019
Delivery Units,Adults and Communities,Other Agencies - Third Party P,0090147072,THE GRANGE,"2,600.00",06/03/2019
Delivery Units,Adults and Communities,Other Agencies - Third Party P,0090147157,THE GRANGE,"2,304.00",08/03/2019
Delivery Units,Adults and Communities,Other Agencies - Third Party P,0090147158,THE GRANGE,"2,600.00",08/03/2019
Delivery Units,Adults and Communities,Other Agencies - Third Party P,0090151235,ELMHURST RESIDENTIAL HOME,"8,864.28",22/03/2019
Delivery Units,Adults and Communities,Other Agencies - Third Party P,0090151237,ELMHURST RESIDENTIAL HOME,"11,437.71",22/03/2019
Delivery Units,Adults and Communities,Other Agencies - Third Party P,0090151238,ELMHURST RESIDENTIAL HOME,"19,064.28",22/03/2019
Delivery Units,Adults and Communities,Other Agencies - Third Party P,0090151239,ELMHURST RESIDENTIAL HOME,"1,207.14",22/03/2019
Delivery Units,Adults and Communities,Other Agencies - Third Party P,0090151242,ELMHURST RESIDENTIAL HOME,"7,076.57",22/03/2019
Delivery Units,Adults and Communities,Other Agencies - Third Party P,0090151243,ELMHURST RESIDENTIAL HOME,"12,425.14",22/03/2019
Delivery Units,Adults and Communities,Other Agencies - Third Party P,0090151244,ELMHURST RESIDENTIAL HOME,"12,942.86",22/03/2019
Delivery Units,Adults and Communities,Other Agencies - Third Party P,0090151245,ELMHURST RESIDENTIAL HOME,"14,021.43",22/03/2019
Delivery Units,Adults and Communities,Other Agencies - Third Party P,0080024568,JEWISH CARE,"3,160.03",21/03/2019
Delivery Units,Adults and Communities,Other Agencies - Third Party P,0080024570,JEWISH CARE,"1,447.45",21/03/2019
Delivery Units,Adults and Communities,Other Agencies - Third Party P,0080024666,JEWISH CARE,"2,610.96",25/03/2019
Delivery Units,Adults and Communities,Other Agencies - Third Party P,0090147183,JEWISH CARE,"4,733.40",08/03/2019
Delivery Units,Adults and Communities,Other Agencies - Third Party P,0090148795,JEWISH CARE,"2,456.36",14/03/2019
Delivery Units,Adults and Communities,Other Agencies - Third Party P,0090148796,JEWISH CARE,"2,257.08",14/03/2019
Delivery Units,Adults and Communities,Other Agencies - Third Party P,0090148797,JEWISH CARE,"4,246.20",14/03/2019
Delivery Units,Adults and Communities,Other Agencies - Third Party P,0090148798,JEWISH CARE,"2,257.08",14/03/2019
Delivery Units,Adults and Communities,Other Agencies - Third Party P,0090148799,JEWISH CARE,"2,456.36",14/03/2019
Delivery Units,Adults and Communities,Other Agencies - Third Party P,0090148800,JEWISH CARE,"2,257.08",14/03/2019
Delivery Units,Adults and Communities,Other Agencies - Third Party P,0090148801,JEWISH CARE,"2,257.08",14/03/2019
Delivery Units,Adults and Communities,Other Agencies - Third Party P,0090148802,JEWISH CARE,"2,456.36",14/03/2019
Delivery Units,Adults and Communities,Other Agencies - Third Party P,0090148803,JEWISH CARE,"2,257.08",14/03/2019
Delivery Units,Adults and Communities,Other Agencies - Third Party P,0090148804,JEWISH CARE,"2,257.78",14/03/2019
Delivery Units,Adults and Communities,Other Agencies - Third Party P,0090148805,JEWISH CARE,"2,456.36",14/03/2019
Delivery Units,Adults and Communities,Other Agencies - Third Party P,0090148806,JEWISH CARE,"2,254.84",14/03/2019
Delivery Units,Adults and Communities,Other Agencies - Third Party P,0090148807,JEWISH CARE,"2,254.84",14/03/2019
Delivery Units,Adults and Communities,Other Agencies - Third Party P,0090148808,JEWISH CARE,"2,254.84",14/03/2019
Delivery Units,Adults and Communities,Other Agencies - Third Party P,0090148809,JEWISH CARE,"2,456.36",14/03/2019
Delivery Units,Adults and Communities,Other Agencies - Third Party P,0090148810,JEWISH CARE,"2,456.36",14/03/2019
Delivery Units,Adults and Communities,Other Agencies - Third Party P,0090148811,JEWISH CARE,"4,733.40",14/03/2019
Delivery Units,Adults and Communities,Other Agencies - Third Party P,0090148812,JEWISH CARE,"2,254.84",14/03/2019
Delivery Units,Adults and Communities,Other Agencies - Third Party P,0090148813,JEWISH CARE,"2,456.36",14/03/2019
Delivery Units,Adults and Communities,Other Agencies - Third Party P,0090148814,JEWISH CARE,"2,456.36",14/03/2019
Delivery Units,Adults and Communities,Other Agencies - Third Party P,0090148815,JEWISH CARE,"2,254.84",14/03/2019
Delivery Units,Adults and Communities,Other Agencies - Third Party P,0090148816,JEWISH CARE,"2,254.84",14/03/2019
Delivery Units,Adults and Communities,Other Agencies - Third Party P,0090148817,JEWISH CARE,"2,456.36",14/03/2019
Delivery Units,Adults and Communities,Other Agencies - Third Party P,0090148818,JEWISH CARE,"2,456.36",14/03/2019
Delivery Units,Adults and Communities,Other Agencies - Third Party P,0090148820,JEWISH CARE,"2,456.36",14/03/2019
Delivery Units,Adults and Communities,Other Agencies - Third Party P,0090148822,JEWISH CARE,"2,135.44",14/03/2019
Delivery Units,Adults and Communities,Other Agencies - Third Party P,0090148826,JEWISH CARE,"2,459.96",14/03/2019
Delivery Units,Adults and Communities,Other Agencies - Third Party P,0090148828,JEWISH CARE,"2,459.96",14/03/2019
Delivery Units,Adults and Communities,Other Agencies - Third Party P,0090148830,JEWISH CARE,"2,459.96",14/03/2019
Delivery Units,Adults and Communities,Other Agencies - Third Party P,0090148832,JEWISH CARE,"2,459.96",14/03/2019
Delivery Units,Adults and Communities,Other Agencies - Third Party P,0090148833,JEWISH CARE,"2,459.96",14/03/2019
Delivery Units,Adults and Communities,Other Agencies - Third Party P,0090148834,JEWISH CARE,"2,459.96",14/03/2019
Delivery Units,Adults and Communities,Other Agencies - Third Party P,0090148835,JEWISH CARE,"2,260.40",14/03/2019
Delivery Units,Adults and Communities,Other Agencies - Third Party P,0090148836,JEWISH CARE,"2,459.96",14/03/2019
Delivery Units,Adults and Communities,Other Agencies - Third Party P,0090148838,JEWISH CARE,"2,610.96",14/03/2019
Delivery Units,Adults and Communities,Other Agencies - Third Party P,0090149102,JEWISH CARE,"2,610.96",15/03/2019
Delivery Units,Adults and Communities,Other Agencies - Third Party P,0090149104,JEWISH CARE,"2,455.64",15/03/2019
Delivery Units,Adults and Communities,Other Agencies - Third Party P,0090149107,JEWISH CARE,"2,455.12",15/03/2019
Delivery Units,Adults and Communities,Other Agencies - Third Party P,0090149108,JEWISH CARE,"2,455.12",15/03/2019
Delivery Units,Adults and Communities,Other Agencies - Third Party P,0090149109,JEWISH CARE,"2,455.12",15/03/2019
Delivery Units,Adults and Communities,Other Agencies - Third Party P,0090149110,JEWISH CARE,"2,455.12",15/03/2019
Delivery Units,Adults and Communities,Other Agencies - Third Party P,0090149111,JEWISH CARE,"2,255.96",15/03/2019
Delivery Units,Adults and Communities,Other Agencies - Third Party P,0090149112,JEWISH CARE,"2,455.12",15/03/2019
Delivery Units,Adults and Communities,Other Agencies - Third Party P,0090149113,JEWISH CARE,"2,455.12",15/03/2019
Delivery Units,Adults and Communities,Other Agencies - Third Party P,0090149114,JEWISH CARE,"2,455.12",15/03/2019
Delivery Units,Adults and Communities,Other Agencies - Third Party P,0090149115,JEWISH CARE,"2,255.96",15/03/2019
Delivery Units,Adults and Communities,Other Agencies - Third Party P,0090149116,JEWISH CARE,"2,455.12",15/03/2019
Delivery Units,Adults and Communities,Other Agencies - Third Party P,0090149118,JEWISH CARE,"2,457.80",15/03/2019
Delivery Units,Adults and Communities,Other Agencies - Third Party P,0090149119,JEWISH CARE,"2,457.80",15/03/2019
Delivery Units,Adults and Communities,Other Agencies - Third Party P,0090149120,JEWISH CARE,"2,457.80",15/03/2019
Delivery Units,Adults and Communities,Other Agencies - Third Party P,0090149121,JEWISH CARE,"2,258.40",15/03/2019
Delivery Units,Adults and Communities,Other Agencies - Third Party P,0090149122,JEWISH CARE,"2,457.80",15/03/2019
Delivery Units,Adults and Communities,Other Agencies - Third Party P,0090149123,JEWISH CARE,"2,457.80",15/03/2019
Delivery Units,Adults and Communities,Other Agencies - Third Party P,0090149124,JEWISH CARE,"2,258.40",15/03/2019
Delivery Units,Adults and Communities,Other Agencies - Third Party P,0090149125,JEWISH CARE,"2,457.80",15/03/2019
Delivery Units,Adults and Communities,Other Agencies - Third Party P,0090149127,JEWISH CARE,"2,457.80",15/03/2019
Delivery Units,Adults and Communities,Other Agencies - Third Party P,0090149129,JEWISH CARE,"2,258.40",15/03/2019
Delivery Units,Adults and Communities,Other Agencies - Third Party P,0090149131,JEWISH CARE,"2,457.80",15/03/2019
Delivery Units,Adults and Communities,Other Agencies - Third Party P,0090149132,JEWISH CARE,"2,457.80",15/03/2019
Delivery Units,Adults and Communities,Other Agencies - Third Party P,0090149136,JEWISH CARE,241.71,15/03/2019
Delivery Units,Adults and Communities,Other Agencies - Third Party P,0090149398,JEWISH CARE,877.27,15/03/2019
Delivery Units,Adults and Communities,Other Agencies - Third Party P,0090149400,JEWISH CARE,"2,459.96",15/03/2019
Delivery Units,Adults and Communities,Other Agencies - Third Party P,0090149401,JEWISH CARE,"2,257.08",15/03/2019
Delivery Units,Adults and Communities,Other Agencies - Third Party P,0090149816,JEWISH CARE,644.88,19/03/2019
Delivery Units,Adults and Communities,Other Agencies - Third Party P,0090149817,JEWISH CARE,"1,213.20",19/03/2019
Delivery Units,Adults and Communities,Other Agencies - Third Party P,0090149818,JEWISH CARE,644.88,19/03/2019
Delivery Units,Adults and Communities,Other Agencies - Third Party P,0090149819,JEWISH CARE,701.82,19/03/2019
Delivery Units,Adults and Communities,Other Agencies - Third Party P,0090149820,JEWISH CARE,644.88,19/03/2019
Delivery Units,Adults and Communities,Other Agencies - Third Party P,0090149821,JEWISH CARE,644.88,19/03/2019
Delivery Units,Adults and Communities,Other Agencies - Third Party P,0090149822,JEWISH CARE,701.82,19/03/2019
Delivery Units,Adults and Communities,Other Agencies - Third Party P,0090149823,JEWISH CARE,644.88,19/03/2019
Delivery Units,Adults and Communities,Other Agencies - Third Party P,0090149824,JEWISH CARE,645.07,19/03/2019
Delivery Units,Adults and Communities,Other Agencies - Third Party P,0090149825,JEWISH CARE,701.82,19/03/2019
Delivery Units,Adults and Communities,Other Agencies - Third Party P,0090149827,JEWISH CARE,644.24,19/03/2019
Delivery Units,Adults and Communities,Other Agencies - Third Party P,0090149829,JEWISH CARE,644.24,19/03/2019
Delivery Units,Adults and Communities,Other Agencies - Third Party P,0090149830,JEWISH CARE,644.24,19/03/2019
Delivery Units,Adults and Communities,Other Agencies - Third Party P,0090149831,JEWISH CARE,701.82,19/03/2019
Delivery Units,Adults and Communities,Other Agencies - Third Party P,0090149832,JEWISH CARE,701.82,19/03/2019
Delivery Units,Adults and Communities,Other Agencies - Third Party P,0090149833,JEWISH CARE,"1,352.40",19/03/2019
Delivery Units,Adults and Communities,Other Agencies - Third Party P,0090149834,JEWISH CARE,644.24,19/03/2019
Delivery Units,Adults and Communities,Other Agencies - Third Party P,0090149835,JEWISH CARE,701.82,19/03/2019
Delivery Units,Adults and Communities,Other Agencies - Third Party P,0090149836,JEWISH CARE,701.82,19/03/2019
Delivery Units,Adults and Communities,Other Agencies - Third Party P,0090149837,JEWISH CARE,644.24,19/03/2019
Delivery Units,Adults and Communities,Other Agencies - Third Party P,0090149838,JEWISH CARE,644.24,19/03/2019
Delivery Units,Adults and Communities,Other Agencies - Third Party P,0090149839,JEWISH CARE,701.82,19/03/2019
Delivery Units,Adults and Communities,Other Agencies - Third Party P,0090149840,JEWISH CARE,701.82,19/03/2019
Delivery Units,Adults and Communities,Other Agencies - Third Party P,0090149842,JEWISH CARE,701.82,19/03/2019
Delivery Units,Adults and Communities,Other Agencies - Third Party P,0090149844,JEWISH CARE,610.13,19/03/2019
Delivery Units,Adults and Communities,Other Agencies - Third Party P,0090149848,JEWISH CARE,702.85,19/03/2019
Delivery Units,Adults and Communities,Other Agencies - Third Party P,0090149850,JEWISH CARE,702.85,19/03/2019
Delivery Units,Adults and Communities,Other Agencies - Third Party P,0090149852,JEWISH CARE,702.85,19/03/2019
Delivery Units,Adults and Communities,Other Agencies - Third Party P,0090149854,JEWISH CARE,702.85,19/03/2019
Delivery Units,Adults and Communities,Other Agencies - Third Party P,0090149855,JEWISH CARE,702.85,19/03/2019
Delivery Units,Adults and Communities,Other Agencies - Third Party P,0090149856,JEWISH CARE,702.85,19/03/2019
Delivery Units,Adults and Communities,Other Agencies - Third Party P,0090149857,JEWISH CARE,645.83,19/03/2019
Delivery Units,Adults and Communities,Other Agencies - Third Party P,0090149858,JEWISH CARE,702.85,19/03/2019
Delivery Units,Adults and Communities,Other Agencies - Third Party P,0090149860,JEWISH CARE,745.99,19/03/2019
Delivery Units,Adults and Communities,Other Agencies - Third Party P,0090150084,JEWISH CARE,-806.10,19/03/2019
Delivery Units,Adults and Communities,Other Agencies - Third Party P,0090150085,JEWISH CARE,-37.30,19/03/2019
Delivery Units,Adults and Communities,Other Agencies - Third Party P,0090150133,JEWISH CARE,"2,517.71",19/03/2019
Delivery Units,Adults and Communities,Other Agencies - Third Party P,0090150194,JEWISH CARE,701.46,19/03/2019
Delivery Units,Adults and Communities,Other Agencies - Third Party P,0090150195,JEWISH CARE,701.46,19/03/2019
Delivery Units,Adults and Communities,Other Agencies - Third Party P,0090150196,JEWISH CARE,701.46,19/03/2019
Delivery Units,Adults and Communities,Other Agencies - Third Party P,0090150197,JEWISH CARE,701.46,19/03/2019
Delivery Units,Adults and Communities,Other Agencies - Third Party P,0090150198,JEWISH CARE,644.56,19/03/2019
Delivery Units,Adults and Communities,Other Agencies - Third Party P,0090150199,JEWISH CARE,701.46,19/03/2019
Delivery Units,Adults and Communities,Other Agencies - Third Party P,0090150200,JEWISH CARE,701.46,19/03/2019
Delivery Units,Adults and Communities,Other Agencies - Third Party P,0090150201,JEWISH CARE,701.46,19/03/2019
Delivery Units,Adults and Communities,Other Agencies - Third Party P,0090150202,JEWISH CARE,702.23,19/03/2019
Delivery Units,Adults and Communities,Other Agencies - Third Party P,0090150203,JEWISH CARE,702.23,19/03/2019
Delivery Units,Adults and Communities,Other Agencies - Third Party P,0090150204,JEWISH CARE,702.23,19/03/2019
Delivery Units,Adults and Communities,Other Agencies - Third Party P,0090150205,JEWISH CARE,645.26,19/03/2019
Delivery Units,Adults and Communities,Other Agencies - Third Party P,0090150206,JEWISH CARE,702.23,19/03/2019
Delivery Units,Adults and Communities,Other Agencies - Third Party P,0090150207,JEWISH CARE,702.23,19/03/2019
Delivery Units,Adults and Communities,Other Agencies - Third Party P,0090150208,JEWISH CARE,645.26,19/03/2019
Delivery Units,Adults and Communities,Other Agencies - Third Party P,0090150209,JEWISH CARE,702.23,19/03/2019
Delivery Units,Adults and Communities,Other Agencies - Third Party P,0090150211,JEWISH CARE,702.23,19/03/2019
Delivery Units,Adults and Communities,Other Agencies - Third Party P,0090150212,JEWISH CARE,645.26,19/03/2019
Delivery Units,Adults and Communities,Other Agencies - Third Party P,0090150214,JEWISH CARE,702.23,19/03/2019
Delivery Units,Adults and Communities,Other Agencies - Third Party P,0090150215,JEWISH CARE,702.23,19/03/2019
Delivery Units,Adults and Communities,Other Agencies - Third Party P,0090150230,JEWISH CARE,702.85,19/03/2019
Delivery Units,Adults and Communities,Other Agencies - Third Party P,0090150231,JEWISH CARE,702.85,19/03/2019
Delivery Units,Adults and Communities,Other Agencies - Third Party P,0090150234,JEWISH CARE,644.56,19/03/2019
Delivery Units,Adults and Communities,Other Agencies - Third Party P,0090150236,JEWISH CARE,701.61,19/03/2019
Delivery Units,Adults and Communities,Other Agencies - Third Party P,0090150237,JEWISH CARE,745.99,19/03/2019
Delivery Units,Adults and Communities,Other Agencies - Third Party P,0090150239,JEWISH CARE,644.88,19/03/2019
Delivery Units,Adults and Communities,Other Agencies - Third Party P,0090150240,JEWISH CARE,701.82,19/03/2019
Delivery Units,Adults and Communities,Other Agencies - Third Party P,0090150241,JEWISH CARE,644.24,19/03/2019
Delivery Units,Adults and Communities,Other Agencies - Third Party P,0090151163,JEWISH CARE,"-1,105.48",21/03/2019
Delivery Units,Adults and Communities,Other Agencies - Third Party P,0090151164,JEWISH CARE,-614.09,21/03/2019
Delivery Units,Adults and Communities,Other Agencies - Third Party P,0090151165,JEWISH CARE,-561.45,21/03/2019
Delivery Units,Adults and Communities,Other Agencies - Third Party P,0090151169,JEWISH CARE,"1,691.97",21/03/2019
Delivery Units,Adults and Communities,Other Agencies - Third Party P,0090151173,JEWISH CARE,"2,280.90",21/03/2019
Delivery Units,Adults and Communities,Other Agencies - Third Party P,0090151174,JEWISH CARE,"2,174.31",21/03/2019
Delivery Units,Adults and Communities,Other Agencies - Third Party P,0090147017,CLOVELLY HOUSE RESID. HOME LTD,"2,600.00",06/03/2019
Delivery Units,Adults and Communities,Other Agencies - Third Party P,0090147021,CLOVELLY HOUSE RESID. HOME LTD,"2,780.00",06/03/2019
Delivery Units,Adults and Communities,Other Agencies - Third Party P,0090147023,CLOVELLY HOUSE RESID. HOME LTD,"2,780.00",06/03/2019
Delivery Units,Adults and Communities,Other Agencies - Third Party P,0090147026,CLOVELLY HOUSE RESID. HOME LTD,"2,304.00",06/03/2019
Delivery Units,Adults and Communities,Other Agencies - Third Party P,0090147027,CLOVELLY HOUSE RESID. HOME LTD,"2,600.00",06/03/2019
Delivery Units,Adults and Communities,Other Agencies - Third Party P,0090147028,CLOVELLY HOUSE RESID. HOME LTD,"2,304.00",06/03/2019
Delivery Units,Adults and Communities,Other Agencies - Third Party P,0090147029,CLOVELLY HOUSE RESID. HOME LTD,-92.86,06/03/2019
Delivery Units,Adults and Communities,Other Agencies - Third Party P,0090147143,CLOVELLY HOUSE RESID. HOME LTD,"2,780.00",08/03/2019
Delivery Units,Adults and Communities,Other Agencies - Third Party P,0090147144,CLOVELLY HOUSE RESID. HOME LTD,"2,780.00",08/03/2019
Delivery Units,Adults and Communities,Other Agencies - Third Party P,0090147148,CLOVELLY HOUSE RESID. HOME LTD,"3,000.00",08/03/2019
Delivery Units,Adults and Communities,Other Agencies - Third Party P,0090147151,CLOVELLY HOUSE RESID. HOME LTD,"2,600.00",08/03/2019
Delivery Units,Adults and Communities,Other Agencies - Third Party P,0090147152,CLOVELLY HOUSE RESID. HOME LTD,"2,304.00",08/03/2019
Delivery Units,Adults and Communities,Other Agencies - Third Party P,0090147153,CLOVELLY HOUSE RESID. HOME LTD,"2,600.00",08/03/2019
Delivery Units,Adults and Communities,Other Agencies - Third Party P,0090147154,CLOVELLY HOUSE RESID. HOME LTD,"2,304.00",08/03/2019
Delivery Units,Adults and Communities,Other Agencies - Third Party P,0090147277,FINBOND LIMITED,"3,200.00",08/03/2019
Delivery Units,Adults and Communities,Other Agencies - Third Party P,0090145168,QUANTUM CARE LIMITED,"5,785.71",01/03/2019
Delivery Units,Adults and Communities,Other Agencies - Third Party P,0090145169,QUANTUM CARE LIMITED,"3,321.43",01/03/2019
Delivery Units,Adults and Communities,Other Agencies - Third Party P,0090145170,QUANTUM CARE LIMITED,"3,321.43",01/03/2019
Delivery Units,Adults and Communities,Other Agencies - Third Party P,0090145171,QUANTUM CARE LIMITED,"3,214.29",01/03/2019
Delivery Units,Adults and Communities,Other Agencies - Third Party P,0090145172,QUANTUM CARE LIMITED,"3,321.43",01/03/2019
Delivery Units,Adults and Communities,Other Agencies - Third Party P,0090145173,QUANTUM CARE LIMITED,"3,214.29",01/03/2019
Delivery Units,Adults and Communities,Other Agencies - Third Party P,0090148041,QUANTUM CARE LIMITED,"3,000.00",12/03/2019
Delivery Units,Adults and Communities,Other Agencies - Third Party P,0090148042,QUANTUM CARE LIMITED,"3,800.00",12/03/2019
Delivery Units,Adults and Communities,Other Agencies - Third Party P,0090144937,CEDARS NURSING HOME,536.00,01/03/2019
Delivery Units,Adults and Communities,Other Agencies - Third Party P,0090144939,CEDARS NURSING HOME,"2,297.14",01/03/2019
Delivery Units,Adults and Communities,Other Agencies - Third Party P,0090150142,CEDARS NURSING HOME,"4,000.00",19/03/2019
Delivery Units,Adults and Communities,Other Agencies - Third Party P,0090146812,CATHERINE LODGE,"2,304.00",05/03/2019
Delivery Units,Adults and Communities,Other Agencies - Third Party P,0090146813,CATHERINE LODGE,"3,180.00",05/03/2019
Delivery Units,Adults and Communities,Other Agencies - Third Party P,0090146815,CATHERINE LODGE,"1,135.70",05/03/2019
Delivery Units,Adults and Communities,Other Agencies - Third Party P,0090146817,CATHERINE LODGE,"3,140.00",05/03/2019
Delivery Units,Adults and Communities,Other Agencies - Third Party P,0090146818,CATHERINE LODGE,"2,304.00",05/03/2019
Delivery Units,Adults and Communities,Other Agencies - Third Party P,0090146820,CATHERINE LODGE,"2,304.00",05/03/2019
Delivery Units,Adults and Communities,Other Agencies - Third Party P,0090150098,CATHERINE LODGE,"3,140.00",19/03/2019
Delivery Units,Adults and Communities,Other Agencies - Third Party P,0090150100,CATHERINE LODGE,"2,550.86",19/03/2019
